Workbook

Sheet Obsah
F2: 100
D4: B5.4 Střední školy vyučující obory odborného vzdělávání (bez nástavbového studia)
D5: Zdroje dat jsou uvedeny v zápatí jednotlivých tabulek
D7: Text | F7: Obsah
D9: Tabulka 1 | F9: ='B5.4.1'!H4&" "&'B5.4.1'!D5 -> SŠ – odborné vzdělávání (bez nástavbového studia) – školy ve školním roce 2009/10 až 2019/20 – podle formy vzdělávání a zřizovatele
D11: Tabulka 2 | F11: ='B5.4.2'!H4&" "&'B5.4.2'!D5 -> SŠ – odborné vzdělávání (bez nástavbového studia) – školy ve školním roce 2009/10 až 2019/20 – podle území
D13: Tabulka 3 | F13: ='B5.4.3'!H4&" "&'B5.4.3'!D5 -> SŠ – odborné vzdělávání (bez nástavbového studia), denní forma vzdělávání – třídy ve školním roce 2009/10 až 2019/20 – podle druhu vzdělávání a zřizovatele
D15: Tabulka 4 | F15: ='B5.4.4'!H4&" "&'B5.4.4'!D5 -> SŠ – odborné vzdělávání (bez nástavbového studia) – žáci, nově přijatí, ve školním roce 2009/10 až 2019/20 – podle formy vzdělávání a zřizovatele
D17: Tabulka 5 | F17: ='B5.4.5'!H4&" "&'B5.4.5'!D5 -> SŠ – lycea – žáci/dívky, nově přijatí/přijaté a absolventi/absolventky ve školním roce 2009/10 až 2019/20 – podle zřizovatele
D19: Tabulka 6 | F19: ='B5.4.6'!H4&" "&'B5.4.6'!D5 -> SŠ – odborné vzdělávání (bez nástavbového studia) – žáci, nově přijatí ve školním roce 2009/10 až 2019/20 – podle druhu vzdělávání a zřizovatele
D21: Tabulka 7 | F21: ='B5.4.7'!H4&" "&'B5.4.7'!D5 -> SŠ – odborné vzdělávání (bez nástavbového studia) – dívky, nově přijaté ve školním roce 2009/10 až 2019/20 – podle druhu vzdělávání a zřizovatele
D23: Tabulka 8 | F23: ='B5.4.8'!H4&" "&'B5.4.8'!D5 -> SŠ – odborné vzdělávání (bez nástavbového studia), denní forma vzdělávání – žáci, nově přijatí, absolventi ve školním roce 2009/10 až 2019/20 – podle druhu vzdělávání a zřizovatele
D25: Tabulka 9 | F25: ='B5.4.9'!H4&" "&'B5.4.9'!D5 -> SŠ – odborné vzdělávání (bez nástavbového studia), ostatní formy vzdělávání – žáci, nově přijatí, absolventi ve školním roce 2009/10 až 2019/20 – podle druhu vzdělávání a zřizovatele
D27: Tabulka 10 | F27: ='B5.4.10'!H4&" "&'B5.4.10'!D5 -> SŠ – odborné vzdělávání (bez nástavbového studia) – počet podaných přihlášek v 1. kole ve školním roce 2009/10 až 2019/20 – podle druhu vzdělávání a zřizovatele
D29: Tabulka 11 | F29: ='B5.4.11'!H4&" "&'B5.4.11'!D5 -> SŠ – odborné vzdělávání (bez nástavbového studia) – počet přijatých přihlášek v 1. kole ve školním roce 2009/10 až 2019/20 – podle druhu vzdělávání a zřizovatele
B31: c | D31: Tabulka 12 | F31: ='B5.4.12'!H4&" "&'B5.4.12'!D5 -> SŠ – odborné vzdělávání (bez nástavbového studia) – úspěšnost v 1. kole přijímacího ve školním roce 2008/09 až 2018/19 – podle druhu vzdělávání a zřizovatele
D33: Tabulka 13 | F33: ='B5.4.13'!H4&" "&'B5.4.13'!D5 -> SŠ – odborné vzdělávání (bez nástavbového studia), denní forma vzdělávání – žáci ve školním roce 2009/10 až 2019/20 – podle území
D35: Tabulka 14 | F35: ='B5.4.14'!H4&" "&'B5.4.14'!D5 -> SŠ – odborné vzdělávání (bez nástavbového studia), denní forma vzdělávání – nově přijatí ve školním roce 2009/10 až 2019/20 – podle území
D37: Tabulka 15 | F37: ='B5.4.15'!$H$4&" "&'B5.4.15'!$D$5 -> SŠ – odborné vzdělávání (bez nástavbového studia), denní forma vzdělávání – absolventi ve školním roce 2009/10 až 2019/20 – podle území
E38: Obrazová příloha
D39: Graf 1 | F39: ='GB1'!$H$4&" "&'GB1'!$D$5 -> SŠ – Odborné vzdělávání (bez nástavbového studia), denní forma vzdělávání – struktura škol ve školním roce 2009/10 až 2019/20 – podle velikosti
D41: Graf 2 | F41: ='GB2'!$H$4&" "&'GB2'!$D$5 -> SŠ – Odborné vzdělávání (bez nástavbového studia), denní forma vzdělávání – struktura nově přijatých do 1. ročníku ve školním roce 2009/10 až 2019/20
D43: Graf 3 | F43: ='GB3'!$H$4&" "&'GB3'!$D$5 -> SŠ – Odborné vzdělávání (bez nástavbového studia), denní forma vzdělávání – poměrové ukazatele ve školním roce 2009/10 až 2019/20

Sheet B5.4.1
D4: Tab. B5.4.1: | H4: SŠ – odborné vzdělávání (bez nástavbového studia) – školy
D5: ve školním roce 2009/10 až 2019/20 – podle formy vzdělávání a zřizovatele
D7: Forma vzdělávání Zřizovatel | J7: 2003/04 | K7: 2004/05 | L7: 2005/06 | M7: 2006/07 | N7: 2007/08 | O7: 2008/09 | P7: 2009/10 | Q7: 2010/11 | R7: 2011/12 | S7: 2012/13 | T7: 2013/14 | U7: 2014/15 | V7: 2015/16 | W7: 2016/17 | X7: 2017/18 | Y7: 2018/19 | Z7: 2019/20
J11: 1) | K11: 1) | L11: 1)
D12: Všechny formy vzdělávání
E13: Celkem | J13: 1636 | K13: 1597 | L13: 1632 | M13: 1152 | N13: 1120 | O13: 1112 | P13: 1108 | Q13: 1106 | R13: 1079 | S13: 1048 | T13: 1036 | U13: 1013 | V13: 1007 | W13: 1011 | X13: 1013 | Y13: 998 | Z13: 990
E14: v tom | F14: veřejný | J14: 1322 | K14: 1281 | L14: 1315 | M14: 877 | N14: 838 | O14: 828 | P14: 822 | Q14: 819 | R14: 794 | S14: 768 | T14: 762 | U14: 746 | V14: 745 | W14: 747 | X14: 751 | Y14: 738 | Z14: 735
F15: v tom | G15: MŠMT | J15: 57 | K15: 57 | L15: 58 | M15: 32 | N15: 32 | O15: 35 | P15: 35 | Q15: 35 | R15: 34 | S15: 32 | T15: 32 | U15: 31 | V15: 31 | W15: 30 | X15: 30 | Y15: 29 | Z15: 29
G16: obec | J16: 9 | K16: 10 | L16: 10 | M16: 12 | N16: 13 | O16: 13 | P16: 14 | Q16: 16 | R16: 15 | S16: 16 | T16: 16 | U16: 17 | V16: 17 | W16: 17 | X16: 18 | Y16: 18 | Z16: 18
G17: jiný resort | J17: 8 | K17: 8 | L17: 9 | M17: 4 | N17: 4 | O17: 4 | P17: 4 | Q17: 4 | R17: 4 | S17: 4 | T17: 4 | U17: 3 | V17: 3 | W17: 4 | X17: 4 | Y17: 4 | Z17: 4
G18: kraj | J18: 1248 | K18: 1206 | L18: 1238 | M18: 829 | N18: 789 | O18: 776 | P18: 769 | Q18: 764 | R18: 741 | S18: 716 | T18: 710 | U18: 695 | V18: 694 | W18: 696 | X18: 699 | Y18: 687 | Z18: 684
F19: neveřejný | J19: 314 | K19: 316 | L19: 317 | M19: 275 | N19: 282 | O19: 284 | P19: 286 | Q19: 287 | R19: 285 | S19: 280 | T19: 274 | U19: 267 | V19: 262 | W19: 264 | X19: 262 | Y19: 260 | Z19: 255
F20: v tom | G20: privátní sektor | J20: 293 | K20: 295 | L20: 295 | M20: 258 | N20: 265 | O20: 267 | P20: 269 | Q20: 270 | R20: 267 | S20: 261 | T20: 255 | U20: 245 | V20: 240 | W20: 241 | X20: 239 | Y20: 235 | Z20: 231
G21: církev | J21: 21 | K21: 21 | L21: 22 | M21: 17 | N21: 17 | O21: 17 | P21: 17 | Q21: 17 | R21: 18 | S21: 19 | T21: 19 | U21: 22 | V21: 22 | W21: 23 | X21: 23 | Y21: 25 | Z21: 24
D22: Denní formy vzdělávání
E23: Celkem | J23: 1630 | K23: 1592 | L23: 1622 | M23: 1148 | N23: 1116 | O23: 1108 | P23: 1104 | Q23: 1099 | R23: 1071 | S23: 1039 | T23: 1027 | U23: 1002 | V23: 997 | W23: 1001 | X23: 1002 | Y23: 987 | Z23: 979
E24: v tom | F24: veřejný | J24: 1321 | K24: 1280 | L24: 1312 | M24: 877 | N24: 838 | O24: 828 | P24: 822 | Q24: 819 | R24: 794 | S24: 768 | T24: 762 | U24: 745 | V24: 744 | W24: 746 | X24: 749 | Y24: 736 | Z24: 733
F25: v tom | G25: MŠMT | J25: 57 | K25: 57 | L25: 58 | M25: 32 | N25: 32 | O25: 35 | P25: 35 | Q25: 35 | R25: 34 | S25: 32 | T25: 32 | U25: 31 | V25: 31 | W25: 30 | X25: 30 | Y25: 29 | Z25: 29
G26: obec | J26: 9 | K26: 10 | L26: 10 | M26: 12 | N26: 13 | O26: 13 | P26: 14 | Q26: 16 | R26: 15 | S26: 16 | T26: 16 | U26: 17 | V26: 17 | W26: 17 | X26: 17 | Y26: 17 | Z26: 17
G27: jiný resort | J27: 8 | K27: 8 | L27: 9 | M27: 4 | N27: 4 | O27: 4 | P27: 4 | Q27: 4 | R27: 4 | S27: 4 | T27: 4 | U27: 2 | V27: 2 | W27: 3 | X27: 3 | Y27: 3 | Z27: 3
G28: kraj | J28: 1247 | K28: 1205 | L28: 1235 | M28: 829 | N28: 789 | O28: 776 | P28: 769 | Q28: 764 | R28: 741 | S28: 716 | T28: 710 | U28: 695 | V28: 694 | W28: 696 | X28: 699 | Y28: 687 | Z28: 684
F29: neveřejný | J29: 309 | K29: 312 | L29: 310 | M29: 271 | N29: 278 | O29: 280 | P29: 282 | Q29: 280 | R29: 277 | S29: 271 | T29: 265 | U29: 257 | V29: 253 | W29: 255 | X29: 253 | Y29: 251 | Z29: 246
F30: v tom | G30: privátní sektor | J30: 288 | K30: 291 | L30: 288 | M30: 254 | N30: 261 | O30: 263 | P30: 265 | Q30: 263 | R30: 259 | S30: 252 | T30: 246 | U30: 235 | V30: 231 | W30: 232 | X30: 230 | Y30: 226 | Z30: 222
G31: církev | J31: 21 | K31: 21 | L31: 22 | M31: 17 | N31: 17 | O31: 17 | P31: 17 | Q31: 17 | R31: 18 | S31: 19 | T31: 19 | U31: 22 | V31: 22 | W31: 23 | X31: 23 | Y31: 25 | Z31: 24
D32: Ostatní formy vzdělávání
E33: Celkem | J33: 208 | K33: 219 | L33: 199 | M33: 177 | N33: 174 | O33: 179 | P33: 179 | Q33: 187 | R33: 184 | S33: 177 | T33: 178 | U33: 175 | V33: 168 | W33: 168 | X33: 164 | Y33: 160 | Z33: 149
E34: v tom | F34: veřejný | J34: 146 | K34: 154 | L34: 137 | M34: 115 | N34: 113 | O34: 115 | P34: 111 | Q34: 110 | R34: 108 | S34: 99 | T34: 98 | U34: 95 | V34: 92 | W34: 90 | X34: 85 | Y34: 85 | Z34: 77
F35: v tom | G35: MŠMT | J35: 0 | K35: 0 | L35: 0 | M35: 0 | N35: 0 | O35: 0 | P35: 0 | Q35: 0 | R35: 0 | S35: 0 | T35: 0 | U35: 0 | V35: 1 | W35: 0 | X35: 0 | Y35: 0 | Z35: 0
G36: obec | J36: 0 | K36: 0 | L36: 0 | M36: 0 | N36: 0 | O36: 0 | P36: 0 | Q36: 0 | R36: 0 | S36: 0 | T36: 0 | U36: 0 | V36: 0 | W36: 1 | X36: 2 | Y36: 2 | Z36: 2
G37: jiný resort | J37: 3 | K37: 3 | L37: 2 | M37: 1 | N37: 1 | O37: 1 | P37: 2 | Q37: 1 | R37: 1 | S37: 1 | T37: 1 | U37: 1 | V37: 1 | W37: 1 | X37: 1 | Y37: 1 | Z37: 1
G38: kraj | J38: 143 | K38: 151 | L38: 135 | M38: 114 | N38: 112 | O38: 114 | P38: 109 | Q38: 109 | R38: 107 | S38: 98 | T38: 97 | U38: 94 | V38: 90 | W38: 88 | X38: 82 | Y38: 82 | Z38: 74
F39: neveřejný | J39: 62 | K39: 65 | L39: 62 | M39: 62 | N39: 61 | O39: 64 | P39: 68 | Q39: 77 | R39: 76 | S39: 78 | T39: 80 | U39: 80 | V39: 76 | W39: 78 | X39: 79 | Y39: 75 | Z39: 72
F40: v tom | G40: privátní sektor | J40: 61 | K40: 64 | L40: 61 | M40: 61 | N40: 60 | O40: 63 | P40: 67 | Q40: 76 | R40: 74 | S40: 74 | T40: 75 | U40: 75 | V40: 70 | W40: 71 | X40: 72 | Y40: 69 | Z40: 66
G41: církev | J41: 1 | K41: 1 | L41: 1 | M41: 1 | N41: 1 | O41: 1 | P41: 1 | Q41: 1 | R41: 2 | S41: 4 | T41: 5 | U41: 5 | V41: 6 | W41: 7 | X41: 7 | Y41: 6 | Z41: 6
Z42: Zdroj: databáze MŠMT

Sheet B5.4.2
D4: Tab. B5.4.2: | H4: SŠ – odborné vzdělávání (bez nástavbového studia) – školy
B5: 0 | D5: ve školním roce 2009/10 až 2019/20 – podle území
D7: Území | J7: 2003/04 | K7: 2004/05 | L7: 2005/06 | M7: 2006/07 | N7: 2007/08 | O7: 2008/09 | P7: 2009/10 | Q7: 2010/11 | R7: 2011/12 | S7: 2012/13 | T7: 2013/14 | U7: 2014/15 | V7: 2015/16 | W7: 2016/17 | X7: 2017/18 | Y7: 2018/19 | Z7: 2019/20
J11: 1) | K11: 1) | L11: 1)
E12: Česká republika | H12: CZ0 | J12: 1636 | K12: 1597 | L12: 1632 | M12: 1152 | N12: 1120 | O12: 1112 | P12: 1108 | Q12: 1106 | R12: 1079 | S12: 1048 | T12: 1036 | U12: 1013 | V12: 1007 | W12: 1011 | X12: 1013 | Y12: 998 | Z12: 990
E13: Praha | H13: CZ01 | J13: 165 | K13: 165 | L13: 173 | M13: 142 | N13: 138 | O13: 138 | P13: 135 | Q13: 137 | R13: 133 | S13: 131 | T13: 131 | U13: 127 | V13: 127 | W13: 124 | X13: 123 | Y13: 126 | Z13: 125
F14: Hlavní město Praha | H14: CZ010 | J14: 165 | K14: 165 | L14: 173 | M14: 142 | N14: 138 | O14: 138 | P14: 135 | Q14: 137 | R14: 133 | S14: 131 | T14: 131 | U14: 127 | V14: 127 | W14: 124 | X14: 123 | Y14: 126 | Z14: 125
E15: Střední Čechy | H15: CZ02 | J15: 164 | K15: 161 | L15: 160 | M15: 117 | N15: 122 | O15: 121 | P15: 121 | Q15: 123 | R15: 125 | S15: 124 | T15: 122 | U15: 121 | V15: 121 | W15: 122 | X15: 122 | Y15: 121 | Z15: 118
F16: Středočeský kraj | H16: CZ020 | J16: 164 | K16: 161 | L16: 160 | M16: 117 | N16: 122 | O16: 121 | P16: 121 | Q16: 123 | R16: 125 | S16: 124 | T16: 122 | U16: 121 | V16: 121 | W16: 122 | X16: 122 | Y16: 121 | Z16: 118
E17: Jihozápad | H17: CZ03 | J17: 187 | K17: 185 | L17: 191 | M17: 130 | N17: 125 | O17: 124 | P17: 124 | Q17: 125 | R17: 120 | S17: 115 | T17: 114 | U17: 114 | V17: 113 | W17: 114 | X17: 112 | Y17: 112 | Z17: 112
F18: Jihočeský kraj | H18: CZ031 | J18: 113 | K18: 112 | L18: 115 | M18: 80 | N18: 75 | O18: 75 | P18: 75 | Q18: 75 | R18: 74 | S18: 70 | T18: 69 | U18: 70 | V18: 70 | W18: 70 | X18: 68 | Y18: 68 | Z18: 68
F19: Plzeňský kraj | H19: CZ032 | J19: 74 | K19: 73 | L19: 76 | M19: 50 | N19: 50 | O19: 49 | P19: 49 | Q19: 50 | R19: 46 | S19: 45 | T19: 45 | U19: 44 | V19: 43 | W19: 44 | X19: 44 | Y19: 44 | Z19: 44
E20: Severozápad | H20: CZ04 | J20: 208 | K20: 205 | L20: 221 | M20: 142 | N20: 132 | O20: 127 | P20: 128 | Q20: 124 | R20: 118 | S20: 108 | T20: 110 | U20: 108 | V20: 106 | W20: 108 | X20: 107 | Y20: 102 | Z20: 101
F21: Karlovarský kraj | H21: CZ041 | J21: 54 | K21: 54 | L21: 61 | M21: 36 | N21: 33 | O21: 32 | P21: 32 | Q21: 32 | R21: 32 | S21: 32 | T21: 32 | U21: 32 | V21: 30 | W21: 31 | X21: 30 | Y21: 25 | Z21: 25
F22: Ústecký kraj | H22: CZ042 | J22: 154 | K22: 151 | L22: 160 | M22: 106 | N22: 99 | O22: 95 | P22: 96 | Q22: 92 | R22: 86 | S22: 76 | T22: 78 | U22: 76 | V22: 76 | W22: 77 | X22: 77 | Y22: 77 | Z22: 76
E23: Severovýchod | H23: CZ05 | J23: 257 | K23: 253 | L23: 259 | M23: 198 | N23: 177 | O23: 174 | P23: 174 | Q23: 173 | R23: 164 | S23: 166 | T23: 165 | U23: 163 | V23: 166 | W23: 166 | X23: 169 | Y23: 159 | Z23: 160
F24: Liberecký kraj | H24: CZ051 | J24: 71 | K24: 69 | L24: 74 | M24: 51 | N24: 44 | O24: 44 | P24: 43 | Q24: 43 | R24: 41 | S24: 41 | T24: 41 | U24: 40 | V24: 40 | W24: 39 | X24: 39 | Y24: 38 | Z24: 38
F25: Královéhradecký kraj | H25: CZ052 | J25: 106 | K25: 103 | L25: 103 | M25: 77 | N25: 75 | O25: 71 | P25: 72 | Q25: 71 | R25: 68 | S25: 69 | T25: 68 | U25: 66 | V25: 67 | W25: 68 | X25: 69 | Y25: 61 | Z25: 61
F26: Pardubický kraj | H26: CZ053 | J26: 80 | K26: 81 | L26: 82 | M26: 70 | N26: 58 | O26: 59 | P26: 59 | Q26: 59 | R26: 55 | S26: 56 | T26: 56 | U26: 57 | V26: 59 | W26: 59 | X26: 61 | Y26: 60 | Z26: 61
E27: Jihovýchod | H27: CZ06 | J27: 268 | K27: 242 | L27: 249 | M27: 161 | N27: 163 | O27: 165 | P27: 163 | Q27: 163 | R27: 167 | S27: 158 | T27: 155 | U27: 143 | V27: 141 | W27: 143 | X27: 143 | Y27: 143 | Z27: 142
F28: Kraj Vysočina | H28: CZ063 | J28: 92 | K28: 83 | L28: 86 | M28: 56 | N28: 58 | O28: 58 | P28: 58 | Q28: 59 | R28: 61 | S28: 62 | T28: 61 | U28: 52 | V28: 50 | W28: 50 | X28: 50 | Y28: 52 | Z28: 52
F29: Jihomoravský kraj | H29: CZ064 | J29: 176 | K29: 159 | L29: 163 | M29: 105 | N29: 105 | O29: 107 | P29: 105 | Q29: 104 | R29: 106 | S29: 96 | T29: 94 | U29: 91 | V29: 91 | W29: 93 | X29: 93 | Y29: 91 | Z29: 90
E30: Střední Morava | H30: CZ07 | J30: 217 | K30: 216 | L30: 205 | M30: 146 | N30: 146 | O30: 146 | P30: 147 | Q30: 146 | R30: 142 | S30: 138 | T30: 134 | U30: 132 | V30: 131 | W30: 133 | X30: 135 | Y30: 134 | Z30: 131
F31: Olomoucký kraj | H31: CZ071 | J31: 115 | K31: 115 | L31: 107 | M31: 76 | N31: 77 | O31: 81 | P31: 81 | Q31: 81 | R31: 81 | S31: 79 | T31: 78 | U31: 76 | V31: 75 | W31: 76 | X31: 78 | Y31: 76 | Z31: 73
F32: Zlínský kraj | H32: CZ072 | J32: 102 | K32: 101 | L32: 98 | M32: 70 | N32: 69 | O32: 65 | P32: 66 | Q32: 65 | R32: 61 | S32: 59 | T32: 56 | U32: 56 | V32: 56 | W32: 57 | X32: 57 | Y32: 58 | Z32: 58
E33: Moravskoslezsko | H33: CZ08 | J33: 170 | K33: 170 | L33: 174 | M33: 116 | N33: 117 | O33: 117 | P33: 116 | Q33: 115 | R33: 110 | S33: 108 | T33: 105 | U33: 105 | V33: 102 | W33: 101 | X33: 102 | Y33: 101 | Z33: 101
F34: Moravskoslezský kraj | H34: CZ080 | J34: 170 | K34: 170 | L34: 174 | M34: 116 | N34: 117 | O34: 117 | P34: 116 | Q34: 115 | R34: 110 | S34: 108 | T34: 105 | U34: 105 | V34: 102 | W34: 101 | X34: 102 | Y34: 101 | Z34: 101
Z35: Zdroj: databáze MŠMT

Sheet B5.4.3
D4: Tab. B5.4.3: | H4: SŠ – odborné vzdělávání (bez nástavbového studia), denní forma vzdělávání – třídy
B5: 0 | D5: ve školním roce 2009/10 až 2019/20 – podle druhu vzdělávání a zřizovatele
D7: Druh vzdělávání Zřizovatel | J7: 2003/04 | K7: 2004/05 | L7: 2005/06 | M7: 2006/07 | N7: 2007/08 | O7: 2008/09 | P7: 2009/10 | Q7: 2010/11 | R7: 2011/12 | S7: 2012/13 | T7: 2013/14 | U7: 2014/15 | V7: 2015/16 | W7: 2016/17 | X7: 2017/18 | Y7: 2018/19 | Z7: 2019/20
E12: Celkem | J12: 15889 | K12: 15878 | L12: 15751 | M12: =M20+M28+M36 -> 15731 | N12: 15636 | O12: 15537.9 | P12: 15462.1 | Q12: 15193.53 | R12: 14554.36 | S12: 13779.94 | T12: 13289.82 | U12: 13019.24 | V12: 12883.91 | W12: 12760.5 | X12: 12726.4 | Y12: 12809.9 | Z12: 12934.09
E13: v tom | F13: veřejný | J13: 13726 | K13: 13679 | L13: 13535 | M13: =M21+M29+M37 -> 13457 | N13: 13329 | O13: 13205.9 | P13: 13007.6 | Q13: 12792.7 | R13: 12297.28 | S13: 11628.59 | T13: 11184.85 | U13: 10917.66 | V13: 10777.63 | W13: 10604.25 | X13: 10508.82 | Y13: 10581.89 | Z13: 10685.02
F14: v tom | G14: MŠMT | J14: 186 | K14: 201 | L14: 208 | M14: 209 | N14: 214 | O14: 222 | P14: 217 | Q14: 212.01 | R14: 222 | S14: 203.01 | T14: 201.02 | U14: 210 | V14: 218.01 | W14: 214 | X14: 208 | Y14: 209 | Z14: 201
G15: obec | J15: 47 | K15: 60 | L15: 60 | M15: 69 | N15: 70 | O15: 72.4 | P15: 75.6 | Q15: 80.47 | R15: 84 | S15: 84.01 | T15: 86 | U15: 90.01 | V15: 91 | W15: 91 | X15: 91 | Y15: 88.99 | Z15: 84.99
G16: jiný resort | J16: 96 | K16: 77 | L16: 56 | M16: 23 | N16: 34 | O16: 37 | P16: 42 | Q16: 37 | R16: 37 | S16: 37 | T16: 27 | U16: 26 | V16: 27 | W16: 31 | X16: 35 | Y16: 40 | Z16: 46
G17: kraj | J17: 13397 | K17: 13341 | L17: 13211 | M17: 13156 | N17: 13011 | O17: 12874.5 | P17: 12673 | Q17: 12463.22 | R17: 11954.28 | S17: 11304.57 | T17: 10870.83 | U17: 10591.65 | V17: 10441.62 | W17: 10268.25 | X17: 10174.82 | Y17: 10243.9 | Z17: 10353.03
F18: privátní sektor | J18: 2066 | K18: 2100 | L18: 2115 | M18: 2175 | N18: 2207 | O18: 2229 | P18: 2344.5 | Q18: 2287.83 | R18: 2145.09 | S18: 2033.6 | T18: 1985.72 | U18: 1976.86 | V18: 1980.97 | W18: 2024 | X18: 2078.2 | Y18: 2086.98 | Z18: 2107.07
F19: církev | J19: 97 | K19: 99 | L19: 101 | M19: 99 | N19: 100 | O19: 103 | P19: 110 | Q19: 113 | R19: 111.99 | S19: 117.75 | T19: 119.25 | U19: 124.72 | V19: 125.31 | W19: 132.25 | X19: 139.38 | Y19: 141.03 | Z19: 142
E20: Střední vzdělávání | J20: 40 | K20: 37 | L20: 242 | M20: 227 | N20: 215 | O20: 220 | P20: 231.2 | Q20: 247.9 | R20: 257.3 | S20: 247.71 | T20: 265.67 | U20: 277.43 | V20: 309.14 | W20: 329.6 | X20: 361.23 | Y20: 380.06 | Z20: 360.05
E21: v tom | F21: veřejný | J21: 26 | K21: 22 | L21: 209 | M21: 194 | N21: 182 | O21: 186 | P21: 187.2 | Q21: 202.9 | R21: 215.3 | S21: 204.73 | T21: 216.68 | U21: 225.43 | V21: 251.14 | W21: 246.59 | X21: 260.22 | Y21: 265.05 | Z21: 268.04
F22: v tom | G22: MŠMT | J22: 0 | K22: 0 | L22: 43 | M22: 40 | N22: 42 | O22: 46 | P22: 41.2 | Q22: 39.9 | R22: 37.6 | S22: 23 | T22: 20.01 | U22: 22 | V22: 25 | W22: 21 | X22: 19 | Y22: 20 | Z22: 18
G23: obec | J23: 0 | K23: 0 | L23: 3 | M23: 4 | N23: 5 | O23: 5 | P23: 6 | Q23: 9 | R23: 10 | S23: 9 | T23: 7 | U23: 9 | V23: 10 | W23: 10.04 | X23: 10 | Y23: 10 | Z23: 10
G24: jiný resort | J24: 0 | K24: 0 | L24: 0 | M24: 0 | N24: 0 | O24: 0 | P24: 0 | Q24: 0 | R24: 0 | S24: 0 | T24: 0 | U24: 0 | V24: 0 | W24: 0 | X24: 0 | Y24: 0 | Z24: 0
G25: kraj | J25: 26 | K25: 22 | L25: 163 | M25: 150 | N25: 135 | O25: 135 | P25: 140 | Q25: 154 | R25: 167.7 | S25: 172.73 | T25: 189.67 | U25: 194.43 | V25: 216.14 | W25: 215.55 | X25: 231.22 | Y25: 235.05 | Z25: 240.04
F26: privátní sektor | J26: 5 | K26: 5 | L26: 19 | M26: 20 | N26: 22 | O26: 23 | P26: 29 | Q26: 29 | R26: 26 | S26: 23.99 | T26: 28 | U26: 28 | V26: 33 | W26: 53 | X26: 69 | Y26: 85.01 | Z26: 63.01
F27: církev | J27: 9 | K27: 10 | L27: 14 | M27: 13 | N27: 11 | O27: 11 | P27: 15 | Q27: 16 | R27: 16 | S27: 18.99 | T27: 20.99 | U27: 24 | V27: 25 | W27: 30.01 | X27: 32.01 | Y27: 30 | Z27: 29
E28: Střední vzdělávání s výučním listem1) | J28: 5419 | K28: 5163 | L28: 6370 | M28: 6164 | N28: 5929.3 | O28: 5683.2 | P28: 5497.2 | Q28: 5389.98 | R28: 5139.29 | S28: 4929.05 | T28: 4847.02 | U28: 4789.93 | V28: 4731.29 | W28: 4607.33 | X28: 4502.98 | Y28: 4491.79 | Z28: 4528.05
E29: v tom | F29: veřejný | J29: 4821 | K29: 4600 | L29: 5742 | M29: 5542 | N29: 5329.3 | O29: 5099.2 | P29: 4889.2 | Q29: 4793.91 | R29: 4590.32 | S29: 4373.02 | T29: 4296.07 | U29: 4238.91 | V29: 4182.29 | W29: 4042.31 | X29: 3918.89 | Y29: 3905.79 | Z29: 3940.99
F30: v tom | G30: MŠMT | J30: 0 | K30: 0 | L30: 140 | M30: 142 | N30: 144 | O30: 146 | P30: 144 | Q30: 140.01 | R30: 151 | S30: 150.01 | T30: 151.01 | U30: 160 | V30: 165.01 | W30: 163 | X30: 159 | Y30: 157 | Z30: 151
G31: obec | J31: 9 | K31: 9 | L31: 10 | M31: 17 | N31: 14.2 | O31: 14.4 | P31: 16.6 | Q31: 17.47 | R31: 21 | S31: 23.01 | T31: 25 | U31: 27.01 | V31: 26 | W31: 25.96 | X31: 28 | Y31: 28.99 | Z31: 24.99
G32: jiný resort | J32: 12 | K32: 12 | L32: 14 | M32: 0 | N32: 14 | O32: 14 | P32: 16 | Q32: 10 | R32: 10 | S32: 11 | T32: 1 | U32: 0 | V32: 0 | W32: 0 | X32: 0 | Y32: 0 | Z32: 0
G33: kraj | J33: 4800 | K33: 4579 | L33: 5578 | M33: 5383 | N33: 5157.1 | O33: 4924.8 | P33: 4712.6 | Q33: 4626.43 | R33: 4408.32 | S33: 4189 | T33: 4119.06 | U33: 4051.9 | V33: 3991.28 | W33: 3853.35 | X33: 3731.89 | Y33: 3719.8 | Z33: 3765
F34: privátní sektor | J34: 589 | K34: 554 | L34: 615 | M34: 607 | N34: 585 | O34: 568 | P34: 591 | Q34: 578.07 | R34: 531.97 | S34: 538.03 | T34: 533.95 | U34: 534.02 | V34: 534 | W34: 550.02 | X34: 569.09 | Y34: 568.99 | Z34: 567.06
F35: církev | J35: 9 | K35: 9 | L35: 13 | M35: 15 | N35: 15 | O35: 16 | P35: 17 | Q35: 18 | R35: 17 | S35: 18 | T35: 17 | U35: 17 | V35: 15 | W35: 15 | X35: 15 | Y35: 17.01 | Z35: 20
E36: Střední vzdělávání s maturitní zkouškou1) | J36: 8652 | K36: 8863 | L36: 9139 | M36: 9340 | N36: 9491.7 | O36: 9634.7 | P36: 9733.7 | Q36: 9555.65 | R36: 9157.77 | S36: 8603.18 | T36: 8177.13 | U36: 7951.88 | V36: 7843.48 | W36: 7823.57 | X36: 7862.19 | Y36: 7938.05 | Z36: 8045.99
E37: v tom | F37: veřejný | J37: 7197 | K37: 7362 | L37: 7584 | M37: 7721 | N37: 7817.7 | O37: 7920.7 | P37: 7931.2 | Q37: 7795.89 | R37: 7491.66 | S37: 7050.84 | T37: 6672.1 | U37: 6453.32 | V37: 6344.2 | W37: 6315.35 | X37: 6329.71 | Y37: 6411.05 | Z37: 6475.99
F38: v tom | G38: MŠMT | J38: 0 | K38: 0 | L38: 25 | M38: 27 | N38: 28 | O38: 30 | P38: 31.8 | Q38: 32.1 | R38: 33.4 | S38: 30 | T38: 30 | U38: 28 | V38: 28 | W38: 30 | X38: 30 | Y38: 32 | Z38: 32
G39: obec | J39: 35 | K39: 47 | L39: 47 | M39: 48 | N39: 50.8 | O39: 53 | P39: 53 | Q39: 54 | R39: 53 | S39: 52 | T39: 54 | U39: 54 | V39: 55 | W39: 55 | X39: 53 | Y39: 50 | Z39: 50
G40: jiný resort | J40: 82 | K40: 61 | L40: 42 | M40: 23 | N40: 20 | O40: 23 | P40: 26 | Q40: 27 | R40: 27 | S40: 26 | T40: 26 | U40: 26 | V40: 27 | W40: 31 | X40: 35 | Y40: 40 | Z40: 46
G41: kraj | J41: 7080 | K41: 7254 | L41: 7470 | M41: 7623 | N41: 7718.9 | O41: 7814.7 | P41: 7820.4 | Q41: 7682.79 | R41: 7378.26 | S41: 6942.84 | T41: 6562.1 | U41: 6345.32 | V41: 6234.2 | W41: 6199.35 | X41: 6211.71 | Y41: 6289.05 | Z41: 6347.99
F42: privátní sektor | J42: 1384 | K42: 1429 | L42: 1481 | M42: 1548 | N42: 1600 | O42: 1638 | P42: 1724.5 | Q42: 1680.76 | R42: 1587.12 | S42: 1471.58 | T42: 1423.77 | U42: 1414.84 | V42: 1413.97 | W42: 1420.98 | X42: 1440.11 | Y42: 1432.98 | Z42: 1477
F43: církev | J43: 71 | K43: 72 | L43: 74 | M43: 71 | N43: 74 | O43: 76 | P43: 78 | Q43: 79 | R43: 78.99 | S43: 80.76 | T43: 81.26 | U43: 83.72 | V43: 85.31 | W43: 87.24 | X43: 92.37 | Y43: 94.02 | Z43: 93
D44: Komentáře: | Z44: Zdroj: databáze MŠMT
D45: 1) | E45: Včetně zkráceného studia.

Sheet B5.4.4
D4: Tab. B5.4.4: | H4: SŠ – odborné vzdělávání (bez nástavbového studia) – žáci, nově přijatí,
B5: 18 | D5: ve školním roce 2009/10 až 2019/20 – podle formy vzdělávání a zřizovatele
D7: Forma vzdělávání Zřizovatel | J7: 2003/04 | K7: 2004/05 | L7: 2005/06 | M7: 2006/07 | N7: 2007/08 | O7: 2008/09 | P7: 2009/10 | Q7: 2010/11 | R7: 2011/12 | S7: 2012/13 | T7: 2013/14 | U7: 2014/15 | V7: 2015/16 | W7: 2016/17 | X7: 2017/18 | Y7: 2018/19 | Z7: 2019/20
D12: Žáci
E13: Celkem | J13: 389706 | K13: 390911 | L13: 387745 | M13: 386991 | N13: 379404 | O13: 373246 | P13: 367889 | Q13: 350645 | R13: 329773 | S13: 309575 | T13: 293782 | U13: 285118 | V13: 278625 | W13: 276877 | X13: 275495 | Y13: 275878 | Z13: 279593
E14: v tom | F14: veřejný | J14: 337632 | K14: 338222 | L14: 334929 | M14: 332448 | N14: 325251 | O14: 319172 | P14: 313116 | Q14: 299440 | R14: 282753 | S14: 265517 | T14: 251451 | U14: 242601 | V14: 236092 | W14: 232868 | X14: 230549 | Y14: 230918 | Z14: 233309
F15: v tom | G15: MŠMT | J15: 1557 | K15: 1499 | L15: 1537 | M15: 1492 | N15: 1575 | O15: 1560 | P15: 1600 | Q15: 1526 | R15: 1480 | S15: 1359 | T15: 1288 | U15: 1195 | V15: 1217 | W15: 1179 | X15: 1107 | Y15: 1100 | Z15: 1120
G16: obec | J16: 1036 | K16: 1339 | L16: 1410 | M16: 1572 | N16: 1572 | O16: 1614 | P16: 1635 | Q16: 1615 | R16: 1597 | S16: 1520 | T16: 1540 | U16: 1566 | V16: 1578 | W16: 1525 | X16: 1564 | Y16: 1575 | Z16: 1658
G17: jiný resort | J17: 1843 | K17: 1606 | L17: 1232 | M17: 749 | N17: 906 | O17: 935 | P17: 1089 | Q17: 1022 | R17: 966 | S17: 981 | T17: 1083 | U17: 1104 | V17: 1143 | W17: 1264 | X17: 1385 | Y17: 1517 | Z17: 1703
G18: kraj | J18: 333196 | K18: 333778 | L18: 330750 | M18: 328635 | N18: 321198 | O18: 315063 | P18: 308792 | Q18: 295277 | R18: 278710 | S18: 261657 | T18: 247540 | U18: 238736 | V18: 232154 | W18: 228900 | X18: 226493 | Y18: 226726 | Z18: 228828
F19: privátní sektor | J19: 49732 | K19: 50361 | L19: 50477 | M19: 52195 | N19: 51803 | O19: 51716 | P19: 52423 | Q19: 48768 | R19: 44601 | S19: 41505 | T19: 39754 | U19: 39864 | V19: 39834 | W19: 41210 | X19: 42108 | Y19: 42099 | Z19: 43418
F20: církev | J20: 2342 | K20: 2328 | L20: 2339 | M20: 2348 | N20: 2350 | O20: 2358 | P20: 2350 | Q20: 2437 | R20: 2419 | S20: 2553 | T20: 2577 | U20: 2653 | V20: 2699 | W20: 2799 | X20: 2838 | Y20: 2861 | Z20: 2866
E21: Denní forma vzdělávání | J21: 378950 | K21: 379442 | L21: 376850 | M21: 375598 | N21: 368261 | O21: 362154 | P21: 356867 | Q21: 339550 | R21: 319162 | S21: 298977 | T21: 282901 | U21: 273960 | V21: 267732 | W21: 265721 | X21: 264727 | Y21: 265439 | Z21: 269248
E22: v tom | F22: veřejný | J22: 329982 | K22: 330159 | L22: 327498 | M22: 325158 | N22: 318105 | O22: 312276 | P22: 306328 | Q22: 292831 | R22: 276459 | S22: 259527 | T22: 245384 | U22: 237107 | V22: 230780 | W22: 227859 | X22: 225927 | Y22: 226695 | Z22: 229270
F23: v tom | G23: MŠMT | J23: 1557 | K23: 1499 | L23: 1537 | M23: 1492 | N23: 1575 | O23: 1560 | P23: 1600 | Q23: 1526 | R23: 1480 | S23: 1359 | T23: 1288 | U23: 1195 | V23: 1217 | W23: 1179 | X23: 1107 | Y23: 1100 | Z23: 1120
G24: obec | J24: 1036 | K24: 1339 | L24: 1410 | M24: 1572 | N24: 1572 | O24: 1614 | P24: 1635 | Q24: 1615 | R24: 1597 | S24: 1520 | T24: 1540 | U24: 1566 | V24: 1563 | W24: 1519 | X24: 1496 | Y24: 1464 | Z24: 1529
G25: jiný resort | J25: 1494 | K25: 1249 | L25: 951 | M25: 639 | N25: 677 | O25: 733 | P25: 865 | Q25: 779 | R25: 755 | S25: 762 | T25: 703 | U25: 711 | V25: 710 | W25: 789 | X25: 911 | Y25: 1042 | Z25: 1174
G26: kraj | J26: 325895 | K26: 326072 | L26: 323600 | M26: 321455 | N26: 314281 | O26: 308369 | P26: 302228 | Q26: 288911 | R26: 272627 | S26: 255886 | T26: 241853 | U26: 233635 | V26: 227290 | W26: 224372 | X26: 222413 | Y26: 223089 | Z26: 225447
F27: privátní sektor | J27: 46682 | K27: 47021 | L27: 47066 | M27: 48180 | N27: 47860 | O27: 47604 | P27: 48239 | Q27: 44367 | R27: 40391 | S27: 37113 | T27: 35185 | U27: 34518 | V27: 34587 | W27: 35415 | X27: 36248 | Y27: 36198 | Z27: 37406
F28: církev | J28: 2286 | K28: 2262 | L28: 2286 | M28: 2260 | N28: 2296 | O28: 2274 | P28: 2300 | Q28: 2352 | R28: 2312 | S28: 2337 | T28: 2332 | U28: 2335 | V28: 2365 | W28: 2447 | X28: 2552 | Y28: 2546 | Z28: 2572
E29: Ostatní formy vzdělávání | J29: 10756 | K29: 11469 | L29: 10895 | M29: 11393 | N29: 11143 | O29: 11092 | P29: 11022 | Q29: 11095 | R29: 10611 | S29: 10598 | T29: 10881 | U29: 11158 | V29: 10893 | W29: 11156 | X29: 10768 | Y29: 10439 | Z29: 10345
E30: v tom | F30: veřejný | J30: 7650 | K30: 8063 | L30: 7431 | M30: 7290 | N30: 7146 | O30: 6896 | P30: 6788 | Q30: 6609 | R30: 6294 | S30: 5990 | T30: 6067 | U30: 5494 | V30: 5312 | W30: 5009 | X30: 4622 | Y30: 4223 | Z30: 4039
F31: v tom | G31: MŠMT | J31: 0 | K31: 0 | L31: 0 | M31: 0 | N31: 0 | O31: 0 | P31: 0 | Q31: 0 | R31: 0 | S31: 0 | T31: 0 | U31: 0 | V31: 0 | W31: 0 | X31: 0 | Y31: 0 | Z31: 0
G32: obec | J32: 0 | K32: 0 | L32: 0 | M32: 0 | N32: 0 | O32: 0 | P32: 0 | Q32: 0 | R32: 0 | S32: 0 | T32: 0 | U32: 0 | V32: 15 | W32: 6 | X32: 68 | Y32: 111 | Z32: 129
G33: jiný resort | J33: 349 | K33: 357 | L33: 281 | M33: 110 | N33: 229 | O33: 202 | P33: 224 | Q33: 243 | R33: 211 | S33: 219 | T33: 380 | U33: 393 | V33: 433 | W33: 475 | X33: 474 | Y33: 475 | Z33: 529
G34: kraj | J34: 7301 | K34: 7706 | L34: 7150 | M34: 7180 | N34: 6917 | O34: 6694 | P34: 6564 | Q34: 6366 | R34: 6083 | S34: 5771 | T34: 5687 | U34: 5101 | V34: 4864 | W34: 4528 | X34: 4080 | Y34: 3637 | Z34: 3381
F35: privátní sektor | J35: 3050 | K35: 3340 | L35: 3411 | M35: 4015 | N35: 3943 | O35: 4112 | P35: 4184 | Q35: 4401 | R35: 4210 | S35: 4392 | T35: 4569 | U35: 5346 | V35: 5247 | W35: 5795 | X35: 5860 | Y35: 5901 | Z35: 6012
F36: církev | J36: 56 | K36: 66 | L36: 53 | M36: 88 | N36: 54 | O36: 84 | P36: 50 | Q36: 85 | R36: 107 | S36: 216 | T36: 245 | U36: 318 | V36: 334 | W36: 352 | X36: 286 | Y36: 315 | Z36: 294
D37: Nově přijatí
E38: Celkem | J38: 119182 | K38: 117488 | L38: 113620 | M38: 117346 | N38: 111829 | O38: 109551 | P38: 106641 | Q38: 94077 | R38: 88596 | S38: 84704 | T38: 83760 | U38: 83544 | V38: 82294 | W38: 81943 | X38: 82298 | Y38: 82577 | Z38: 85053
E39: v tom | F39: veřejný | J39: 103823 | K39: 102320 | L39: 99095 | M39: 100652 | N39: 96337 | O39: 94368 | P39: 91554 | Q39: 81552 | R39: 76901 | S39: 73040 | T39: 71845 | U39: 70624 | V39: 69635 | W39: 68639 | X39: 68952 | Y39: 69214 | Z39: 70816
F40: v tom | G40: MŠMT | J40: 651 | K40: 663 | L40: 699 | M40: 672 | N40: 702 | O40: 667 | P40: 734 | Q40: 595 | R40: 600 | S40: 495 | T40: 432 | U40: 425 | V40: 449 | W40: 430 | X40: 370 | Y40: 392 | Z40: 397
G41: obec | J41: 269 | K41: 422 | L41: 415 | M41: 420 | N41: 456 | O41: 518 | P41: 428 | Q41: 416 | R41: 438 | S41: 451 | T41: 515 | U41: 471 | V41: 446 | W41: 431 | X41: 486 | Y41: 477 | Z41: 519
G42: jiný resort | J42: 479 | K42: 363 | L42: 299 | M42: 214 | N42: 333 | O42: 381 | P42: 452 | Q42: 352 | R42: 268 | S42: 319 | T42: 315 | U42: 290 | V42: 288 | W42: 324 | X42: 403 | Y42: 414 | Z42: 449
G43: kraj | J43: 102424 | K43: 100872 | L43: 97682 | M43: 99346 | N43: 94846 | O43: 92802 | P43: 89940 | Q43: 80189 | R43: 75595 | S43: 71775 | T43: 70583 | U43: 69438 | V43: 68452 | W43: 67454 | X43: 67693 | Y43: 67931 | Z43: 69451
F44: privátní sektor | J44: 14668 | K44: 14428 | L44: 13885 | M44: 15990 | N44: 14808 | O44: 14491 | P44: 14416 | Q44: 11763 | R44: 11006 | S44: 10842 | T44: 11146 | U44: 12052 | V44: 11832 | W44: 12431 | X44: 12494 | Y44: 12481 | Z44: 13284
F45: církev | J45: 691 | K45: 740 | L45: 640 | M45: 704 | N45: 684 | O45: 692 | P45: 671 | Q45: 762 | R45: 689 | S45: 822 | T45: 769 | U45: 868 | V45: 827 | W45: 873 | X45: 852 | Y45: 882 | Z45: 953
E46: Denní forma vzdělávání | J46: 115675 | K46: 113589 | L46: 110588 | M46: 113495 | N46: 108269 | O46: 105880 | P46: 103271 | Q46: 90631 | R46: 85213 | S46: 81325 | T46: 80225 | U46: 79874 | V46: 78729 | W46: 78201 | X46: 78565 | Y46: 79020 | Z46: 81344
E47: v tom | F47: veřejný | J47: 101112 | K47: 99351 | L47: 96825 | M47: 98102 | N47: 93860 | O47: 91862 | P47: 89394 | Q47: 79449 | R47: 74848 | S47: 70956 | T47: 69700 | U47: 68875 | V47: 67749 | W47: 66954 | X47: 67260 | Y47: 67733 | Z47: 69266
F48: v tom | G48: MŠMT | J48: 651 | K48: 663 | L48: 699 | M48: 672 | N48: 702 | O48: 667 | P48: 734 | Q48: 595 | R48: 600 | S48: 495 | T48: 432 | U48: 425 | V48: 449 | W48: 430 | X48: 370 | Y48: 392 | Z48: 397
G49: obec | J49: 269 | K49: 422 | L49: 415 | M49: 420 | N49: 456 | O49: 518 | P49: 428 | Q49: 416 | R49: 438 | S49: 451 | T49: 515 | U49: 471 | V49: 431 | W49: 429 | X49: 440 | Y49: 429 | Z49: 472
G50: jiný resort | J50: 317 | K50: 205 | L50: 178 | M50: 151 | N50: 244 | O50: 277 | P50: 339 | Q50: 230 | R50: 194 | S50: 227 | T50: 212 | U50: 211 | V50: 205 | W50: 268 | X50: 326 | Y50: 334 | Z50: 351
G51: kraj | J51: 99875 | K51: 98061 | L51: 95533 | M51: 96859 | N51: 92458 | O51: 90400 | P51: 87893 | Q51: 78208 | R51: 73616 | S51: 69783 | T51: 68541 | U51: 67768 | V51: 66664 | W51: 65827 | X51: 66124 | Y51: 66578 | Z51: 68046
F52: privátní sektor | J52: 13872 | K52: 13534 | L52: 13123 | M52: 14723 | N52: 13725 | O52: 13362 | P52: 13206 | Q52: 10461 | R52: 9737 | S52: 9670 | T52: 9842 | U52: 10266 | V52: 10283 | W52: 10493 | X52: 10563 | Y52: 10539 | Z52: 11243
F53: církev | J53: 691 | K53: 704 | L53: 640 | M53: 670 | N53: 684 | O53: 656 | P53: 671 | Q53: 721 | R53: 628 | S53: 699 | T53: 683 | U53: 733 | V53: 697 | W53: 754 | X53: 742 | Y53: 748 | Z53: 835
E54: Ostatní formy vzdělávání | J54: 3507 | K54: 3899 | L54: 3032 | M54: 3851 | N54: 3560 | O54: 3671 | P54: 3370 | Q54: 3446 | R54: 3383 | S54: 3379 | T54: 3535 | U54: 3670 | V54: 3565 | W54: 3742 | X54: 3733 | Y54: 3557 | Z54: 3709
E55: v tom | F55: veřejný | J55: 2711 | K55: 2969 | L55: 2270 | M55: 2550 | N55: 2477 | O55: 2506 | P55: 2160 | Q55: 2103 | R55: 2053 | S55: 2084 | T55: 2145 | U55: 1749 | V55: 1886 | W55: 1685 | X55: 1692 | Y55: 1481 | Z55: 1550
F56: v tom | G56: MŠMT | J56: 0 | K56: 0 | L56: 0 | M56: 0 | N56: 0 | O56: 0 | P56: 0 | Q56: 0 | R56: 0 | S56: 0 | T56: 0 | U56: 0 | V56: 0 | W56: 0 | X56: 0 | Y56: 0 | Z56: 0
G57: obec | J57: 0 | K57: 0 | L57: 0 | M57: 0 | N57: 0 | O57: 0 | P57: 0 | Q57: 0 | R57: 0 | S57: 0 | T57: 0 | U57: 0 | V57: 15 | W57: 2 | X57: 46 | Y57: 48 | Z57: 47
G58: jiný resort | J58: 162 | K58: 158 | L58: 121 | M58: 63 | N58: 89 | O58: 104 | P58: 113 | Q58: 122 | R58: 74 | S58: 92 | T58: 103 | U58: 79 | V58: 83 | W58: 56 | X58: 77 | Y58: 80 | Z58: 98
G59: kraj | J59: 2549 | K59: 2811 | L59: 2149 | M59: 2487 | N59: 2388 | O59: 2402 | P59: 2047 | Q59: 1981 | R59: 1979 | S59: 1992 | T59: 2042 | U59: 1670 | V59: 1788 | W59: 1627 | X59: 1569 | Y59: 1353 | Z59: 1405
F60: privátní sektor | J60: 796 | K60: 894 | L60: 762 | M60: 1267 | N60: 1083 | O60: 1129 | P60: 1210 | Q60: 1302 | R60: 1269 | S60: 1172 | T60: 1304 | U60: 1786 | V60: 1549 | W60: 1938 | X60: 1931 | Y60: 1942 | Z60: 2041
F61: církev | J61: 0 | K61: 36 | L61: 0 | M61: 34 | N61: 0 | O61: 36 | P61: 0 | Q61: 41 | R61: 61 | S61: 123 | T61: 86 | U61: 135 | V61: 130 | W61: 119 | X61: 110 | Y61: 134 | Z61: 118
D62: Absolventi
E63: Celkem | J63: 93578 | K63: 93807 | L63: 94302 | M63: 91900 | N63: 88705 | O63: 85711 | P63: 80255 | Q63: 76531 | R63: 75113 | S63: 71616 | T63: 63770 | U63: 59693 | V63: 55167 | W63: 55412 | X63: 55186 | Y63: 55862 | Z63: .
E64: v tom | F64: veřejný | J64: 81733 | K64: 81861 | L64: 81701 | M64: 79501 | N64: 76401 | O64: 73323 | P64: 68283 | Q64: 65968 | R64: 64806 | S64: 61566 | T64: 54994 | U64: 51238 | V64: 46935 | W64: 46896 | X64: 46335 | Y64: 46931 | Z64: .
F65: v tom | G65: MŠMT | J65: 387 | K65: 358 | L65: 367 | M65: 322 | N65: 327 | O65: 337 | P65: 343 | Q65: 293 | R65: 267 | S65: 248 | T65: 287 | U65: 233 | V65: 201 | W65: 203 | X65: 195 | Y65: 188 | Z65: .
G66: obec | J66: 331 | K66: 306 | L66: 311 | M66: 379 | N66: 406 | O66: 316 | P66: 375 | Q66: 391 | R66: 376 | S66: 340 | T66: 296 | U66: 283 | V66: 288 | W66: 309 | X66: 303 | Y66: 304 | Z66: .
G67: jiný resort | J67: 594 | K67: 473 | L67: 304 | M67: 345 | N67: 214 | O67: 184 | P67: 142 | Q67: 186 | R67: 277 | S67: 208 | T67: 263 | U67: 266 | V67: 278 | W67: 299 | X67: 319 | Y67: 316 | Z67: .
G68: kraj | J68: 80421 | K68: 80724 | L68: 80719 | M68: 78455 | N68: 75454 | O68: 72486 | P68: 67423 | Q68: 65098 | R68: 63886 | S68: 60770 | T68: 54148 | U68: 50456 | V68: 46168 | W68: 46085 | X68: 45518 | Y68: 46123 | Z68: .
F69: privátní sektor | J69: 11235 | K69: 11464 | L69: 12097 | M69: 11749 | N69: 11766 | O69: 11867 | P69: 11471 | Q69: 10094 | R69: 9807 | S69: 9551 | T69: 8257 | U69: 7997 | V69: 7688 | W69: 7962 | X69: 8304 | Y69: 8427 | Z69: .
F70: církev | J70: 610 | K70: 482 | L70: 504 | M70: 650 | N70: 538 | O70: 521 | P70: 501 | Q70: 469 | R70: 500 | S70: 499 | T70: 519 | U70: 458 | V70: 544 | W70: 554 | X70: 547 | Y70: 504 | Z70: .
E71: Denní forma vzdělávání | J71: 91877 | K71: 92146 | L71: 92359 | M71: 89904 | N71: 86767 | O71: 83741 | P71: 78630 | Q71: 74789 | R71: 73229 | S71: 69664 | T71: 61613 | U71: 57111 | V71: 52528 | W71: 52315 | X71: 52383 | Y71: 52852 | Z71: .
E72: v tom | F72: veřejný | J72: 80532 | K72: 80777 | L72: 80569 | M72: 78209 | N72: 75157 | O72: 72188 | P72: 67347 | Q72: 64824 | R72: 63595 | S72: 60455 | T72: 53888 | U72: 50007 | V72: 45797 | W72: 45565 | X72: 45221 | Y72: 45632 | Z72: .
F73: v tom | G73: MŠMT | J73: 387 | K73: 358 | L73: 367 | M73: 322 | N73: 327 | O73: 337 | P73: 343 | Q73: 293 | R73: 267 | S73: 248 | T73: 287 | U73: 233 | V73: 201 | W73: 203 | X73: 195 | Y73: 188 | Z73: .
G74: obec | J74: 331 | K74: 306 | L74: 311 | M74: 379 | N74: 406 | O74: 316 | P74: 375 | Q74: 391 | R74: 376 | S74: 340 | T74: 296 | U74: 283 | V74: 288 | W74: 309 | X74: 301 | Y74: 302 | Z74: .
G75: jiný resort | J75: 417 | K75: 375 | L75: 269 | M75: 255 | N75: 155 | O75: 117 | P75: 141 | Q75: 131 | R75: 177 | S75: 173 | T75: 169 | U75: 136 | V75: 139 | W75: 132 | X75: 157 | Y75: 143 | Z75: .
G76: kraj | J76: 79397 | K76: 79738 | L76: 79622 | M76: 77253 | N76: 74269 | O76: 71418 | P76: 66488 | Q76: 64009 | R76: 62775 | S76: 59694 | T76: 53136 | U76: 49355 | V76: 45169 | W76: 44921 | X76: 44568 | Y76: 44999 | Z76: .
F77: privátní sektor | J77: 10752 | K77: 10887 | L77: 11286 | M77: 11068 | N77: 11072 | O77: 11042 | P77: 10782 | Q77: 9509 | R77: 9134 | S77: 8726 | T77: 7252 | U77: 6696 | V77: 6264 | W77: 6331 | X77: 6667 | Y77: 6815 | Z77: .
F78: církev | J78: 593 | K78: 482 | L78: 504 | M78: 627 | N78: 538 | O78: 511 | P78: 501 | Q78: 456 | R78: 500 | S78: 483 | T78: 473 | U78: 408 | V78: 467 | W78: 419 | X78: 495 | Y78: 405 | Z78: .
E79: Ostatní formy vzdělávání | J79: 1701 | K79: 1661 | L79: 1943 | M79: 1996 | N79: 1938 | O79: 1970 | P79: 1625 | Q79: 1742 | R79: 1884 | S79: 1952 | T79: 2157 | U79: 2582 | V79: 2639 | W79: 3097 | X79: 2803 | Y79: 3010 | Z79: .
E80: v tom | F80: veřejný | J80: 1201 | K80: 1084 | L80: 1132 | M80: 1292 | N80: 1244 | O80: 1135 | P80: 936 | Q80: 1144 | R80: 1211 | S80: 1111 | T80: 1106 | U80: 1231 | V80: 1138 | W80: 1331 | X80: 1114 | Y80: 1299 | Z80: .
F81: v tom | G81: MŠMT | J81: 0 | K81: 0 | L81: 0 | M81: 0 | N81: 0 | O81: 0 | P81: 0 | Q81: 0 | R81: 0 | S81: 0 | T81: 0 | U81: 0 | V81: 0 | W81: 0 | X81: 0 | Y81: 0 | Z81: .
G82: obec | J82: 0 | K82: 0 | L82: 0 | M82: 0 | N82: 0 | O82: 0 | P82: 0 | Q82: 0 | R82: 0 | S82: 0 | T82: 0 | U82: 0 | V82: 0 | W82: 0 | X82: 2 | Y82: 2 | Z82: .
G83: jiný resort | J83: 177 | K83: 98 | L83: 35 | M83: 90 | N83: 59 | O83: 67 | P83: 1 | Q83: 55 | R83: 100 | S83: 35 | T83: 94 | U83: 130 | V83: 139 | W83: 167 | X83: 162 | Y83: 173 | Z83: .
G84: kraj | J84: 1024 | K84: 986 | L84: 1097 | M84: 1202 | N84: 1185 | O84: 1068 | P84: 935 | Q84: 1089 | R84: 1111 | S84: 1076 | T84: 1012 | U84: 1101 | V84: 999 | W84: 1164 | X84: 950 | Y84: 1124 | Z84: .
F85: privátní sektor | J85: 483 | K85: 577 | L85: 811 | M85: 681 | N85: 694 | O85: 825 | P85: 689 | Q85: 585 | R85: 673 | S85: 825 | T85: 1005 | U85: 1301 | V85: 1424 | W85: 1631 | X85: 1637 | Y85: 1612 | Z85: .
F86: církev | J86: 17 | K86: 0 | L86: 0 | M86: 23 | N86: 0 | O86: 10 | P86: 0 | Q86: 13 | R86: 0 | S86: 16 | T86: 46 | U86: 50 | V86: 77 | W86: 135 | X86: 52 | Y86: 99 | Z86: .
Z87: Zdroj: databáze MŠMT

Sheet B5.4.5
D4: Tab. B5.4.5: | H4: SŠ – lycea – žáci/dívky, nově přijatí/přijaté a absolventi/absolventky
B5: 36 | D5: ve školním roce 2009/10 až 2019/20 – podle zřizovatele
D7: Zřizovatel | J7: 2003/04 | K7: 2004/05 | L7: 2005/06 | M7: 2006/07 | N7: 2007/08 | O7: 2008/09 | P7: 2009/10 | Q7: 2010/11 | R7: 2011/12 | S7: 2012/13 | T7: 2013/14 | U7: 2014/15 | V7: 2015/16 | W7: 2016/17 | X7: 2017/18 | Y7: 2018/19 | Z7: 2019/20
D12: Žáci
E13: Celkem | J13: 7997 | K13: 10607 | L13: 14184 | M13: 18041 | N13: 21298 | O13: 23854 | P13: 24280 | Q13: 23112 | R13: 21100 | S13: 18728 | T13: 16791 | U13: 15670 | V13: 15024 | W13: 14993 | X13: 15068 | Y13: 15112 | Z13: 15140
E14: v tom | F14: veřejný | J14: 7111 | K14: 9491 | L14: 12945 | M14: 16680 | N14: 19853 | O14: 22366 | P14: 22809 | Q14: 21681 | R14: 19760 | S14: 17494 | T14: 15604 | U14: 14435 | V14: 13791 | W14: 13716 | X14: 13774 | Y14: 13793 | Z14: 13691
F15: v tom | G15: MŠMT | J15: 0 | K15: 0 | L15: 0 | M15: 0 | N15: 0 | O15: 0 | P15: 0 | Q15: 0 | R15: 0 | S15: 0 | T15: 0 | U15: 0 | V15: 0 | W15: 0 | X15: 0 | Y15: 0 | Z15: 0
G16: obec | J16: 0 | K16: 16 | L16: 22 | M16: 61 | N16: 116 | O16: 173 | P16: 189 | Q16: 186 | R16: 175 | S16: 142 | T16: 142 | U16: 144 | V16: 158 | W16: 169 | X16: 244 | Y16: 302 | Z16: 309
G17: jiný resort | J17: 404 | K17: 377 | L17: 357 | M17: 400 | N17: 325 | O17: 286 | P17: 285 | Q17: 283 | R17: 241 | S17: 258 | T17: 274 | U17: 293 | V17: 294 | W17: 290 | X17: 290 | Y17: 276 | Z17: 268
G18: kraj | J18: 6707 | K18: 9098 | L18: 12566 | M18: 16219 | N18: 19412 | O18: 21907 | P18: 22335 | Q18: 21212 | R18: 19344 | S18: 17094 | T18: 15188 | U18: 13998 | V18: 13339 | W18: 13257 | X18: 13240 | Y18: 13215 | Z18: 13114
F19: privátní sektor | J19: 792 | K19: 978 | L19: 1093 | M19: 1200 | N19: 1257 | O19: 1266 | P19: 1242 | Q19: 1177 | R19: 1065 | S19: 954 | T19: 895 | U19: 907 | V19: 862 | W19: 888 | X19: 881 | Y19: 918 | Z19: 1107
F20: církev | J20: 94 | K20: 138 | L20: 146 | M20: 161 | N20: 188 | O20: 222 | P20: 229 | Q20: 254 | R20: 275 | S20: 280 | T20: 292 | U20: 328 | V20: 371 | W20: 389 | X20: 413 | Y20: 401 | Z20: 342
D21: Nově přijatí
E22: Celkem | J22: 3159 | K22: 3820 | L22: 5314 | M22: 6280 | N22: 6602 | O22: 6527 | P22: 5883 | Q22: 5082 | R22: 4464 | S22: 3998 | T22: 3809 | U22: 3796 | V22: 3856 | W22: 3908 | X22: 3829 | Y22: 3895 | Z22: 3958
E23: v tom | F23: veřejný | J23: 2853 | K23: 3436 | L23: 4965 | M23: 5914 | N23: 6148 | O23: 6130 | P23: 5550 | Q23: 4781 | R23: 4137 | S23: 3705 | T23: 3510 | U23: 3490 | V23: 3527 | W23: 3574 | X23: 3508 | Y23: 3547 | Z23: 3516
F24: v tom | G24: MŠMT | J24: 0 | K24: 0 | L24: 0 | M24: 0 | N24: 0 | O24: 0 | P24: 0 | Q24: 0 | R24: 0 | S24: 0 | T24: 0 | U24: 0 | V24: 0 | W24: 0 | X24: 0 | Y24: 0 | Z24: 0
G25: obec | J25: 0 | K25: 16 | L25: 9 | M25: 41 | N25: 53 | O25: 75 | P25: 41 | Q25: 44 | R25: 24 | S25: 27 | T25: 45 | U25: 43 | V25: 47 | W25: 37 | X25: 97 | Y25: 98 | Z25: 85
G26: jiný resort | J26: 187 | K26: 112 | L26: 86 | M26: 154 | N26: 93 | O26: 95 | P26: 66 | Q26: 85 | R26: 58 | S26: 96 | T26: 92 | U26: 91 | V26: 85 | W26: 88 | X26: 91 | Y26: 71 | Z26: 77
G27: kraj | J27: 2666 | K27: 3308 | L27: 4870 | M27: 5719 | N27: 6002 | O27: 5960 | P27: 5443 | Q27: 4652 | R27: 4055 | S27: 3582 | T27: 3373 | U27: 3356 | V27: 3395 | W27: 3449 | X27: 3320 | Y27: 3378 | Z27: 3354
F28: privátní sektor | J28: 275 | K28: 334 | L28: 306 | M28: 318 | N28: 398 | O28: 326 | P28: 272 | Q28: 228 | R28: 259 | S28: 214 | T28: 223 | U28: 209 | V28: 217 | W28: 235 | X28: 209 | Y28: 242 | Z28: 347
F29: církev | J29: 31 | K29: 50 | L29: 43 | M29: 48 | N29: 56 | O29: 71 | P29: 61 | Q29: 73 | R29: 68 | S29: 79 | T29: 76 | U29: 97 | V29: 112 | W29: 99 | X29: 112 | Y29: 106 | Z29: 95
D30: Absolventi
E31: Celkem | J31: 986 | K31: 1644 | L31: 2167 | M31: 3035 | N31: 3498 | O31: 4696 | P31: 5159 | Q31: 5639 | R31: 5546 | S31: 5099 | T31: 4254 | U31: 3806 | V31: 3334 | W31: 3215 | X31: 3223 | Y31: 3278 | Z31: .
E32: v tom | F32: veřejný | J32: 857 | K32: 1415 | L32: 1892 | M32: 2687 | N32: 3136 | O32: 4421 | P32: 4848 | Q32: 5275 | R32: 5215 | S32: 4824 | T32: 4023 | U32: 3547 | V32: 3099 | W32: 2981 | X32: 2975 | Y32: 3005 | Z32: .
F33: v tom | G33: MŠMT | J33: 0 | K33: 0 | L33: 0 | M33: 0 | N33: 0 | O33: 0 | P33: 0 | Q33: 0 | R33: 0 | S33: 0 | T33: 0 | U33: 0 | V33: 0 | W33: 0 | X33: 0 | Y33: 0 | Z33: .
G34: obec | J34: 0 | K34: 0 | L34: 0 | M34: 0 | N34: 13 | O34: 7 | P34: 45 | Q34: 36 | R34: 58 | S34: 33 | T34: 33 | U34: 19 | V34: 20 | W34: 35 | X34: 31 | Y34: 37 | Z34: .
G35: jiný resort | J35: 90 | K35: 68 | L35: 70 | M35: 103 | N35: 48 | O35: 47 | P35: 61 | Q35: 62 | R35: 62 | S35: 42 | T35: 57 | U35: 40 | V35: 51 | W35: 49 | X35: 58 | Y35: 47 | Z35: .
G36: kraj | J36: 767 | K36: 1347 | L36: 1822 | M36: 2584 | N36: 3075 | O36: 4367 | P36: 4742 | Q36: 5177 | R36: 5095 | S36: 4749 | T36: 3933 | U36: 3488 | V36: 3028 | W36: 2897 | X36: 2886 | Y36: 2921 | Z36: .
F37: privátní sektor | J37: 129 | K37: 199 | L37: 245 | M37: 322 | N37: 317 | O37: 231 | P37: 267 | Q37: 321 | R37: 264 | S37: 219 | T37: 170 | U37: 202 | V37: 164 | W37: 164 | X37: 168 | Y37: 189 | Z37: .
F38: církev | J38: 0 | K38: 30 | L38: 30 | M38: 26 | N38: 45 | O38: 44 | P38: 44 | Q38: 43 | R38: 67 | S38: 56 | T38: 61 | U38: 57 | V38: 71 | W38: 70 | X38: 80 | Y38: 84 | Z38: .
D39: Dívky
E40: Celkem | J40: 3857 | K40: 5230 | L40: 7407 | M40: 9760 | N40: 12028 | O40: 14002 | P40: 14541 | Q40: 14088 | R40: 13118 | S40: 11715 | T40: 10612 | U40: 10029 | V40: 9583 | W40: 9607 | X40: 9668 | Y40: 9730 | Z40: 9728
E41: v tom | F41: veřejný | J41: 3209 | K41: 4447 | L41: 6546 | M41: 8797 | N41: 11053 | O41: 12973 | P41: 13490 | Q41: 13053 | R41: 12111 | S41: 10790 | T41: 9724 | U41: 9099 | V41: 8659 | W41: 8651 | X41: 8697 | Y41: 8722 | Z41: 8610
F42: v tom | G42: MŠMT | J42: 0 | K42: 0 | L42: 0 | M42: 0 | N42: 0 | O42: 0 | P42: 0 | Q42: 0 | R42: 0 | S42: 0 | T42: 0 | U42: 0 | V42: 0 | W42: 0 | X42: 0 | Y42: 0 | Z42: 0
G43: obec | J43: 0 | K43: 15 | L43: 20 | M43: 51 | N43: 90 | O43: 121 | P43: 138 | Q43: 132 | R43: 120 | S43: 95 | T43: 88 | U43: 94 | V43: 101 | W43: 107 | X43: 153 | Y43: 168 | Z43: 168
G44: jiný resort | J44: 103 | K44: 102 | L44: 105 | M44: 101 | N44: 92 | O44: 93 | P44: 86 | Q44: 80 | R44: 62 | S44: 64 | T44: 63 | U44: 71 | V44: 70 | W44: 74 | X44: 79 | Y44: 73 | Z44: 77
G45: kraj | J45: 3106 | K45: 4330 | L45: 6421 | M45: 8645 | N45: 10871 | O45: 12759 | P45: 13266 | Q45: 12841 | R45: 11929 | S45: 10631 | T45: 9573 | U45: 8934 | V45: 8488 | W45: 8470 | X45: 8465 | Y45: 8481 | Z45: 8365
F46: privátní sektor | J46: 564 | K46: 661 | L46: 732 | M46: 813 | N46: 804 | O46: 825 | P46: 842 | Q46: 803 | R46: 756 | S46: 675 | T46: 632 | U46: 648 | V46: 604 | W46: 622 | X46: 617 | Y46: 673 | Z46: 828
F47: církev | J47: 84 | K47: 122 | L47: 129 | M47: 150 | N47: 171 | O47: 204 | P47: 209 | Q47: 232 | R47: 251 | S47: 250 | T47: 256 | U47: 282 | V47: 320 | W47: 334 | X47: 354 | Y47: 335 | Z47: 290
D48: Nově přijaté
E49: Celkem | J49: 1564 | K49: 1879 | L49: 2992 | M49: 3564 | N49: 3931 | O49: 3963 | P49: 3618 | Q49: 3130 | R49: 2848 | S49: 2517 | T49: 2430 | U49: 2445 | V49: 2428 | W49: 2517 | X49: 2451 | Y49: 2515 | Z49: 2483
E50: v tom | F50: veřejný | J50: 1334 | K50: 1620 | L50: 2756 | M50: 3295 | N50: 3626 | O50: 3678 | P50: 3372 | Q50: 2912 | R50: 2596 | S50: 2298 | T50: 2209 | U50: 2219 | V50: 2184 | W50: 2272 | X50: 2202 | Y50: 2243 | Z50: 2145
F51: v tom | G51: MŠMT | J51: 0 | K51: 0 | L51: 0 | M51: 0 | N51: 0 | O51: 0 | P51: 0 | Q51: 0 | R51: 0 | S51: 0 | T51: 0 | U51: 0 | V51: 0 | W51: 0 | X51: 0 | Y51: 0 | Z51: 0
G52: obec | J52: 0 | K52: 15 | L52: 7 | M52: 33 | N52: 38 | O52: 50 | P52: 36 | Q52: 29 | R52: 12 | S52: 18 | T52: 29 | U52: 33 | V52: 27 | W52: 23 | X52: 56 | Y52: 51 | Z52: 39
G53: jiný resort | J53: 49 | K53: 19 | L53: 27 | M53: 28 | N53: 27 | O53: 25 | P53: 22 | Q53: 23 | R53: 9 | S53: 20 | T53: 17 | U53: 26 | V53: 18 | W53: 27 | X53: 24 | Y53: 15 | Z53: 23
G54: kraj | J54: 1285 | K54: 1586 | L54: 2722 | M54: 3234 | N54: 3561 | O54: 3603 | P54: 3314 | Q54: 2860 | R54: 2575 | S54: 2260 | T54: 2163 | U54: 2160 | V54: 2139 | W54: 2222 | X54: 2122 | Y54: 2177 | Z54: 2083
F55: privátní sektor | J55: 201 | K55: 215 | L55: 198 | M55: 221 | N55: 256 | O55: 221 | P55: 194 | Q55: 149 | R55: 190 | S55: 151 | T55: 158 | U55: 141 | V55: 146 | W55: 162 | X55: 154 | Y55: 189 | Z55: 261
F56: církev | J56: 29 | K56: 44 | L56: 38 | M56: 48 | N56: 49 | O56: 64 | P56: 52 | Q56: 69 | R56: 62 | S56: 68 | T56: 63 | U56: 85 | V56: 98 | W56: 83 | X56: 95 | Y56: 83 | Z56: 77
D57: Absolventky
E58: Celkem | J58: 435 | K58: 801 | L58: 1064 | M58: 1551 | N58: 1783 | O58: 2710 | P58: 2989 | Q58: 3409 | R58: 3500 | S58: 3164 | T58: 2672 | U58: 2479 | V58: 2139 | W58: 2086 | X58: 2054 | Y58: 2105 | Z58: .
E59: v tom | F59: veřejný | J59: 339 | K59: 659 | L59: 905 | M59: 1350 | N59: 1551 | O59: 2509 | P59: 2776 | Q59: 3156 | R59: 3248 | S59: 2956 | T59: 2499 | U59: 2269 | V59: 1963 | W59: 1907 | X59: 1864 | Y59: 1893 | Z59: .
F60: v tom | G60: MŠMT | J60: 0 | K60: 0 | L60: 0 | M60: 0 | N60: 0 | O60: 0 | P60: 0 | Q60: 0 | R60: 0 | S60: 0 | T60: 0 | U60: 0 | V60: 0 | W60: 0 | X60: 0 | Y60: 0 | Z60: .
G61: obec | J61: 0 | K61: 0 | L61: 0 | M61: 0 | N61: 13 | O61: 5 | P61: 34 | Q61: 25 | R61: 39 | S61: 28 | T61: 21 | U61: 10 | V61: 16 | W61: 21 | X61: 23 | Y61: 18 | Z61: .
G62: jiný resort | J62: 16 | K62: 19 | L62: 22 | M62: 31 | N62: 13 | O62: 20 | P62: 21 | Q62: 15 | R62: 17 | S62: 15 | T62: 17 | U62: 8 | V62: 16 | W62: 13 | X62: 15 | Y62: 10 | Z62: .
G63: kraj | J63: 323 | K63: 640 | L63: 883 | M63: 1319 | N63: 1525 | O63: 2484 | P63: 2721 | Q63: 3116 | R63: 3192 | S63: 2913 | T63: 2461 | U63: 2251 | V63: 1931 | W63: 1873 | X63: 1826 | Y63: 1865 | Z63: .
F64: privátní sektor | J64: 96 | K64: 116 | L64: 132 | M64: 177 | N64: 191 | O64: 161 | P64: 170 | Q64: 214 | R64: 189 | S64: 160 | T64: 115 | U64: 160 | V64: 116 | W64: 119 | X64: 118 | Y64: 136 | Z64: .
F65: církev | J65: 0 | K65: 26 | L65: 27 | M65: 24 | N65: 41 | O65: 40 | P65: 43 | Q65: 39 | R65: 63 | S65: 48 | T65: 58 | U65: 50 | V65: 60 | W65: 60 | X65: 72 | Y65: 76 | Z65: .
D66: Komentáře: | Z66: Zdroj: databáze MŠMT
E67: Údaje za lycea jsou uvedeny v rámci tabulek "Střední školy – odborné vzdělávání (bez nástavbového studia)".

Sheet B5.4.6
D4: Tab. B5.4.6: | H4: SŠ – odborné vzdělávání (bez nástavbového studia) – žáci, nově přijatí
B5: 18 | D5: ve školním roce 2009/10 až 2019/20 – podle druhu vzdělávání a zřizovatele
D7: Zřizovatel Druh vzdělávání | J7: 2003/04 | K7: 2004/05 | L7: 2005/06 | M7: 2006/07 | N7: 2007/08 | O7: 2008/09 | P7: 2009/10 | Q7: 2010/11 | R7: 2011/12 | S7: 2012/13 | T7: 2013/14 | U7: 2014/15 | V7: 2015/16 | W7: 2016/17 | X7: 2017/18 | Y7: 2018/19 | Z7: 2019/20
D12: Žáci
E13: Celkem | J13: 389706 | K13: 390911 | L13: 387745 | M13: 386991 | N13: 379404 | O13: 373246 | P13: 367889 | Q13: 350645 | R13: 329773 | S13: 309575 | T13: 293782 | U13: 285118 | V13: 278625 | W13: 276877 | X13: 275495 | Y13: 275878 | Z13: 279593
E14: v tom | F14: střední vzdělávání | J14: 2829 | K14: 2648 | L14: 2381 | M14: 1988 | N14: 1749 | O14: 1795 | P14: 1917 | Q14: 2107 | R14: 2053 | S14: 1965 | T14: 1965 | U14: 2040 | V14: 2201 | W14: 2404 | X14: 2612 | Y14: 2723 | Z14: 2719
F15: střední vzdělávání s výučním listem1) | J15: 147891 | K15: 142697 | L15: 136603 | M15: 130847 | N15: 123550 | O15: 116401 | P15: 113609 | Q15: 108529 | R15: 103685 | S15: 100558 | T15: 97491 | U15: 94759 | V15: 91841 | W15: 89467 | X15: 87437 | Y15: 86590 | Z15: 88783
F16: střední vzdělávání s maturitní zkouškou1) | J16: 238986 | K16: 245566 | L16: 248761 | M16: 254156 | N16: 254105 | O16: 255050 | P16: 252363 | Q16: 240009 | R16: 224035 | S16: 207052 | T16: 194326 | U16: 188319 | V16: 184583 | W16: 185006 | X16: 185446 | Y16: 186565 | Z16: 188091
E17: Veřejný | J17: 337632 | K17: 338222 | L17: 334929 | M17: 332448 | N17: 325251 | O17: 319172 | P17: 313116 | Q17: 299440 | R17: 282753 | S17: 265517 | T17: 251451 | U17: 242601 | V17: 236092 | W17: 232868 | X17: 230549 | Y17: 230918 | Z17: 233309
E18: v tom | F18: střední vzdělávání | J18: 2404 | K18: 2201 | L18: 2080 | M18: 1763 | N18: 1517 | O18: 1561 | P18: 1629 | Q18: 1786 | R18: 1709 | S18: 1626 | T18: 1578 | U18: 1619 | V18: 1714 | W18: 1749 | X18: 1811 | Y18: 1885 | Z18: 1871
F19: střední vzdělávání s výučním listem | J19: 133201 | K19: 128900 | L19: 123449 | M19: 118018 | N19: 111428 | O19: 104919 | P19: 101652 | Q19: 97306 | R19: 93144 | S19: 89932 | T19: 87079 | U19: 84733 | V19: 82060 | W19: 79428 | X19: 77215 | Y19: 76775 | Z19: 78591
F20: střední vzdělávání s maturitní zkouškou | J20: 202027 | K20: 207121 | L20: 209400 | M20: 212667 | N20: 212306 | O20: 212692 | P20: 209835 | Q20: 200348 | R20: 187900 | S20: 173959 | T20: 162794 | U20: 156249 | V20: 152318 | W20: 151691 | X20: 151523 | Y20: 152258 | Z20: 152847
E21: Privátní sektor | J21: 49732 | K21: 50361 | L21: 50477 | M21: 52195 | N21: 51803 | O21: 51716 | P21: 52423 | Q21: 48768 | R21: 44601 | S21: 41505 | T21: 39754 | U21: 39864 | V21: 39834 | W21: 41210 | X21: 42108 | Y21: 42099 | Z21: 43418
E22: v tom | F22: střední vzdělávání | J22: 204 | K22: 225 | L22: 173 | M22: 115 | N22: 116 | O22: 121 | P22: 148 | Q22: 160 | R22: 182 | S22: 157 | T22: 178 | U22: 199 | V22: 256 | W22: 396 | X22: 544 | Y22: 618 | Z22: 599
F23: střední vzdělávání s výučním listem | J23: 14481 | K23: 13611 | L23: 12873 | M23: 12501 | N23: 11809 | O23: 11181 | P23: 11645 | Q23: 10903 | R23: 10217 | S23: 10287 | T23: 10083 | U23: 9696 | V23: 9475 | W23: 9725 | X23: 9917 | Y23: 9489 | Z23: 9832
F24: střední vzdělávání s maturitní zkouškou | J24: 35047 | K24: 36525 | L24: 37431 | M24: 39579 | N24: 39878 | O24: 40414 | P24: 40630 | Q24: 37705 | R24: 34202 | S24: 31061 | T24: 29493 | U24: 29969 | V24: 30103 | W24: 31089 | X24: 31647 | Y24: 31992 | Z24: 32987
E25: Církev | J25: 2342 | K25: 2328 | L25: 2339 | M25: 2348 | N25: 2350 | O25: 2358 | P25: 2350 | Q25: 2437 | R25: 2419 | S25: 2553 | T25: 2577 | U25: 2653 | V25: 2699 | W25: 2799 | X25: 2838 | Y25: 2861 | Z25: 2866
E26: v tom | F26: střední vzdělávání | J26: 221 | K26: 222 | L26: 128 | M26: 110 | N26: 116 | O26: 113 | P26: 140 | Q26: 161 | R26: 162 | S26: 182 | T26: 209 | U26: 222 | V26: 231 | W26: 259 | X26: 257 | Y26: 220 | Z26: 249
F27: střední vzdělávání s výučním listem | J27: 209 | K27: 186 | L27: 281 | M27: 328 | N27: 313 | O27: 301 | P27: 312 | Q27: 320 | R27: 324 | S27: 339 | T27: 329 | U27: 330 | V27: 306 | W27: 314 | X27: 305 | Y27: 326 | Z27: 360
F28: střední vzdělávání s maturitní zkouškou | J28: 1912 | K28: 1920 | L28: 1930 | M28: 1910 | N28: 1921 | O28: 1944 | P28: 1898 | Q28: 1956 | R28: 1933 | S28: 2032 | T28: 2039 | U28: 2101 | V28: 2162 | W28: 2226 | X28: 2276 | Y28: 2315 | Z28: 2257
D29: Nově přijatí
E30: Celkem | J30: 119182 | K30: 117488 | L30: 113620 | M30: 117346 | N30: 111829 | O30: 109551 | P30: 106641 | Q30: 94077 | R30: 88596 | S30: 84704 | T30: 83760 | U30: 83544 | V30: 82294 | W30: 81943 | X30: 82298 | Y30: 82577 | Z30: 85053
E31: v tom | F31: střední vzdělávání | J31: 1571 | K31: 1451 | L31: 1290 | M31: 982 | N31: 911 | O31: 949 | P31: 1010 | Q31: 1097 | R31: 1027 | S31: 987 | T31: 993 | U31: 842 | V31: 943 | W31: 1098 | X31: 1098 | Y31: 1010 | Z31: 942
F32: střední vzdělávání s výučním listem1) | J32: 51866 | K32: 49808 | L32: 47068 | M32: 46003 | N32: 42619 | O32: 40429 | P32: 40429 | Q32: 35985 | R32: 34926 | S32: 34441 | T32: 33129 | U32: 33029 | V32: 32010 | W32: 31112 | X32: 31376 | Y32: 31524 | Z32: 32999
F33: střední vzdělávání s maturitní zkouškou1) | J33: 65745 | K33: 66229 | L33: 65262 | M33: 70361 | N33: 68299 | O33: 68173 | P33: 65202 | Q33: 56995 | R33: 52643 | S33: 49276 | T33: 49638 | U33: 49673 | V33: 49341 | W33: 49733 | X33: 49824 | Y33: 50043 | Z33: 51112
E34: Veřejný | J34: 103823 | K34: 102320 | L34: 99095 | M34: 100652 | N34: 96337 | O34: 94368 | P34: 91554 | Q34: 81552 | R34: 76901 | S34: 73040 | T34: 71845 | U34: 70624 | V34: 69635 | W34: 68639 | X34: 68952 | Y34: 69214 | Z34: 70816
E35: v tom | F35: střední vzdělávání | J35: 1349 | K35: 1204 | L35: 1135 | M35: 848 | N35: 821 | O35: 798 | P35: 862 | Q35: 922 | R35: 842 | S35: 828 | T35: 790 | U35: 648 | V35: 744 | W35: 734 | X35: 730 | Y35: 741 | Z35: 687
F36: střední vzdělávání s výučním listem | J36: 46859 | K36: 45249 | L36: 42737 | M36: 41380 | N36: 38488 | O36: 36507 | P36: 36212 | Q36: 32502 | R36: 31481 | S36: 30670 | T36: 29684 | U36: 29444 | V36: 28483 | W36: 27490 | X36: 27599 | Y36: 27882 | Z36: 29139
F37: střední vzdělávání s maturitní zkouškou | J37: 55615 | K37: 55867 | L37: 55223 | M37: 58424 | N37: 57028 | O37: 57063 | P37: 54480 | Q37: 48128 | R37: 44578 | S37: 41542 | T37: 41371 | U37: 40532 | V37: 40408 | W37: 40415 | X37: 40623 | Y37: 40591 | Z37: 40990
E38: Privátní sektor | J38: 14668 | K38: 14428 | L38: 13885 | M38: 15990 | N38: 14808 | O38: 14491 | P38: 14416 | Q38: 11763 | R38: 11006 | S38: 10842 | T38: 11146 | U38: 12052 | V38: 11832 | W38: 12431 | X38: 12494 | Y38: 12481 | Z38: 13284
E39: v tom | F39: střední vzdělávání | J39: 103 | K39: 127 | L39: 99 | M39: 73 | N39: 37 | O39: 84 | P39: 80 | Q39: 75 | R39: 96 | S39: 64 | T39: 91 | U39: 85 | V39: 109 | W39: 236 | X39: 273 | Y39: 185 | Z39: 158
F40: střední vzdělávání s výučním listem | J40: 4944 | K40: 4498 | L40: 4219 | M40: 4505 | N40: 4020 | O40: 3809 | P40: 4103 | Q40: 3368 | R40: 3337 | S40: 3644 | T40: 3335 | U40: 3476 | V40: 3427 | W40: 3507 | X40: 3683 | Y40: 3522 | Z40: 3708
F41: střední vzdělávání s maturitní zkouškou | J41: 9621 | K41: 9803 | L41: 9567 | M41: 11412 | N41: 10751 | O41: 10598 | P41: 10233 | Q41: 8320 | R41: 7573 | S41: 7134 | T41: 7720 | U41: 8491 | V41: 8296 | W41: 8688 | X41: 8538 | Y41: 8774 | Z41: 9418
E42: Církev | J42: 691 | K42: 740 | L42: 640 | M42: 704 | N42: 684 | O42: 692 | P42: 671 | Q42: 762 | R42: 689 | S42: 822 | T42: 769 | U42: 868 | V42: 827 | W42: 873 | X42: 852 | Y42: 882 | Z42: 953
E43: v tom | F43: střední vzdělávání | J43: 119 | K43: 120 | L43: 56 | M43: 61 | N43: 53 | O43: 67 | P43: 68 | Q43: 100 | R43: 89 | S43: 95 | T43: 112 | U43: 109 | V43: 90 | W43: 128 | X43: 95 | Y43: 84 | Z43: 97
F44: střední vzdělávání s výučním listem | J44: 63 | K44: 61 | L44: 112 | M44: 118 | N44: 111 | O44: 113 | P44: 114 | Q44: 115 | R44: 108 | S44: 127 | T44: 110 | U44: 109 | V44: 100 | W44: 115 | X44: 94 | Y44: 120 | Z44: 152
F45: střední vzdělávání s maturitní zkouškou | J45: 509 | K45: 559 | L45: 472 | M45: 525 | N45: 520 | O45: 512 | P45: 489 | Q45: 547 | R45: 492 | S45: 600 | T45: 547 | U45: 650 | V45: 637 | W45: 630 | X45: 663 | Y45: 678 | Z45: 704
D46: Absolventi
E47: Celkem | J47: 93578 | K47: 93807 | L47: 94302 | M47: 91900 | N47: 88705 | O47: 85711 | P47: 80255 | Q47: 76531 | R47: 75113 | S47: 71616 | T47: 63770 | U47: 59693 | V47: 55167 | W47: 55412 | X47: 55186 | Y47: 55862 | Z47: .
E48: v tom | F48: střední vzdělávání | J48: 823 | K48: 861 | L48: 741 | M48: 676 | N48: 616 | O48: 540 | P48: 498 | Q48: 576 | R48: 650 | S48: 578 | T48: 585 | U48: 583 | V48: 645 | W48: 614 | X48: 618 | Y48: 646 | Z48: .
F49: střední vzdělávání s výučním listem1) | J49: 42965 | K49: 41259 | L49: 39003 | M49: 36295 | N49: 34003 | O49: 31552 | P49: 27881 | Q49: 28493 | R49: 27985 | S49: 25433 | T49: 24689 | U49: 23642 | V49: 22095 | W49: 22244 | X49: 21917 | Y49: 21331 | Z49: .
F50: střední vzdělávání s maturitní zkouškou1) | J50: 49790 | K50: 51687 | L50: 54558 | M50: 54929 | N50: 54086 | O50: 53619 | P50: 51876 | Q50: 47462 | R50: 46478 | S50: 45605 | T50: 38496 | U50: 35468 | V50: 32427 | W50: 32554 | X50: 32651 | Y50: 33885 | Z50: .
E51: Veřejný | J51: 81733 | K51: 81861 | L51: 81701 | M51: 79501 | N51: 76401 | O51: 73323 | P51: 68283 | Q51: 65968 | R51: 64806 | S51: 61566 | T51: 54994 | U51: 51238 | V51: 46935 | W51: 46896 | X51: 46335 | Y51: 46931 | Z51: .
E52: v tom | F52: střední vzdělávání | J52: 698 | K52: 752 | L52: 656 | M52: 609 | N52: 510 | O52: 479 | P52: 426 | Q52: 508 | R52: 527 | S52: 471 | T52: 473 | U52: 477 | V52: 508 | W52: 483 | X52: 472 | Y52: 506 | Z52: .
F53: střední vzdělávání s výučním listem | J53: 38586 | K53: 37106 | L53: 34998 | M53: 32702 | N53: 30499 | O53: 28024 | P53: 24824 | Q53: 25371 | R53: 25011 | S53: 22692 | T53: 22003 | U53: 20935 | V53: 19606 | W53: 19589 | X53: 19227 | Y53: 18869 | Z53: .
F54: střední vzdělávání s maturitní zkouškou | J54: 42449 | K54: 44003 | L54: 46047 | M54: 46190 | N54: 45392 | O54: 44820 | P54: 43033 | Q54: 40089 | R54: 39268 | S54: 38403 | T54: 32518 | U54: 29826 | V54: 26821 | W54: 26824 | X54: 26636 | Y54: 27556 | Z54: .
E55: Privátní sektor | J55: 11235 | K55: 11464 | L55: 12097 | M55: 11749 | N55: 11766 | O55: 11867 | P55: 11471 | Q55: 10094 | R55: 9807 | S55: 9551 | T55: 8257 | U55: 7997 | V55: 7688 | W55: 7962 | X55: 8304 | Y55: 8427 | Z55: .
E56: v tom | F56: střední vzdělávání | J56: 51 | K56: 65 | L56: 42 | M56: 36 | N56: 65 | O56: 34 | P56: 38 | Q56: 46 | R56: 78 | S56: 54 | T56: 57 | U56: 65 | V56: 75 | W56: 72 | X56: 67 | Y56: 98 | Z56: .
F57: střední vzdělávání s výučním listem | J57: 4303 | K57: 4072 | L57: 3948 | M57: 3500 | N57: 3412 | O57: 3443 | P57: 2979 | Q57: 3040 | R57: 2885 | S57: 2641 | T57: 2601 | U57: 2604 | V57: 2389 | W57: 2571 | X57: 2605 | Y57: 2365 | Z57: .
F58: střední vzdělávání s maturitní zkouškou | J58: 6881 | K58: 7327 | L58: 8107 | M58: 8213 | N58: 8289 | O58: 8390 | P58: 8454 | Q58: 7008 | R58: 6844 | S58: 6856 | T58: 5599 | U58: 5328 | V58: 5224 | W58: 5319 | X58: 5632 | Y58: 5964 | Z58: .
E59: Církev | J59: 610 | K59: 482 | L59: 504 | M59: 650 | N59: 538 | O59: 521 | P59: 501 | Q59: 469 | R59: 500 | S59: 499 | T59: 519 | U59: 458 | V59: 544 | W59: 554 | X59: 547 | Y59: 504 | Z59: .
E60: v tom | F60: střední vzdělávání | J60: 74 | K60: 44 | L60: 43 | M60: 31 | N60: 41 | O60: 27 | P60: 34 | Q60: 22 | R60: 45 | S60: 53 | T60: 55 | U60: 41 | V60: 62 | W60: 59 | X60: 79 | Y60: 42 | Z60: .
F61: střední vzdělávání s výučním listem | J61: 76 | K61: 81 | L61: 57 | M61: 93 | N61: 92 | O61: 85 | P61: 78 | Q61: 82 | R61: 89 | S61: 100 | T61: 85 | U61: 103 | V61: 100 | W61: 84 | X61: 85 | Y61: 97 | Z61: .
F62: střední vzdělávání s maturitní zkouškou | J62: 460 | K62: 357 | L62: 404 | M62: 526 | N62: 405 | O62: 409 | P62: 389 | Q62: 365 | R62: 366 | S62: 346 | T62: 379 | U62: 314 | V62: 382 | W62: 411 | X62: 383 | Y62: 365 | Z62: .
D63: Komentáře: | Z63: Zdroj: databáze MŠMT
D64: 1) | E64: Údaje za střední vzdělávání s výučním listem a za střední vzdělávání s maturitní zkouškou jsou včetně zkráceného studia, komentář platí pro všechny zřizovatele.

Sheet B5.4.7
D4: Tab. B5.4.7: | H4: SŠ – odborné vzdělávání (bez nástavbového studia) – dívky, nově přijaté
B5: 18 | D5: ve školním roce 2009/10 až 2019/20 – podle druhu vzdělávání a zřizovatele
D7: Zřizovatel Druh vzdělávání | J7: 2003/04 | K7: 2004/05 | L7: 2005/06 | M7: 2006/07 | N7: 2007/08 | O7: 2008/09 | P7: 2009/10 | Q7: 2010/11 | R7: 2011/12 | S7: 2012/13 | T7: 2013/14 | U7: 2014/15 | V7: 2015/16 | W7: 2016/17 | X7: 2017/18 | Y7: 2018/19 | Z7: 2019/20
D12: Dívky
E13: Celkem | J13: 181938 | K13: 183455 | L13: 182321 | M13: 182120 | N13: 177980 | O13: 174865 | P13: 170954 | Q13: 162353 | R13: 152714 | S13: 143176 | T13: 135531 | U13: 131918 | V13: 128728 | W13: 127587 | X13: 126669 | Y13: 127068 | Z13: 129144
E14: v tom | F14: střední vzdělávání | J14: 1516 | K14: 1391 | L14: 1127 | M14: 1062 | N14: 928 | O14: 906 | P14: 974 | Q14: 1039 | R14: 1008 | S14: 938 | T14: 938 | U14: 929 | V14: 994 | W14: 1117 | X14: 1237 | Y14: 1280 | Z14: 1292
F15: střední vzdělávání s výučním listem1) | J15: 51618 | K15: 49963 | L15: 48148 | M15: 46472 | N15: 43189 | O15: 40248 | P15: 38324 | Q15: 36139 | R15: 34492 | S15: 33579 | T15: 32847 | U15: 32481 | V15: 31799 | W15: 30794 | X15: 29856 | Y15: 29599 | Z15: 30590
F16: střední vzdělávání s maturitní zkouškou1) | J16: 128804 | K16: 132101 | L16: 133046 | M16: 134586 | N16: 133863 | O16: 133711 | P16: 131656 | Q16: 125175 | R16: 117214 | S16: 108659 | T16: 101746 | U16: 98508 | V16: 95935 | W16: 95676 | X16: 95576 | Y16: 96189 | Z16: 97262
E17: Veřejný | J17: 152292 | K17: 153207 | L17: 151813 | M17: 150463 | N17: 146451 | O17: 143443 | P17: 140122 | Q17: 133921 | R17: 126847 | S17: 119247 | T17: 112492 | U17: 108138 | V17: 104798 | W17: 103020 | X17: 101634 | Y17: 101765 | Z17: 102656
E18: v tom | F18: střední vzdělávání | J18: 1192 | K18: 1057 | L18: 939 | M18: 921 | N18: 767 | O18: 749 | P18: 777 | Q18: 825 | R18: 781 | S18: 709 | T18: 679 | U18: 674 | V18: 707 | W18: 746 | X18: 811 | Y18: 826 | Z18: 827
F19: střední vzdělávání s výučním listem | J19: 45486 | K19: 44212 | L19: 42431 | M19: 40731 | N19: 37692 | O19: 35000 | P19: 33147 | Q19: 31333 | R19: 29945 | S19: 29186 | T19: 28488 | U19: 28120 | V19: 27538 | W19: 26463 | X19: 25513 | Y19: 25338 | Z19: 26042
F20: střední vzdělávání s maturitní zkouškou | J20: 105614 | K20: 107938 | L20: 108443 | M20: 108811 | N20: 107992 | O20: 107694 | P20: 106198 | Q20: 101763 | R20: 96121 | S20: 89352 | T20: 83325 | U20: 79344 | V20: 76553 | W20: 75811 | X20: 75310 | Y20: 75601 | Z20: 75787
E21: Privátní sektor | J21: 27596 | K21: 28210 | L21: 28479 | M21: 29632 | N21: 29480 | O21: 29385 | P21: 28799 | Q21: 26335 | R21: 23776 | S21: 21705 | T21: 20788 | U21: 21477 | V21: 21591 | W21: 22177 | X21: 22621 | Y21: 22882 | Z21: 24070
E22: v tom | F22: střední vzdělávání | J22: 120 | K22: 127 | L22: 63 | M22: 44 | N22: 53 | O22: 59 | P22: 72 | Q22: 82 | R22: 104 | S22: 88 | T22: 101 | U22: 105 | V22: 140 | W22: 211 | X22: 270 | Y22: 321 | Z22: 311
F23: střední vzdělávání s výučním listem | J23: 5999 | K23: 5626 | L23: 5518 | M23: 5506 | N23: 5268 | O23: 5029 | P23: 4940 | Q23: 4564 | R23: 4290 | S23: 4119 | T23: 4093 | U23: 4086 | V23: 4002 | W23: 4068 | X23: 4089 | Y23: 4005 | Z23: 4278
F24: střední vzdělávání s maturitní zkouškou | J24: 21477 | K24: 22457 | L24: 22898 | M24: 24082 | N24: 24159 | O24: 24297 | P24: 23787 | Q24: 21689 | R24: 19382 | S24: 17498 | T24: 16594 | U24: 17286 | V24: 17449 | W24: 17898 | X24: 18262 | Y24: 18556 | Z24: 19481
E25: Církev | J25: 2050 | K25: 2038 | L25: 2029 | M25: 2025 | N25: 2049 | O25: 2037 | P25: 2033 | Q25: 2097 | R25: 2091 | S25: 2224 | T25: 2251 | U25: 2303 | V25: 2339 | W25: 2390 | X25: 2414 | Y25: 2421 | Z25: 2418
E26: v tom | F26: střední vzdělávání | J26: 204 | K26: 207 | L26: 125 | M26: 97 | N26: 108 | O26: 98 | P26: 125 | Q26: 132 | R26: 123 | S26: 141 | T26: 158 | U26: 150 | V26: 147 | W26: 160 | X26: 156 | Y26: 133 | Z26: 154
F27: střední vzdělávání s výučním listem | J27: 133 | K27: 125 | L27: 199 | M27: 235 | N27: 229 | O27: 219 | P27: 237 | Q27: 242 | R27: 257 | S27: 274 | T27: 266 | U27: 275 | V27: 259 | W27: 263 | X27: 254 | Y27: 256 | Z27: 270
F28: střední vzdělávání s maturitní zkouškou | J28: 1713 | K28: 1706 | L28: 1705 | M28: 1693 | N28: 1712 | O28: 1720 | P28: 1671 | Q28: 1723 | R28: 1711 | S28: 1809 | T28: 1827 | U28: 1878 | V28: 1933 | W28: 1967 | X28: 2004 | Y28: 2032 | Z28: 1994
D29: Nově přijaté
E30: Celkem | J30: 54131 | K30: 53961 | L30: 51994 | M30: 53794 | N30: 50651 | O30: 49829 | P30: 48243 | Q30: 42559 | R30: 40276 | S30: 38439 | T30: 38223 | U30: 38478 | V30: 37304 | W30: 37115 | X30: 37609 | Y30: 37613 | Z30: 38983
E31: v tom | F31: střední vzdělávání | J31: 757 | K31: 697 | L31: 543 | M31: 529 | N31: 492 | O31: 470 | P31: 528 | Q31: 547 | R31: 509 | S31: 462 | T31: 479 | U31: 381 | V31: 432 | W31: 533 | X31: 532 | Y31: 464 | Z31: 464
F32: střední vzdělávání s výučním listem1) | J32: 18384 | K32: 17996 | L32: 16881 | M32: 16762 | N32: 14965 | O32: 14074 | P32: 13879 | Q32: 12339 | R32: 12271 | S32: 12024 | T32: 11697 | U32: 12127 | V32: 11519 | W32: 10861 | X32: 11086 | Y32: 11078 | Z32: 11730
F33: střední vzdělávání s maturitní zkouškou1) | J33: 34990 | K33: 35268 | L33: 34570 | M33: 36503 | N33: 35194 | O33: 35285 | P33: 33836 | Q33: 29673 | R33: 27496 | S33: 25953 | T33: 26047 | U33: 25970 | V33: 25353 | W33: 25721 | X33: 25991 | Y33: 26071 | Z33: 26789
E34: Veřejný | J34: 45576 | K34: 45262 | L34: 43755 | M34: 44137 | N34: 41812 | O34: 41222 | P34: 40009 | Q34: 35809 | R34: 34030 | S34: 32109 | T34: 31674 | U34: 31029 | V34: 30160 | W34: 29688 | X34: 30099 | Y34: 30006 | Z34: 30532
E35: v tom | F35: střední vzdělávání | J35: 603 | K35: 521 | L35: 461 | M35: 453 | N35: 420 | O35: 369 | P35: 425 | Q35: 430 | R35: 387 | S35: 353 | T35: 341 | U35: 272 | V35: 306 | W35: 329 | X35: 339 | Y35: 303 | Z35: 319
F36: střední vzdělávání s výučním listem | J36: 16290 | K36: 16053 | L36: 14970 | M36: 14605 | N36: 13039 | O36: 12315 | P36: 11980 | Q36: 10809 | R36: 10758 | S36: 10451 | T36: 10288 | U36: 10507 | V36: 9965 | W36: 9322 | X36: 9504 | Y36: 9595 | Z36: 9963
F37: střední vzdělávání s maturitní zkouškou | J37: 28683 | K37: 28688 | L37: 28324 | M37: 29079 | N37: 28353 | O37: 28538 | P37: 27604 | Q37: 24570 | R37: 22885 | S37: 21305 | T37: 21045 | U37: 20250 | V37: 19889 | W37: 20037 | X37: 20256 | Y37: 20108 | Z37: 20250
E38: Privátní sektor | J38: 7940 | K38: 8055 | L38: 7690 | M38: 9059 | N38: 8231 | O38: 8029 | P38: 7665 | Q38: 6099 | R38: 5646 | S38: 5621 | T38: 5881 | U38: 6704 | V38: 6437 | W38: 6701 | X38: 6797 | Y38: 6875 | Z38: 7650
E39: v tom | F39: střední vzdělávání | J39: 41 | K39: 64 | L39: 27 | M39: 26 | N39: 20 | O39: 44 | P39: 42 | Q39: 41 | R39: 58 | S39: 33 | T39: 55 | U39: 38 | V39: 72 | W39: 122 | X39: 133 | Y39: 108 | Z39: 81
F40: střední vzdělávání s výučním listem | J40: 2051 | K40: 1900 | L40: 1836 | M40: 2071 | N40: 1834 | O40: 1684 | P40: 1806 | Q40: 1437 | R40: 1427 | S40: 1473 | T40: 1319 | U40: 1528 | V40: 1473 | W40: 1443 | X40: 1509 | Y40: 1401 | Z40: 1654
F41: střední vzdělávání s maturitní zkouškou | J41: 5848 | K41: 6091 | L41: 5827 | M41: 6962 | N41: 6377 | O41: 6301 | P41: 5817 | Q41: 4621 | R41: 4161 | S41: 4115 | T41: 4507 | U41: 5138 | V41: 4892 | W41: 5136 | X41: 5155 | Y41: 5366 | Z41: 5915
E42: Církev | J42: 615 | K42: 644 | L42: 549 | M42: 598 | N42: 608 | O42: 578 | P42: 569 | Q42: 651 | R42: 600 | S42: 709 | T42: 668 | U42: 745 | V42: 707 | W42: 726 | X42: 713 | Y42: 732 | Z42: 801
E43: v tom | F43: střední vzdělávání | J43: 113 | K43: 112 | L43: 55 | M43: 50 | N43: 52 | O43: 57 | P43: 61 | Q43: 76 | R43: 64 | S43: 76 | T43: 83 | U43: 71 | V43: 54 | W43: 82 | X43: 60 | Y43: 53 | Z43: 64
F44: střední vzdělávání s výučním listem | J44: 43 | K44: 43 | L44: 75 | M44: 86 | N44: 92 | O44: 75 | P44: 93 | Q44: 93 | R44: 86 | S44: 100 | T44: 90 | U44: 92 | V44: 81 | W44: 96 | X44: 73 | Y44: 82 | Z44: 113
F45: střední vzdělávání s maturitní zkouškou | J45: 459 | K45: 489 | L45: 419 | M45: 462 | N45: 464 | O45: 446 | P45: 415 | Q45: 482 | R45: 450 | S45: 533 | T45: 495 | U45: 582 | V45: 572 | W45: 548 | X45: 580 | Y45: 597 | Z45: 624
D46: Absolventky
E47: Celkem | J47: 43190 | K47: 43468 | L47: 44080 | M47: 43275 | N47: 41657 | O47: 40833 | P47: 37941 | Q47: 34582 | R47: 34343 | S47: 33088 | T47: 29041 | U47: 27384 | V47: 25229 | W47: 25659 | X47: 24986 | Y47: 25231 | Z47: .
E48: v tom | F48: střední vzdělávání | J48: 453 | K48: 439 | L48: 329 | M48: 369 | N48: 356 | O48: 293 | P48: 270 | Q48: 297 | R48: 348 | S48: 288 | T48: 306 | U48: 282 | V48: 292 | W48: 270 | X48: 277 | Y48: 302 | Z48: .
F49: střední vzdělávání s výučním listem1) | J49: 15279 | K49: 14406 | L49: 13809 | M49: 13047 | N49: 11989 | O49: 11262 | P49: 9634 | Q49: 9646 | R49: 9138 | S49: 8278 | T49: 8233 | U49: 7811 | V49: 7380 | W49: 7752 | X49: 7401 | Y49: 7044 | Z49: .
F50: střední vzdělávání s maturitní zkouškou1) | J50: 27458 | K50: 28623 | L50: 29942 | M50: 29859 | N50: 29312 | O50: 29278 | P50: 28037 | Q50: 24639 | R50: 24857 | S50: 24522 | T50: 20502 | U50: 19291 | V50: 17557 | W50: 17637 | X50: 17308 | Y50: 17885 | Z50: .
E51: Veřejný | J51: 36360 | K51: 36690 | L51: 36909 | M51: 36063 | N51: 34563 | O51: 33821 | P51: 31009 | Q51: 28811 | R51: 28477 | S51: 27582 | T51: 24214 | U51: 22636 | V51: 20441 | W51: 20698 | X51: 19919 | Y51: 19981 | Z51: .
E52: v tom | F52: střední vzdělávání | J52: 360 | K52: 363 | L52: 272 | M52: 326 | N52: 285 | O52: 251 | P52: 219 | Q52: 258 | R52: 266 | S52: 214 | T52: 229 | U52: 210 | V52: 210 | W52: 193 | X52: 194 | Y52: 225 | Z52: .
F53: střední vzdělávání s výučním listem | J53: 13367 | K53: 12637 | L53: 12067 | M53: 11405 | N53: 10477 | O53: 9715 | P53: 8299 | Q53: 8318 | R53: 7830 | S53: 7183 | T53: 7105 | U53: 6658 | V53: 6357 | W53: 6606 | X53: 6314 | Y53: 5967 | Z53: .
F54: střední vzdělávání s maturitní zkouškou | J54: 22633 | K54: 23690 | L54: 24570 | M54: 24332 | N54: 23801 | O54: 23855 | P54: 22491 | Q54: 20235 | R54: 20381 | S54: 20185 | T54: 16880 | U54: 15768 | V54: 13874 | W54: 13899 | X54: 13411 | Y54: 13789 | Z54: .
E55: Privátní sektor | J55: 6304 | K55: 6352 | L55: 6713 | M55: 6640 | N55: 6642 | O55: 6561 | P55: 6485 | Q55: 5361 | R55: 5428 | S55: 5076 | T55: 4372 | U55: 4345 | V55: 4308 | W55: 4470 | X55: 4597 | Y55: 4816 | Z55: .
E56: v tom | F56: střední vzdělávání | J56: 29 | K56: 37 | L56: 16 | M56: 16 | N56: 31 | O56: 18 | P56: 20 | Q56: 19 | R56: 46 | S56: 34 | T56: 33 | U56: 38 | V56: 36 | W56: 40 | X56: 37 | Y56: 51 | Z56: .
F57: střední vzdělávání s výučním listem | J57: 1867 | K57: 1711 | L57: 1697 | M57: 1572 | N57: 1451 | O57: 1486 | P57: 1273 | Q57: 1267 | R57: 1236 | S57: 1011 | T57: 1062 | U57: 1069 | V57: 938 | W57: 1071 | X57: 1017 | Y57: 990 | Z57: .
F58: střední vzdělávání s maturitní zkouškou | J58: 4408 | K58: 4604 | L58: 5000 | M58: 5052 | N58: 5160 | O58: 5057 | P58: 5192 | Q58: 4075 | R58: 4146 | S58: 4031 | T58: 3277 | U58: 3238 | V58: 3334 | W58: 3359 | X58: 3543 | Y58: 3775 | Z58: .
E59: Církev | J59: 526 | K59: 426 | L59: 458 | M59: 572 | N59: 452 | O59: 451 | P59: 447 | Q59: 410 | R59: 438 | S59: 430 | T59: 455 | U59: 403 | V59: 480 | W59: 491 | X59: 470 | Y59: 434 | Z59: .
E60: v tom | F60: střední vzdělávání | J60: 64 | K60: 39 | L60: 41 | M60: 27 | N60: 40 | O60: 24 | P60: 31 | Q60: 20 | R60: 36 | S60: 40 | T60: 44 | U60: 34 | V60: 46 | W60: 37 | X60: 46 | Y60: 26 | Z60: .
F61: střední vzdělávání s výučním listem | J61: 45 | K61: 58 | L61: 45 | M61: 70 | N61: 61 | O61: 61 | P61: 62 | Q61: 61 | R61: 72 | S61: 84 | T61: 66 | U61: 84 | V61: 85 | W61: 75 | X61: 70 | Y61: 87 | Z61: .
F62: střední vzdělávání s maturitní zkouškou | J62: 417 | K62: 329 | L62: 372 | M62: 475 | N62: 351 | O62: 366 | P62: 354 | Q62: 329 | R62: 330 | S62: 306 | T62: 345 | U62: 285 | V62: 349 | W62: 379 | X62: 354 | Y62: 321 | Z62: .
D63: Komentáře: | Z63: Zdroj: databáze MŠMT
D64: 1) | E64: Údaje za střední vzdělávání s výučním listem a za střední vzdělávání s maturitní zkouškou jsou včetně zkráceného studia, komentář platí pro všechny zřizovatele.

Sheet B5.4.8
D4: Tab. B5.4.8: | H4: SŠ – odborné vzdělávání (bez nástavbového studia), denní forma vzdělávání – žáci, nově přijatí, absolventi
B5: 18 | D5: ve školním roce 2009/10 až 2019/20 – podle druhu vzdělávání a zřizovatele
D7: Zřizovatel Druh vzdělávání | J7: 2003/04 | K7: 2004/05 | L7: 2005/06 | M7: 2006/07 | N7: 2007/08 | O7: 2008/09 | P7: 2009/10 | Q7: 2010/11 | R7: 2011/12 | S7: 2012/13 | T7: 2013/14 | U7: 2014/15 | V7: 2015/16 | W7: 2016/17 | X7: 2017/18 | Y7: 2018/19 | Z7: 2019/20
D12: Žáci
E13: Celkem | J13: 378950 | K13: 379442 | L13: 376850 | M13: 375598 | N13: 368261 | O13: 362154 | P13: 356867 | Q13: 339550 | R13: 319162 | S13: 298977 | T13: 282901 | U13: 273960 | V13: 267732 | W13: 265721 | X13: 264727 | Y13: 265439 | Z13: 269248
E14: v tom | F14: střední vzdělávání | J14: 2790 | K14: 2586 | L14: 2296 | M14: 1852 | N14: 1692 | O14: 1675 | P14: 1802 | Q14: 1962 | R14: 1966 | S14: 1940 | T14: 1933 | U14: 2000 | V14: 2162 | W14: 2369 | X14: 2579 | Y14: 2690 | Z14: 2697
F15: střední vzdělávání s výučním listem1) | J15: 146509 | K15: 141058 | L15: 135162 | M15: 129567 | N15: 122135 | O15: 115063 | P15: 112230 | Q15: 107036 | R15: 102184 | S15: 98892 | T15: 95555 | U15: 92759 | V15: 89654 | W15: 86964 | X15: 84864 | Y15: 84002 | Z15: 86075
F16: střední vzdělávání s maturitní zkouškou1) | J16: 229651 | K16: 235798 | L16: 239392 | M16: 244179 | N16: 244434 | O16: 245416 | P16: 242835 | Q16: 230552 | R16: 215012 | S16: 198145 | T16: 185413 | U16: 179201 | V16: 175916 | W16: 176388 | X16: 177284 | Y16: 178747 | Z16: 180476
E17: Veřejný | J17: 329982 | K17: 330159 | L17: 327498 | M17: 325158 | N17: 318105 | O17: 312276 | P17: 306328 | Q17: 292831 | R17: 276459 | S17: 259527 | T17: 245384 | U17: 237107 | V17: 230780 | W17: 227859 | X17: 225927 | Y17: 226695 | Z17: 229270
E18: v tom | F18: střední vzdělávání | J18: 2369 | K18: 2161 | L18: 2020 | M18: 1627 | N18: 1460 | O18: 1441 | P18: 1514 | Q18: 1656 | R18: 1651 | S18: 1626 | T18: 1578 | U18: 1619 | V18: 1714 | W18: 1749 | X18: 1811 | Y18: 1885 | Z18: 1871
F19: střední vzdělávání s výučním listem | J19: 132388 | K19: 127863 | L19: 122598 | M19: 117302 | N19: 110582 | O19: 104091 | P19: 100801 | Q19: 96380 | R19: 92146 | S19: 88899 | T19: 85850 | U19: 83463 | V19: 80666 | W19: 77877 | X19: 75613 | Y19: 75153 | Z19: 76860
F20: střední vzdělávání s maturitní zkouškou | J20: 195225 | K20: 200135 | L20: 202880 | M20: 206229 | N20: 206063 | O20: 206744 | P20: 204013 | Q20: 194795 | R20: 182662 | S20: 169002 | T20: 157956 | U20: 152025 | V20: 148400 | W20: 148233 | X20: 148503 | Y20: 149657 | Z20: 150539
E21: Privátní sektor | J21: 46682 | K21: 47021 | L21: 47066 | M21: 48180 | N21: 47860 | O21: 47604 | P21: 48239 | Q21: 44367 | R21: 40391 | S21: 37113 | T21: 35185 | U21: 34518 | V21: 34587 | W21: 35415 | X21: 36248 | Y21: 36198 | Z21: 37406
E22: v tom | F22: střední vzdělávání | J22: 200 | K22: 203 | L22: 148 | M22: 115 | N22: 116 | O22: 121 | P22: 148 | Q22: 145 | R22: 153 | S22: 132 | T22: 146 | U22: 159 | V22: 217 | W22: 361 | X22: 511 | Y22: 585 | Z22: 577
F23: střední vzdělávání s výučním listem | J23: 13912 | K23: 13009 | L23: 12283 | M23: 11937 | N23: 11240 | O23: 10671 | P23: 11117 | Q23: 10336 | R23: 9714 | S23: 9654 | T23: 9376 | U23: 8966 | V23: 8682 | W23: 8792 | X23: 8963 | Y23: 8548 | Z23: 8867
F24: střední vzdělávání s maturitní zkouškou | J24: 32570 | K24: 33809 | L24: 34635 | M24: 36128 | N24: 36504 | O24: 36812 | P24: 36974 | Q24: 33886 | R24: 30524 | S24: 27327 | T24: 25663 | U24: 25393 | V24: 25688 | W24: 26262 | X24: 26774 | Y24: 27065 | Z24: 27962
E25: Církev | J25: 2286 | K25: 2262 | L25: 2286 | M25: 2260 | N25: 2296 | O25: 2274 | P25: 2300 | Q25: 2352 | R25: 2312 | S25: 2337 | T25: 2332 | U25: 2335 | V25: 2365 | W25: 2447 | X25: 2552 | Y25: 2546 | Z25: 2572
E26: v tom | F26: střední vzdělávání | J26: 221 | K26: 222 | L26: 128 | M26: 110 | N26: 116 | O26: 113 | P26: 140 | Q26: 161 | R26: 162 | S26: 182 | T26: 209 | U26: 222 | V26: 231 | W26: 259 | X26: 257 | Y26: 220 | Z26: 249
F27: střední vzdělávání s výučním listem | J27: 209 | K27: 186 | L27: 281 | M27: 328 | N27: 313 | O27: 301 | P27: 312 | Q27: 320 | R27: 324 | S27: 339 | T27: 329 | U27: 330 | V27: 306 | W27: 295 | X27: 288 | Y27: 301 | Z27: 348
F28: střední vzdělávání s maturitní zkouškou | J28: 1856 | K28: 1854 | L28: 1877 | M28: 1822 | N28: 1867 | O28: 1860 | P28: 1848 | Q28: 1871 | R28: 1826 | S28: 1816 | T28: 1794 | U28: 1783 | V28: 1828 | W28: 1893 | X28: 2007 | Y28: 2025 | Z28: 1975
D29: Nově přijatí
E30: Celkem | J30: 115675 | K30: 113589 | L30: 110588 | M30: 113495 | N30: 108269 | O30: 105880 | P30: 103271 | Q30: 90631 | R30: 85213 | S30: 81325 | T30: 80225 | U30: 79874 | V30: 78729 | W30: 78201 | X30: 78565 | Y30: 79020 | Z30: 81344
E31: v tom | F31: střední vzdělávání | J31: 1559 | K31: 1411 | L31: 1243 | M31: 905 | N31: 881 | O31: 883 | P31: 943 | Q31: 1010 | R31: 1007 | S31: 978 | T31: 971 | U31: 826 | V31: 922 | W31: 1078 | X31: 1082 | Y31: 993 | Z31: 934
F32: střední vzdělávání s výučním listem1) | J32: 51338 | K32: 49040 | L32: 46507 | M32: 45488 | N32: 42093 | O32: 39898 | P32: 39906 | Q32: 35434 | R32: 34304 | S32: 33818 | T32: 32433 | U32: 32237 | V32: 31173 | W32: 30177 | X32: 30328 | Y32: 30435 | Z32: 31902
F33: střední vzdělávání s maturitní zkouškou1) | J33: 62778 | K33: 63138 | L33: 62838 | M33: 67102 | N33: 65295 | O33: 65099 | P33: 62422 | Q33: 54187 | R33: 49902 | S33: 46529 | T33: 46821 | U33: 46811 | V33: 46634 | W33: 46946 | X33: 47155 | Y33: 47592 | Z33: 48508
E34: Veřejný | J34: 101112 | K34: 99351 | L34: 96825 | M34: 98102 | N34: 93860 | O34: 91862 | P34: 89394 | Q34: 79449 | R34: 74848 | S34: 70956 | T34: 69700 | U34: 68875 | V34: 67749 | W34: 66954 | X34: 67260 | Y34: 67733 | Z34: 69266
E35: v tom | F35: střední vzdělávání | J35: 1337 | K35: 1179 | L35: 1088 | M35: 771 | N35: 791 | O35: 732 | P35: 795 | Q35: 850 | R35: 842 | S35: 828 | T35: 790 | U35: 648 | V35: 744 | W35: 734 | X35: 730 | Y35: 741 | Z35: 687
F36: střední vzdělávání s výučním listem | J36: 46476 | K36: 44652 | L36: 42319 | M36: 41045 | N36: 38108 | O36: 36119 | P36: 35890 | Q36: 32095 | R36: 31052 | S36: 30300 | T36: 29210 | U36: 28899 | V36: 27931 | W36: 26872 | X36: 26893 | Y36: 27156 | Z36: 28351
F37: střední vzdělávání s maturitní zkouškou | J37: 53299 | K37: 53520 | L37: 53418 | M37: 56286 | N37: 54961 | O37: 55011 | P37: 52709 | Q37: 46504 | R37: 42954 | S37: 39828 | T37: 39700 | U37: 39328 | V37: 39074 | W37: 39348 | X37: 39637 | Y37: 39836 | Z37: 40228
E38: Privátní sektor | J38: 13872 | K38: 13534 | L38: 13123 | M38: 14723 | N38: 13725 | O38: 13362 | P38: 13206 | Q38: 10461 | R38: 9737 | S38: 9670 | T38: 9842 | U38: 10266 | V38: 10283 | W38: 10493 | X38: 10563 | Y38: 10539 | Z38: 11243
E39: v tom | F39: střední vzdělávání | J39: 103 | K39: 112 | L39: 99 | M39: 73 | N39: 37 | O39: 84 | P39: 80 | Q39: 60 | R39: 76 | S39: 55 | T39: 69 | U39: 69 | V39: 88 | W39: 216 | X39: 257 | Y39: 168 | Z39: 150
F40: střední vzdělávání s výučním listem | J40: 4799 | K40: 4327 | L40: 4076 | M40: 4325 | N40: 3874 | O40: 3666 | P40: 3902 | Q40: 3224 | R40: 3144 | S40: 3391 | T40: 3113 | U40: 3229 | V40: 3142 | W40: 3209 | X40: 3341 | Y40: 3171 | Z40: 3399
F41: střední vzdělávání s maturitní zkouškou | J41: 8970 | K41: 9095 | L41: 8948 | M41: 10325 | N41: 9814 | O41: 9612 | P41: 9224 | Q41: 7177 | R41: 6517 | S41: 6224 | T41: 6660 | U41: 6968 | V41: 7053 | W41: 7068 | X41: 6965 | Y41: 7200 | Z41: 7694
E42: Církev | J42: 691 | K42: 704 | L42: 640 | M42: 670 | N42: 684 | O42: 656 | P42: 671 | Q42: 721 | R42: 628 | S42: 699 | T42: 683 | U42: 733 | V42: 697 | W42: 754 | X42: 742 | Y42: 748 | Z42: 835
E43: v tom | F43: střední vzdělávání | J43: 119 | K43: 120 | L43: 56 | M43: 61 | N43: 53 | O43: 67 | P43: 68 | Q43: 100 | R43: 89 | S43: 95 | T43: 112 | U43: 109 | V43: 90 | W43: 128 | X43: 95 | Y43: 84 | Z43: 97
F44: střední vzdělávání s výučním listem | J44: 63 | K44: 61 | L44: 112 | M44: 118 | N44: 111 | O44: 113 | P44: 114 | Q44: 115 | R44: 108 | S44: 127 | T44: 110 | U44: 109 | V44: 100 | W44: 96 | X44: 94 | Y44: 108 | Z44: 152
F45: střední vzdělávání s maturitní zkouškou | J45: 509 | K45: 523 | L45: 472 | M45: 491 | N45: 520 | O45: 476 | P45: 489 | Q45: 506 | R45: 431 | S45: 477 | T45: 461 | U45: 515 | V45: 507 | W45: 530 | X45: 553 | Y45: 556 | Z45: 586
D46: Absolventi
E47: Celkem | J47: 91877 | K47: 92146 | L47: 92359 | M47: 89904 | N47: 86767 | O47: 83741 | P47: 78630 | Q47: 74789 | R47: 73229 | S47: 69664 | T47: 61613 | U47: 57111 | V47: 52528 | W47: 52315 | X47: 52383 | Y47: 52852 | Z47: .
E48: v tom | F48: střední vzdělávání | J48: 810 | K48: 852 | L48: 717 | M48: 653 | N48: 558 | O48: 522 | P48: 458 | Q48: 530 | R48: 586 | S48: 567 | T48: 578 | U48: 569 | V48: 632 | W48: 604 | X48: 605 | Y48: 635 | Z48: .
F49: střední vzdělávání s výučním listem1) | J49: 42430 | K49: 40752 | L49: 38559 | M49: 35822 | N49: 33547 | O49: 31082 | P49: 27558 | Q49: 27972 | R49: 27531 | S49: 24994 | T49: 24080 | U49: 22929 | V49: 21335 | W49: 21304 | X49: 20902 | Y49: 20263 | Z49: .
F50: střední vzdělávání s maturitní zkouškou1) | J50: 48637 | K50: 50542 | L50: 53083 | M50: 53429 | N50: 52662 | O50: 52137 | P50: 50614 | Q50: 46287 | R50: 45112 | S50: 44103 | T50: 36955 | U50: 33613 | V50: 30561 | W50: 30407 | X50: 30876 | Y50: 31954 | Z50: .
E51: Veřejný | J51: 80532 | K51: 80777 | L51: 80569 | M51: 78209 | N51: 75157 | O51: 72188 | P51: 67347 | Q51: 64824 | R51: 63595 | S51: 60455 | T51: 53888 | U51: 50007 | V51: 45797 | W51: 45565 | X51: 45221 | Y51: 45632 | Z51: .
E52: v tom | F52: střední vzdělávání | J52: 685 | K52: 743 | L52: 632 | M52: 586 | N52: 452 | O52: 461 | P52: 386 | Q52: 462 | R52: 472 | S52: 471 | T52: 473 | U52: 477 | V52: 508 | W52: 483 | X52: 472 | Y52: 506 | Z52: .
F53: střední vzdělávání s výučním listem | J53: 38236 | K53: 36803 | L53: 34806 | M53: 32378 | N53: 30223 | O53: 27740 | P53: 24674 | Q53: 25078 | R53: 24701 | S53: 22389 | T53: 21603 | U53: 20464 | V53: 19065 | W53: 18928 | X53: 18579 | Y53: 18113 | Z53: .
F54: střední vzdělávání s maturitní zkouškou | J54: 41611 | K54: 43231 | L54: 45131 | M54: 45245 | N54: 44482 | O54: 43987 | P54: 42287 | Q54: 39284 | R54: 38422 | S54: 37595 | T54: 31812 | U54: 29066 | V54: 26224 | W54: 26154 | X54: 26170 | Y54: 27013 | Z54: .
E55: Privátní sektor | J55: 10752 | K55: 10887 | L55: 11286 | M55: 11068 | N55: 11072 | O55: 11042 | P55: 10782 | Q55: 9509 | R55: 9134 | S55: 8726 | T55: 7252 | U55: 6696 | V55: 6264 | W55: 6331 | X55: 6667 | Y55: 6815 | Z55: .
E56: v tom | F56: střední vzdělávání | J56: 51 | K56: 65 | L56: 42 | M56: 36 | N56: 65 | O56: 34 | P56: 38 | Q56: 46 | R56: 69 | S56: 43 | T56: 50 | U56: 51 | V56: 62 | W56: 62 | X56: 54 | Y56: 87 | Z56: .
F57: střední vzdělávání s výučním listem | J57: 4118 | K57: 3868 | L57: 3696 | M57: 3351 | N57: 3232 | O57: 3257 | P57: 2806 | Q57: 2812 | R57: 2741 | S57: 2505 | T57: 2392 | U57: 2362 | V57: 2170 | W57: 2292 | X57: 2238 | Y57: 2067 | Z57: .
F58: střední vzdělávání s maturitní zkouškou | J58: 6583 | K58: 6954 | L58: 7548 | M58: 7681 | N58: 7775 | O58: 7751 | P58: 7938 | Q58: 6651 | R58: 6324 | S58: 6178 | T58: 4810 | U58: 4283 | V58: 4032 | W58: 3977 | X58: 4375 | Y58: 4661 | Z58: .
E59: Církev | J59: 593 | K59: 482 | L59: 504 | M59: 627 | N59: 538 | O59: 511 | P59: 501 | Q59: 456 | R59: 500 | S59: 483 | T59: 473 | U59: 408 | V59: 467 | W59: 419 | X59: 495 | Y59: 405 | Z59: .
E60: v tom | F60: střední vzdělávání | J60: 74 | K60: 44 | L60: 43 | M60: 31 | N60: 41 | O60: 27 | P60: 34 | Q60: 22 | R60: 45 | S60: 53 | T60: 55 | U60: 41 | V60: 62 | W60: 59 | X60: 79 | Y60: 42 | Z60: .
F61: střední vzdělávání s výučním listem | J61: 76 | K61: 81 | L61: 57 | M61: 93 | N61: 92 | O61: 85 | P61: 78 | Q61: 82 | R61: 89 | S61: 100 | T61: 85 | U61: 103 | V61: 100 | W61: 84 | X61: 85 | Y61: 83 | Z61: .
F62: střední vzdělávání s maturitní zkouškou | J62: 443 | K62: 357 | L62: 404 | M62: 503 | N62: 405 | O62: 399 | P62: 389 | Q62: 352 | R62: 366 | S62: 330 | T62: 333 | U62: 264 | V62: 305 | W62: 276 | X62: 331 | Y62: 280 | Z62: .
D63: Komentáře: | Z63: Zdroj: databáze MŠMT
D64: 1) | E64: Údaje za střední vzdělávání s výučním listem a za střední vzdělávání s maturitní zkouškou jsou včetně zkráceného studia, komentář platí pro všechny zřizovatele.

Sheet B5.4.9
D4: Tab. B5.4.9: | H4: SŠ – odborné vzdělávání (bez nástavbového studia), ostatní formy vzdělávání – žáci, nově přijatí, absolventi
B5: 18 | D5: ve školním roce 2009/10 až 2019/20 – podle druhu vzdělávání a zřizovatele
D7: Zřizovatel Druh vzdělávání | J7: 2003/04 | K7: 2004/05 | L7: 2005/06 | M7: 2006/07 | N7: 2007/08 | O7: 2008/09 | P7: 2009/10 | Q7: 2010/11 | R7: 2011/12 | S7: 2012/13 | T7: 2013/14 | U7: 2014/15 | V7: 2015/16 | W7: 2016/17 | X7: 2017/18 | Y7: 2018/19 | Z7: 2019/20
D12: Žáci
E13: Celkem | J13: 10756 | K13: 11469 | L13: 10895 | M13: 11393 | N13: 11143 | O13: 11092 | P13: 11022 | Q13: 11095 | R13: 10611 | S13: 10598 | T13: 10881 | U13: 11158 | V13: 10893 | W13: 11156 | X13: 10768 | Y13: 10439 | Z13: 10345
E14: v tom | F14: střední vzdělávání | J14: 39 | K14: 62 | L14: 85 | M14: 136 | N14: 57 | O14: 120 | P14: 115 | Q14: 145 | R14: 87 | S14: 25 | T14: 32 | U14: 40 | V14: 39 | W14: 35 | X14: 33 | Y14: 33 | Z14: 22
F15: střední vzdělávání s výučním listem1) | J15: 1382 | K15: 1639 | L15: 1441 | M15: 1280 | N15: 1415 | O15: 1338 | P15: 1379 | Q15: 1493 | R15: 1501 | S15: 1666 | T15: 1936 | U15: 2000 | V15: 2187 | W15: 2503 | X15: 2573 | Y15: 2588 | Z15: 2708
F16: střední vzdělávání s maturitní zkouškou1) | J16: 9335 | K16: 9768 | L16: 9369 | M16: 9977 | N16: 9671 | O16: 9634 | P16: 9528 | Q16: 9457 | R16: 9023 | S16: 8907 | T16: 8913 | U16: 9118 | V16: 8667 | W16: 8618 | X16: 8162 | Y16: 7818 | Z16: 7615
E17: Veřejný | J17: 7650 | K17: 8063 | L17: 7431 | M17: 7290 | N17: 7146 | O17: 6896 | P17: 6788 | Q17: 6609 | R17: 6294 | S17: 5990 | T17: 6067 | U17: 5494 | V17: 5312 | W17: 5009 | X17: 4622 | Y17: 4223 | Z17: 4039
E18: v tom | F18: střední vzdělávání | J18: 35 | K18: 40 | L18: 60 | M18: 136 | N18: 57 | O18: 120 | P18: 115 | Q18: 130 | R18: 58 | S18: 0 | T18: 0 | U18: 0 | V18: 0 | W18: 0 | X18: 0 | Y18: 0 | Z18: 0
F19: střední vzdělávání s výučním listem | J19: 813 | K19: 1037 | L19: 851 | M19: 716 | N19: 846 | O19: 828 | P19: 851 | Q19: 926 | R19: 998 | S19: 1033 | T19: 1229 | U19: 1270 | V19: 1394 | W19: 1551 | X19: 1602 | Y19: 1622 | Z19: 1731
F20: střední vzdělávání s maturitní zkouškou | J20: 6802 | K20: 6986 | L20: 6520 | M20: 6438 | N20: 6243 | O20: 5948 | P20: 5822 | Q20: 5553 | R20: 5238 | S20: 4957 | T20: 4838 | U20: 4224 | V20: 3918 | W20: 3458 | X20: 3020 | Y20: 2601 | Z20: 2308
E21: Privátní sektor | J21: 3050 | K21: 3340 | L21: 3411 | M21: 4015 | N21: 3943 | O21: 4112 | P21: 4184 | Q21: 4401 | R21: 4210 | S21: 4392 | T21: 4569 | U21: 5346 | V21: 5247 | W21: 5795 | X21: 5860 | Y21: 5901 | Z21: 6012
E22: v tom | F22: střední vzdělávání | J22: 4 | K22: 22 | L22: 25 | M22: 0 | N22: 0 | O22: 0 | P22: 0 | Q22: 15 | R22: 29 | S22: 25 | T22: 32 | U22: 40 | V22: 39 | W22: 35 | X22: 33 | Y22: 33 | Z22: 22
F23: střední vzdělávání s výučním listem | J23: 569 | K23: 602 | L23: 590 | M23: 564 | N23: 569 | O23: 510 | P23: 528 | Q23: 567 | R23: 503 | S23: 633 | T23: 707 | U23: 730 | V23: 793 | W23: 933 | X23: 954 | Y23: 941 | Z23: 965
F24: střední vzdělávání s maturitní zkouškou | J24: 2477 | K24: 2716 | L24: 2796 | M24: 3451 | N24: 3374 | O24: 3602 | P24: 3656 | Q24: 3819 | R24: 3678 | S24: 3734 | T24: 3830 | U24: 4576 | V24: 4415 | W24: 4827 | X24: 4873 | Y24: 4927 | Z24: 5025
E25: Církev | J25: 56 | K25: 66 | L25: 53 | M25: 88 | N25: 54 | O25: 84 | P25: 50 | Q25: 85 | R25: 107 | S25: 216 | T25: 245 | U25: 318 | V25: 334 | W25: 352 | X25: 286 | Y25: 315 | Z25: 294
E26: v tom | F26: střední vzdělávání | J26: 0 | K26: 0 | L26: 0 | M26: 0 | N26: 0 | O26: 0 | P26: 0 | Q26: 0 | R26: 0 | S26: 0 | T26: 0 | U26: 0 | V26: 0 | W26: 0 | X26: 0 | Y26: 0 | Z26: 0
F27: střední vzdělávání s výučním listem | J27: 0 | K27: 0 | L27: 0 | M27: 0 | N27: 0 | O27: 0 | P27: 0 | Q27: 0 | R27: 0 | S27: 0 | T27: 0 | U27: 0 | V27: 0 | W27: 19 | X27: 17 | Y27: 25 | Z27: 12
F28: střední vzdělávání s maturitní zkouškou | J28: 56 | K28: 66 | L28: 53 | M28: 88 | N28: 54 | O28: 84 | P28: 50 | Q28: 85 | R28: 107 | S28: 216 | T28: 245 | U28: 318 | V28: 334 | W28: 333 | X28: 269 | Y28: 290 | Z28: 282
D29: Nově přijatí
E30: Celkem | J30: 3507 | K30: 3899 | L30: 3032 | M30: 3851 | N30: 3560 | O30: 3671 | P30: 3370 | Q30: 3446 | R30: 3383 | S30: 3379 | T30: 3535 | U30: 3670 | V30: 3565 | W30: 3742 | X30: 3733 | Y30: 3557 | Z30: 3709
E31: v tom | F31: střední vzdělávání | J31: 12 | K31: 40 | L31: 47 | M31: 77 | N31: 30 | O31: 66 | P31: 67 | Q31: 87 | R31: 20 | S31: 9 | T31: 22 | U31: 16 | V31: 21 | W31: 20 | X31: 16 | Y31: 17 | Z31: 8
F32: střední vzdělávání s výučním listem1) | J32: 528 | K32: 768 | L32: 561 | M32: 515 | N32: 526 | O32: 531 | P32: 523 | Q32: 551 | R32: 622 | S32: 623 | T32: 696 | U32: 792 | V32: 837 | W32: 935 | X32: 1048 | Y32: 1089 | Z32: 1097
F33: střední vzdělávání s maturitní zkouškou1) | J33: 2967 | K33: 3091 | L33: 2424 | M33: 3259 | N33: 3004 | O33: 3074 | P33: 2780 | Q33: 2808 | R33: 2741 | S33: 2747 | T33: 2817 | U33: 2862 | V33: 2707 | W33: 2787 | X33: 2669 | Y33: 2451 | Z33: 2604
E34: Veřejný | J34: 2711 | K34: 2969 | L34: 2270 | M34: 2550 | N34: 2477 | O34: 2506 | P34: 2160 | Q34: 2103 | R34: 2053 | S34: 2084 | T34: 2145 | U34: 1749 | V34: 1886 | W34: 1685 | X34: 1692 | Y34: 1481 | Z34: 1550
E35: v tom | F35: střední vzdělávání | J35: 12 | K35: 25 | L35: 47 | M35: 77 | N35: 30 | O35: 66 | P35: 67 | Q35: 72 | R35: 0 | S35: 0 | T35: 0 | U35: 0 | V35: 0 | W35: 0 | X35: 0 | Y35: 0 | Z35: 0
F36: střední vzdělávání s výučním listem | J36: 383 | K36: 597 | L36: 418 | M36: 335 | N36: 380 | O36: 388 | P36: 322 | Q36: 407 | R36: 429 | S36: 370 | T36: 474 | U36: 545 | V36: 552 | W36: 618 | X36: 706 | Y36: 726 | Z36: 788
F37: střední vzdělávání s maturitní zkouškou | J37: 2316 | K37: 2347 | L37: 1805 | M37: 2138 | N37: 2067 | O37: 2052 | P37: 1771 | Q37: 1624 | R37: 1624 | S37: 1714 | T37: 1671 | U37: 1204 | V37: 1334 | W37: 1067 | X37: 986 | Y37: 755 | Z37: 762
E38: Privátní sektor | J38: 796 | K38: 894 | L38: 762 | M38: 1267 | N38: 1083 | O38: 1129 | P38: 1210 | Q38: 1302 | R38: 1269 | S38: 1172 | T38: 1304 | U38: 1786 | V38: 1549 | W38: 1938 | X38: 1931 | Y38: 1942 | Z38: 2041
E39: v tom | F39: střední vzdělávání | J39: 0 | K39: 15 | L39: 0 | M39: 0 | N39: 0 | O39: 0 | P39: 0 | Q39: 15 | R39: 20 | S39: 9 | T39: 22 | U39: 16 | V39: 21 | W39: 20 | X39: 16 | Y39: 17 | Z39: 8
F40: střední vzdělávání s výučním listem | J40: 145 | K40: 171 | L40: 143 | M40: 180 | N40: 146 | O40: 143 | P40: 201 | Q40: 144 | R40: 193 | S40: 253 | T40: 222 | U40: 247 | V40: 285 | W40: 298 | X40: 342 | Y40: 351 | Z40: 309
F41: střední vzdělávání s maturitní zkouškou | J41: 651 | K41: 708 | L41: 619 | M41: 1087 | N41: 937 | O41: 986 | P41: 1009 | Q41: 1143 | R41: 1056 | S41: 910 | T41: 1060 | U41: 1523 | V41: 1243 | W41: 1620 | X41: 1573 | Y41: 1574 | Z41: 1724
E42: Církev | J42: 0 | K42: 36 | L42: 0 | M42: 34 | N42: 0 | O42: 36 | P42: 0 | Q42: 41 | R42: 61 | S42: 123 | T42: 86 | U42: 135 | V42: 130 | W42: 119 | X42: 110 | Y42: 134 | Z42: 118
E43: v tom | F43: střední vzdělávání | J43: 0 | K43: 0 | L43: 0 | M43: 0 | N43: 0 | O43: 0 | P43: 0 | Q43: 0 | R43: 0 | S43: 0 | T43: 0 | U43: 0 | V43: 0 | W43: 0 | X43: 0 | Y43: 0 | Z43: 0
F44: střední vzdělávání s výučním listem | J44: 0 | K44: 0 | L44: 0 | M44: 0 | N44: 0 | O44: 0 | P44: 0 | Q44: 0 | R44: 0 | S44: 0 | T44: 0 | U44: 0 | V44: 0 | W44: 19 | X44: 0 | Y44: 12 | Z44: 0
F45: střední vzdělávání s maturitní zkouškou | J45: 0 | K45: 36 | L45: 0 | M45: 34 | N45: 0 | O45: 36 | P45: 0 | Q45: 41 | R45: 61 | S45: 123 | T45: 86 | U45: 135 | V45: 130 | W45: 100 | X45: 110 | Y45: 122 | Z45: 118
D46: Absolventi
E47: Celkem | J47: 1701 | K47: 1661 | L47: 1943 | M47: 1996 | N47: 1938 | O47: 1970 | P47: 1625 | Q47: 1742 | R47: 1884 | S47: 1952 | T47: 2157 | U47: 2582 | V47: 2639 | W47: 3097 | X47: 2803 | Y47: 3010 | Z47: .
E48: v tom | F48: střední vzdělávání | J48: 13 | K48: 9 | L48: 24 | M48: 23 | N48: 58 | O48: 18 | P48: 40 | Q48: 46 | R48: 64 | S48: 11 | T48: 7 | U48: 14 | V48: 13 | W48: 10 | X48: 13 | Y48: 11 | Z48: .
F49: střední vzdělávání s výučním listem1) | J49: 535 | K49: 507 | L49: 444 | M49: 473 | N49: 456 | O49: 470 | P49: 323 | Q49: 521 | R49: 454 | S49: 439 | T49: 609 | U49: 713 | V49: 760 | W49: 940 | X49: 1015 | Y49: 1068 | Z49: .
F50: střední vzdělávání s maturitní zkouškou1) | J50: 1153 | K50: 1145 | L50: 1475 | M50: 1500 | N50: 1424 | O50: 1482 | P50: 1262 | Q50: 1175 | R50: 1366 | S50: 1502 | T50: 1541 | U50: 1855 | V50: 1866 | W50: 2147 | X50: 1775 | Y50: 1931 | Z50: .
E51: Veřejný | J51: 1201 | K51: 1084 | L51: 1132 | M51: 1292 | N51: 1244 | O51: 1135 | P51: 936 | Q51: 1144 | R51: 1211 | S51: 1111 | T51: 1106 | U51: 1231 | V51: 1138 | W51: 1331 | X51: 1114 | Y51: 1299 | Z51: .
E52: v tom | F52: střední vzdělávání | J52: 13 | K52: 9 | L52: 24 | M52: 23 | N52: 58 | O52: 18 | P52: 40 | Q52: 46 | R52: 55 | S52: 0 | T52: 0 | U52: 0 | V52: 0 | W52: 0 | X52: 0 | Y52: 0 | Z52: .
F53: střední vzdělávání s výučním listem | J53: 350 | K53: 303 | L53: 192 | M53: 324 | N53: 276 | O53: 284 | P53: 150 | Q53: 293 | R53: 310 | S53: 303 | T53: 400 | U53: 471 | V53: 541 | W53: 661 | X53: 648 | Y53: 756 | Z53: .
F54: střední vzdělávání s maturitní zkouškou | J54: 838 | K54: 772 | L54: 916 | M54: 945 | N54: 910 | O54: 833 | P54: 746 | Q54: 805 | R54: 846 | S54: 808 | T54: 706 | U54: 760 | V54: 597 | W54: 670 | X54: 466 | Y54: 543 | Z54: .
E55: Privátní sektor | J55: 483 | K55: 577 | L55: 811 | M55: 681 | N55: 694 | O55: 825 | P55: 689 | Q55: 585 | R55: 673 | S55: 825 | T55: 1005 | U55: 1301 | V55: 1424 | W55: 1631 | X55: 1637 | Y55: 1612 | Z55: .
E56: v tom | F56: střední vzdělávání | J56: 0 | K56: 0 | L56: 0 | M56: 0 | N56: 0 | O56: 0 | P56: 0 | Q56: 0 | R56: 9 | S56: 11 | T56: 7 | U56: 14 | V56: 13 | W56: 10 | X56: 13 | Y56: 11 | Z56: .
F57: střední vzdělávání s výučním listem | J57: 185 | K57: 204 | L57: 252 | M57: 149 | N57: 180 | O57: 186 | P57: 173 | Q57: 228 | R57: 144 | S57: 136 | T57: 209 | U57: 242 | V57: 219 | W57: 279 | X57: 367 | Y57: 298 | Z57: .
F58: střední vzdělávání s maturitní zkouškou | J58: 298 | K58: 373 | L58: 559 | M58: 532 | N58: 514 | O58: 639 | P58: 516 | Q58: 357 | R58: 520 | S58: 678 | T58: 789 | U58: 1045 | V58: 1192 | W58: 1342 | X58: 1257 | Y58: 1303 | Z58: .
E59: Církev | J59: 17 | K59: 0 | L59: 0 | M59: 23 | N59: 0 | O59: 10 | P59: 0 | Q59: 13 | R59: 0 | S59: 16 | T59: 46 | U59: 50 | V59: 77 | W59: 135 | X59: 52 | Y59: 99 | Z59: .
E60: v tom | F60: střední vzdělávání | J60: 0 | K60: 0 | L60: 0 | M60: 0 | N60: 0 | O60: 0 | P60: 0 | Q60: 0 | R60: 0 | S60: 0 | T60: 0 | U60: 0 | V60: 0 | W60: 0 | X60: 0 | Y60: 0 | Z60: .
F61: střední vzdělávání s výučním listem | J61: 0 | K61: 0 | L61: 0 | M61: 0 | N61: 0 | O61: 0 | P61: 0 | Q61: 0 | R61: 0 | S61: 0 | T61: 0 | U61: 0 | V61: 0 | W61: 0 | X61: 0 | Y61: 14 | Z61: .
F62: střední vzdělávání s maturitní zkouškou | J62: 17 | K62: 0 | L62: 0 | M62: 23 | N62: 0 | O62: 10 | P62: 0 | Q62: 13 | R62: 0 | S62: 16 | T62: 46 | U62: 50 | V62: 77 | W62: 135 | X62: 52 | Y62: 85 | Z62: .
D63: Komentáře: | Z63: Zdroj: databáze MŠMT
D64: 1) | E64: Údaje za střední vzdělávání s výučním listem a za střední vzdělávání s maturitní zkouškou jsou včetně zkráceného studia, komentář platí pro všechny zřizovatele.

Sheet B5.4.10
D4: Tab. B5.4.10: | H4: SŠ – odborné vzdělávání (bez nástavbového studia) – počet podaných přihlášek v 1. kole
B5: 6 | D5: ve školním roce 2009/10 až 2019/20 – podle druhu vzdělávání a zřizovatele
D7: Zřizovatel Druh vzdělávání | J7: 2003/04 | K7: 2004/05 | L7: 2005/06 | M7: 2006/07 | N7: 2007/08 | O7: 2008/09 | P7: 2009/10 | Q7: 2010/11 | R7: 2011/12 | S7: 2012/13 | T7: 2013/14 | U7: 2014/15 | V7: 2015/16 | W7: 2016/17 | X7: 2017/18 | Y7: 2018/19 | Z7: 2019/20
P11: 1) | Q11: 1) | R11: 1) | S11: 2) | T11: 2) | U11: 2) | V11: 2) | W11: 2) | X11: 2) | Y11: 2) | Z11: 2)
D12: Počet podaných přihlášek v prvním kole přijímacího řízení do denní formy vzdělávání1)
E13: Celkem | J13: . | K13: . | L13: 116114 | M13: 118616 | N13: 107757 | O13: 103759 | P13: 218818 | Q13: 196302 | R13: 184036 | S13: 132665 | T13: 129512 | U13: 130354 | V13: 130060 | W13: 131915 | X13: 134058 | Y13: 137012 | Z13: 142418
E14: v tom | F14: střední vzdělávání s maturitní zkouškou | J14: . | K14: . | L14: 70639 | M14: 74787 | N14: 68325 | O14: 67500 | P14: 151840 | Q14: 133940 | R14: 122405 | S14: 84140 | T14: 83548 | U14: 83794 | V14: 83397 | W14: 85349 | X14: 87558 | Y14: 89531 | Z14: 92585
F15: střední vzdělávání s výučním listem | J15: . | K15: . | L15: 44530 | M15: 43172 | N15: 38762 | O15: 35612 | P15: 66242 | Q15: 61585 | R15: 60782 | S15: 47699 | T15: 45166 | U15: 45778 | V15: 45751 | W15: 45727 | X15: 45652 | Y15: 46536 | Z15: 48915
F16: střední vzdělávání | J16: . | K16: . | L16: 945 | M16: 657 | N16: 670 | O16: 647 | P16: 736 | Q16: 777 | R16: 849 | S16: 826 | T16: 798 | U16: 782 | V16: 912 | W16: 839 | X16: 848 | Y16: 945 | Z16: 918
E17: Veřejný | J17: 95122 | K17: 94410 | L17: 101126 | M17: 102992 | N17: 92847 | O17: 90349 | P17: 195386 | Q17: 176052 | R17: 164741 | S17: 117132 | T17: 114534 | U17: 114520 | V17: 113970 | W17: 115211 | X17: 118224 | Y17: 120412 | Z17: 124594
E18: v tom | F18: střední vzdělávání s maturitní zkouškou | J18: 58296 | K18: 58501 | L18: 60124 | M18: 63478 | N18: 57404 | O18: 57591 | P18: 134588 | Q18: 119248 | R18: 108512 | S18: 73293 | T18: 72881 | U18: 72449 | V18: 71611 | W18: 73212 | X18: 76250 | Y18: 77569 | Z18: 79706
F19: střední vzdělávání s výučním listem | J19: 36493 | K19: 35678 | L19: 40244 | M19: 38961 | N19: 34857 | O19: 32219 | P19: 60185 | Q19: 56166 | R19: 55523 | S19: 43145 | T19: 40989 | U19: 41441 | V19: 41568 | W19: 41295 | X19: 41290 | Y19: 42072 | Z19: 44151
F20: střední vzdělávání | J20: 333 | K20: 231 | L20: 758 | M20: 553 | N20: 586 | O20: 539 | P20: 613 | Q20: 638 | R20: 706 | S20: 694 | T20: 664 | U20: 630 | V20: 791 | W20: 704 | X20: 684 | Y20: 771 | Z20: 737
E21: Privátní sektor | J21: . | K21: . | L21: 14270 | M21: 14884 | N21: 14223 | O21: 12782 | P21: 22314 | Q21: 18885 | R21: 18119 | S21: 14422 | T21: 13955 | U21: 14652 | V21: 14830 | W21: 15476 | X21: 14691 | Y21: 15390 | Z21: 16612
E22: v tom | F22: střední vzdělávání s maturitní zkouškou | J22: . | K22: . | L22: 9956 | M22: 10728 | N22: 10382 | O22: 9417 | P22: 16344 | Q22: 13630 | R22: 12979 | S22: 9988 | T22: 9888 | U22: 10418 | V22: 10783 | W22: 11133 | X22: 10396 | Y22: 10987 | Z22: 11957
F23: střední vzdělávání s výučním listem | J23: . | K23: . | L23: 4229 | M23: 4101 | N23: 3803 | O23: 3302 | P23: 5903 | Q23: 5197 | R23: 5067 | S23: 4378 | T23: 4013 | U23: 4182 | V23: 4000 | W23: 4288 | X23: 4204 | Y23: 4292 | Z23: 4542
F24: střední vzdělávání | J24: . | K24: . | L24: 85 | M24: 55 | N24: 38 | O24: 63 | P24: 67 | Q24: 58 | R24: 73 | S24: 56 | T24: 54 | U24: 52 | V24: 47 | W24: 55 | X24: 91 | Y24: 111 | Z24: 113
E25: Církev | J25: . | K25: . | L25: 718 | M25: 740 | N25: 687 | O25: 628 | P25: 1118 | Q25: 1365 | R25: 1176 | S25: 1111 | T25: 1023 | U25: 1182 | V25: 1260 | W25: 1228 | X25: 1143 | Y25: 1210 | Z25: 1212
E26: v tom | F26: střední vzdělávání s maturitní zkouškou | J26: . | K26: . | L26: 559 | M26: 581 | N26: 539 | O26: 492 | P26: 908 | Q26: 1062 | R26: 914 | S26: 859 | T26: 779 | U26: 927 | V26: 1003 | W26: 1004 | X26: 912 | Y26: 975 | Z26: 922
F27: střední vzdělávání s výučním listem | J27: . | K27: . | L27: 57 | M27: 110 | N27: 102 | O27: 91 | P27: 154 | Q27: 222 | R27: 192 | S27: 176 | T27: 164 | U27: 155 | V27: 183 | W27: 144 | X27: 158 | Y27: 172 | Z27: 222
F28: střední vzdělávání | J28: . | K28: . | L28: 102 | M28: 49 | N28: 46 | O28: 45 | P28: 56 | Q28: 81 | R28: 70 | S28: 76 | T28: 80 | U28: 100 | V28: 74 | W28: 80 | X28: 73 | Y28: 63 | Z28: 68
D29: Komentáře: | Z29: Zdroj: databáze MŠMT
E30: Data bez zkráceného studia.
D31: 1) | E31: Do školního roku 2008/09 v rámci prvního kola přijímacího řízení mohli žáci podat přihlášku pouze na jednu školu, ve školním roce 2009/10 byl systém přijímacího řízení změněn a žáci si mohli podat tři přihlášky, údaje jsou proto s minulými léty nesrovnatelné.
D32: 2) | E32: Od školního roku 2012/13 v rámci prvního kola přijímacího řízení byl systém přijímacího řízení změněn a žáci si mohli podat pouze 2 přihlášky, údaje s minulými léty jsou proto nesrovnatelné.

Sheet B5.4.11
D4: Tab. B5.4.11: | H4: SŠ – odborné vzdělávání (bez nástavbového studia) – počet přijatých přihlášek v 1. kole
B5: 6 | D5: ve školním roce 2009/10 až 2019/20 – podle druhu vzdělávání a zřizovatele
D7: Zřizovatel Druh vzdělávání | J7: 2003/04 | K7: 2004/05 | L7: 2005/06 | M7: 2006/07 | N7: 2007/08 | O7: 2008/09 | P7: 2009/10 | Q7: 2010/11 | R7: 2011/12 | S7: 2012/13 | T7: 2013/14 | U7: 2014/15 | V7: 2015/16 | W7: 2016/17 | X7: 2017/18 | Y7: 2018/19 | Z7: 2019/20
P11: 1) | Q11: 1) | R11: 1) | S11: 2) | T11: 2) | U11: 2) | V11: 2) | W11: 2) | X11: 2) | Y11: 2) | Z11: 2)
D12: Počet přijatých přihlášek v prvním kole přijímacího řízení (červen) do denní formy vzdělávání1)
E13: Celkem | J13: . | K13: . | L13: 100063 | M13: 100705 | N13: 95729 | O13: 93255 | P13: 134399 | Q13: 133689 | R13: 131269 | S13: 107032 | T13: 105496 | U13: 104473 | V13: 105480 | W13: 107704 | X13: 107710 | Y13: 108899 | Z13: 111249
E14: v tom | F14: střední vzdělávání s maturitní zkouškou | J14: . | K14: . | L14: 58398 | M14: 61052 | N14: 59034 | O14: 59150 | P14: 84232 | Q14: 84061 | R14: 81373 | S14: 64621 | T14: 64767 | U14: 63351 | V14: 64470 | W14: 66369 | X14: 66518 | Y14: 66938 | Z14: 67723
F15: střední vzdělávání s výučním listem | J15: . | K15: . | L15: 40802 | M15: 39017 | N15: 36061 | O15: 33482 | P15: 49476 | Q15: 48893 | R15: 49109 | S15: 41635 | T15: 39985 | U15: 40393 | V15: 40184 | W15: 40555 | X15: 40404 | Y15: 41126 | Z15: 42733
F16: střední vzdělávání | J16: . | K16: . | L16: 863 | M16: 636 | N16: 634 | O16: 623 | P16: 691 | Q16: 735 | R16: 787 | S16: 776 | T16: 744 | U16: 729 | V16: 826 | W16: 780 | X16: 788 | Y16: 835 | Z16: 793
E17: Veřejný | J17: 75536 | K17: 75708 | L17: 87466 | M17: 87133 | N17: 82652 | O17: 81258 | P17: 117319 | Q17: 118222 | R17: 116441 | S17: 94480 | T17: 93233 | U17: 91620 | V17: 92633 | W17: 94252 | X17: 94949 | Y17: 95439 | Z17: 97406
E18: v tom | F18: střední vzdělávání s maturitní zkouškou | J18: 43431 | K18: 44350 | L18: 49730 | M18: 51375 | N18: 49564 | O18: 50341 | P18: 71917 | Q18: 73018 | R18: 70907 | S18: 56046 | T18: 56117 | U18: 54152 | V18: 55178 | W18: 56785 | X18: 57481 | Y18: 57298 | Z18: 57882
F19: střední vzdělávání s výučním listem | J19: 31794 | K19: 31134 | L19: 37047 | M19: 35223 | N19: 32536 | O19: 30399 | P19: 44829 | Q19: 44593 | R19: 44875 | S19: 37780 | T19: 36491 | U19: 36875 | V19: 36742 | W19: 36818 | X19: 36829 | Y19: 37438 | Z19: 38855
F20: střední vzdělávání | J20: 311 | K20: 224 | L20: 689 | M20: 535 | N20: 552 | O20: 518 | P20: 573 | Q20: 611 | R20: 659 | S20: 654 | T20: 625 | U20: 593 | V20: 713 | W20: 649 | X20: 639 | Y20: 703 | Z20: 669
E21: Privátní sektor | J21: . | K21: . | L21: 12023 | M21: 12967 | N21: 12500 | O21: 11459 | P21: 16257 | Q21: 14512 | R21: 13947 | S21: 11759 | T21: 11484 | U21: 12019 | V21: 11985 | W21: 12582 | X21: 11961 | Y21: 12551 | Z21: 12942
E22: v tom | F22: střední vzdělávání s maturitní zkouškou | J22: . | K22: . | L22: 8241 | M22: 9224 | N22: 9036 | O22: 8397 | P22: 11690 | Q22: 10314 | R22: 9819 | S22: 8011 | T22: 8082 | U22: 8586 | V22: 8657 | W22: 8926 | X22: 8431 | Y22: 8951 | Z22: 9202
F23: střední vzdělávání s výučním listem | J23: . | K23: . | L23: 3702 | M23: 3689 | N23: 3427 | O23: 2999 | P23: 4502 | Q23: 4143 | R23: 4058 | S23: 3694 | T23: 3349 | U23: 3382 | V23: 3285 | W23: 3602 | X23: 3440 | Y23: 3527 | Z23: 3679
F24: střední vzdělávání | J24: . | K24: . | L24: 80 | M24: 54 | N24: 37 | O24: 63 | P24: 65 | Q24: 55 | R24: 70 | S24: 54 | T24: 53 | U24: 51 | V24: 43 | W24: 54 | X24: 90 | Y24: 73 | Z24: 61
E25: Církev | J25: . | K25: . | L25: 574 | M25: 605 | N25: 577 | O25: 538 | P25: 823 | Q25: 955 | R25: 881 | S25: 793 | T25: 779 | U25: 834 | V25: 862 | W25: 870 | X25: 800 | Y25: 909 | Z25: 901
E26: v tom | F26: střední vzdělávání s maturitní zkouškou | J26: . | K26: . | L26: 427 | M26: 453 | N26: 434 | O26: 412 | P26: 625 | Q26: 729 | R26: 647 | S26: 564 | T26: 568 | U26: 613 | V26: 635 | W26: 658 | X26: 606 | Y26: 689 | Z26: 639
F27: střední vzdělávání s výučním listem | J27: . | K27: . | L27: 53 | M27: 105 | N27: 98 | O27: 84 | P27: 145 | Q27: 157 | R27: 176 | S27: 161 | T27: 145 | U27: 136 | V27: 157 | W27: 135 | X27: 135 | Y27: 161 | Z27: 199
F28: střední vzdělávání | J28: . | K28: . | L28: 94 | M28: 47 | N28: 45 | O28: 42 | P28: 53 | Q28: 69 | R28: 58 | S28: 68 | T28: 66 | U28: 85 | V28: 70 | W28: 77 | X28: 59 | Y28: 59 | Z28: 63
D29: Komentáře: | Z29: Zdroj: databáze MŠMT
E30: Data bez zkráceného studia.
D31: 1) | E31: Do školního roku 2008/09 v rámci prvního kola přijímacího řízení mohli žáci podat přihlášku pouze na jednu školu, ve školním roce 2009/10 byl systém přijímacího řízení změněn a žáci si mohli podat tři přihlášky, údaje jsou proto s minulými léty nesrovnatelné.
D32: 2) | E32: Od školního roku 2012/13 v rámci prvního kola přijímacího řízení byl systém přijímacího řízení změněn a žáci si mohli podat pouze 2 přihlášky, údaje s minulými léty jsou proto nesrovnatelné.

Sheet B5.4.12
D4: Tab. B5.4.12: | H4: SŠ – odborné vzdělávání (bez nástavbového studia) – úspěšnost v 1. kole přijímacího
B5: 6 | D5: ve školním roce 2008/09 až 2018/19 – podle druhu vzdělávání a zřizovatele
D7: Zřizovatel Druh vzdělávání | J7: 2003/04 | K7: 2004/05 | L7: 2005/06 | M7: 2006/07 | N7: 2007/08 | O7: 2008/09 | P7: 2009/10 | Q7: 2010/11 | R7: 2011/12 | S7: 2012/13 | T7: 2013/14 | U7: 2014/15 | V7: 2015/16 | W7: 2016/17 | X7: 2017/18 | Y7: 2018/19 | Z7: 2019/20
P11: 1) | Q11: 1) | R11: 1) | S11: 2) | T11: 2) | U11: 2) | V11: 2) | W11: 2) | X11: 2) | Y11: 2) | Z11: 2)
D12: Úspěšnost v prvním kole přijímacího řízení do denní formy vzdělávání1)
E13: Celkem | J13: x | K13: x | L13: ='B5.4.11'!L13/'B5.4.10'!L13 -> 0.8617651618 | M13: ='B5.4.11'!M13/'B5.4.10'!M13 -> 0.8490001349 | N13: ='B5.4.11'!N13/'B5.4.10'!N13 -> 0.8883784812 | O13: ='B5.4.11'!O13/'B5.4.10'!O13 -> 0.8987654083 | P13: ='B5.4.11'!P13/'B5.4.10'!P13 -> 0.6142044987 | Q13: ='B5.4.11'!Q13/'B5.4.10'!Q13 -> 0.6810373812 | R13: ='B5.4.11'!R13/'B5.4.10'!R13 -> 0.7132789237 | S13: ='B5.4.11'!S13/'B5.4.10'!S13 -> 0.8067840048 | T13: ='B5.4.11'!T13/'B5.4.10'!T13 -> 0.8145654457 | U13: ='B5.4.11'!U13/'B5.4.10'!U13 -> 0.8014560351 | V13: ='B5.4.11'!V13/'B5.4.10'!V13 -> 0.8110103029 | W13: ='B5.4.11'!W13/'B5.4.10'!W13 -> 0.816465148 | X13: ='B5.4.11'!X13/'B5.4.10'!X13 -> 0.8034582047 | Y13: ='B5.4.11'!Y13/'B5.4.10'!Y13 -> 0.794813593 | Z13: ='B5.4.11'!Z13/'B5.4.10'!Z13 -> 0.7811442374
E14: v tom | F14: střední vzdělávání s maturitní zkouškou | J14: x | K14: x | L14: ='B5.4.11'!L14/'B5.4.10'!L14 -> 0.8267104574 | M14: ='B5.4.11'!M14/'B5.4.10'!M14 -> 0.8163450867 | N14: ='B5.4.11'!N14/'B5.4.10'!N14 -> 0.8640175631 | O14: ='B5.4.11'!O14/'B5.4.10'!O14 -> 0.8762962963 | P14: ='B5.4.11'!P14/'B5.4.10'!P14 -> 0.5547418335 | Q14: ='B5.4.11'!Q14/'B5.4.10'!Q14 -> 0.6276019113 | R14: ='B5.4.11'!R14/'B5.4.10'!R14 -> 0.6647849353 | S14: ='B5.4.11'!S14/'B5.4.10'!S14 -> 0.7680175897 | T14: ='B5.4.11'!T14/'B5.4.10'!T14 -> 0.7752070666 | U14: ='B5.4.11'!U14/'B5.4.10'!U14 -> 0.7560326515 | V14: ='B5.4.11'!V14/'B5.4.10'!V14 -> 0.7730493903 | W14: ='B5.4.11'!W14/'B5.4.10'!W14 -> 0.7776189528 | X14: ='B5.4.11'!X14/'B5.4.10'!X14 -> 0.7597021403 | Y14: ='B5.4.11'!Y14/'B5.4.10'!Y14 -> 0.7476516514 | Z14: ='B5.4.11'!Z14/'B5.4.10'!Z14 -> 0.7314683804
F15: střední vzdělávání s výučním listem | J15: x | K15: x | L15: ='B5.4.11'!L15/'B5.4.10'!L15 -> 0.9162811588 | M15: ='B5.4.11'!M15/'B5.4.10'!M15 -> 0.9037570648 | N15: ='B5.4.11'!N15/'B5.4.10'!N15 -> 0.930318353 | O15: ='B5.4.11'!O15/'B5.4.10'!O15 -> 0.9401887004 | P15: ='B5.4.11'!P15/'B5.4.10'!P15 -> 0.7468977386 | Q15: ='B5.4.11'!Q15/'B5.4.10'!Q15 -> 0.7939108549 | R15: ='B5.4.11'!R15/'B5.4.10'!R15 -> 0.8079530124 | S15: ='B5.4.11'!S15/'B5.4.10'!S15 -> 0.8728694522 | T15: ='B5.4.11'!T15/'B5.4.10'!T15 -> 0.8852898198 | U15: ='B5.4.11'!U15/'B5.4.10'!U15 -> 0.8823670759 | V15: ='B5.4.11'!V15/'B5.4.10'!V15 -> 0.8783195996 | W15: ='B5.4.11'!W15/'B5.4.10'!W15 -> 0.8868939576 | X15: ='B5.4.11'!X15/'B5.4.10'!X15 -> 0.8850433716 | Y15: ='B5.4.11'!Y15/'B5.4.10'!Y15 -> 0.8837459171 | Z15: ='B5.4.11'!Z15/'B5.4.10'!Z15 -> 0.8736174997
F16: střední vzdělávání | J16: x | K16: x | L16: ='B5.4.11'!L16/'B5.4.10'!L16 -> 0.9132275132 | M16: ='B5.4.11'!M16/'B5.4.10'!M16 -> 0.9680365297 | N16: ='B5.4.11'!N16/'B5.4.10'!N16 -> 0.9462686567 | O16: ='B5.4.11'!O16/'B5.4.10'!O16 -> 0.9629057187 | P16: ='B5.4.11'!P16/'B5.4.10'!P16 -> 0.9388586957 | Q16: ='B5.4.11'!Q16/'B5.4.10'!Q16 -> 0.9459459459 | R16: ='B5.4.11'!R16/'B5.4.10'!R16 -> 0.9269729093 | S16: ='B5.4.11'!S16/'B5.4.10'!S16 -> 0.9394673123 | T16: ='B5.4.11'!T16/'B5.4.10'!T16 -> 0.9323308271 | U16: ='B5.4.11'!U16/'B5.4.10'!U16 -> 0.9322250639 | V16: ='B5.4.11'!V16/'B5.4.10'!V16 -> 0.9057017544 | W16: ='B5.4.11'!W16/'B5.4.10'!W16 -> 0.9296781883 | X16: ='B5.4.11'!X16/'B5.4.10'!X16 -> 0.929245283 | Y16: ='B5.4.11'!Y16/'B5.4.10'!Y16 -> 0.8835978836 | Z16: ='B5.4.11'!Z16/'B5.4.10'!Z16 -> 0.8638344227
E17: Veřejný | J17: 0.794096003 | K17: 0.8019065777 | L17: ='B5.4.11'!L17/'B5.4.10'!L17 -> 0.8649209897 | M17: ='B5.4.11'!M17/'B5.4.10'!M17 -> 0.8460171664 | N17: ='B5.4.11'!N17/'B5.4.10'!N17 -> 0.8901956983 | O17: ='B5.4.11'!O17/'B5.4.10'!O17 -> 0.8993790745 | P17: ='B5.4.11'!P17/'B5.4.10'!P17 -> 0.6004473197 | Q17: ='B5.4.11'!Q17/'B5.4.10'!Q17 -> 0.6715175062 | R17: ='B5.4.11'!R17/'B5.4.10'!R17 -> 0.7068125118 | S17: ='B5.4.11'!S17/'B5.4.10'!S17 -> 0.8066113445 | T17: ='B5.4.11'!T17/'B5.4.10'!T17 -> 0.8140202909 | U17: ='B5.4.11'!U17/'B5.4.10'!U17 -> 0.8000349284 | V17: ='B5.4.11'!V17/'B5.4.10'!V17 -> 0.812784066 | W17: ='B5.4.11'!W17/'B5.4.10'!W17 -> 0.8180816068 | X17: ='B5.4.11'!X17/'B5.4.10'!X17 -> 0.8031279605 | Y17: ='B5.4.11'!Y17/'B5.4.10'!Y17 -> 0.7926037272 | Z17: ='B5.4.11'!Z17/'B5.4.10'!Z17 -> 0.781787245
E18: v tom | F18: střední vzdělávání s maturitní zkouškou | J18: 0.7450082338 | K18: 0.758106699 | L18: ='B5.4.11'!L18/'B5.4.10'!L18 -> 0.8271239438 | M18: ='B5.4.11'!M18/'B5.4.10'!M18 -> 0.8093355178 | N18: ='B5.4.11'!N18/'B5.4.10'!N18 -> 0.8634241516 | O18: ='B5.4.11'!O18/'B5.4.10'!O18 -> 0.8741122745 | P18: ='B5.4.11'!P18/'B5.4.10'!P18 -> 0.5343492733 | Q18: ='B5.4.11'!Q18/'B5.4.10'!Q18 -> 0.6123205421 | R18: ='B5.4.11'!R18/'B5.4.10'!R18 -> 0.6534484665 | S18: ='B5.4.11'!S18/'B5.4.10'!S18 -> 0.7646842127 | T18: ='B5.4.11'!T18/'B5.4.10'!T18 -> 0.7699812022 | U18: ='B5.4.11'!U18/'B5.4.10'!U18 -> 0.7474499303 | V18: ='B5.4.11'!V18/'B5.4.10'!V18 -> 0.7705240815 | W18: ='B5.4.11'!W18/'B5.4.10'!W18 -> 0.7756242146 | X18: ='B5.4.11'!X18/'B5.4.10'!X18 -> 0.7538491803 | Y18: ='B5.4.11'!Y18/'B5.4.10'!Y18 -> 0.7386713765 | Z18: ='B5.4.11'!Z18/'B5.4.10'!Z18 -> 0.7261937621
F19: střední vzdělávání s výučním listem | J19: 0.8712355794 | K19: 0.8726386008 | L19: ='B5.4.11'!L19/'B5.4.10'!L19 -> 0.9205595865 | M19: ='B5.4.11'!M19/'B5.4.10'!M19 -> 0.9040579041 | N19: ='B5.4.11'!N19/'B5.4.10'!N19 -> 0.9334136615 | O19: ='B5.4.11'!O19/'B5.4.10'!O19 -> 0.9435115925 | P19: ='B5.4.11'!P19/'B5.4.10'!P19 -> 0.7448533688 | Q19: ='B5.4.11'!Q19/'B5.4.10'!Q19 -> 0.7939500766 | R19: ='B5.4.11'!R19/'B5.4.10'!R19 -> 0.808223619 | S19: ='B5.4.11'!S19/'B5.4.10'!S19 -> 0.8756518716 | T19: ='B5.4.11'!T19/'B5.4.10'!T19 -> 0.8902632414 | U19: ='B5.4.11'!U19/'B5.4.10'!U19 -> 0.8898192611 | V19: ='B5.4.11'!V19/'B5.4.10'!V19 -> 0.8839010778 | W19: ='B5.4.11'!W19/'B5.4.10'!W19 -> 0.8915849376 | X19: ='B5.4.11'!X19/'B5.4.10'!X19 -> 0.8919593122 | Y19: ='B5.4.11'!Y19/'B5.4.10'!Y19 -> 0.8898554858 | Z19: ='B5.4.11'!Z19/'B5.4.10'!Z19 -> 0.880048017
F20: střední vzdělávání | J20: 0.9339339339 | K20: 0.9696969697 | L20: ='B5.4.11'!L20/'B5.4.10'!L20 -> 0.9089709763 | M20: ='B5.4.11'!M20/'B5.4.10'!M20 -> 0.9674502712 | N20: ='B5.4.11'!N20/'B5.4.10'!N20 -> 0.9419795222 | O20: ='B5.4.11'!O20/'B5.4.10'!O20 -> 0.961038961 | P20: ='B5.4.11'!P20/'B5.4.10'!P20 -> 0.9347471452 | Q20: ='B5.4.11'!Q20/'B5.4.10'!Q20 -> 0.9576802508 | R20: ='B5.4.11'!R20/'B5.4.10'!R20 -> 0.933427762 | S20: ='B5.4.11'!S20/'B5.4.10'!S20 -> 0.9423631124 | T20: ='B5.4.11'!T20/'B5.4.10'!T20 -> 0.9412650602 | U20: ='B5.4.11'!U20/'B5.4.10'!U20 -> 0.9412698413 | V20: ='B5.4.11'!V20/'B5.4.10'!V20 -> 0.9013906448 | W20: ='B5.4.11'!W20/'B5.4.10'!W20 -> 0.921875 | X20: ='B5.4.11'!X20/'B5.4.10'!X20 -> 0.9342105263 | Y20: ='B5.4.11'!Y20/'B5.4.10'!Y20 -> 0.9118028534 | Z20: ='B5.4.11'!Z20/'B5.4.10'!Z20 -> 0.907734057
E21: Privátní sektor | J21: x | K21: x | L21: ='B5.4.11'!L21/'B5.4.10'!L21 -> 0.8425367905 | M21: ='B5.4.11'!M21/'B5.4.10'!M21 -> 0.8712039774 | N21: ='B5.4.11'!N21/'B5.4.10'!N21 -> 0.8788581874 | O21: ='B5.4.11'!O21/'B5.4.10'!O21 -> 0.8964950712 | P21: ='B5.4.11'!P21/'B5.4.10'!P21 -> 0.7285560635 | Q21: ='B5.4.11'!Q21/'B5.4.10'!Q21 -> 0.7684405613 | R21: ='B5.4.11'!R21/'B5.4.10'!R21 -> 0.7697444671 | S21: ='B5.4.11'!S21/'B5.4.10'!S21 -> 0.8153515462 | T21: ='B5.4.11'!T21/'B5.4.10'!T21 -> 0.8229308492 | U21: ='B5.4.11'!U21/'B5.4.10'!U21 -> 0.8202975703 | V21: ='B5.4.11'!V21/'B5.4.10'!V21 -> 0.8081591369 | W21: ='B5.4.11'!W21/'B5.4.10'!W21 -> 0.8130007754 | X21: ='B5.4.11'!X21/'B5.4.10'!X21 -> 0.814171942 | Y21: ='B5.4.11'!Y21/'B5.4.10'!Y21 -> 0.8155295647 | Z21: ='B5.4.11'!Z21/'B5.4.10'!Z21 -> 0.7790753672
E22: v tom | F22: střední vzdělávání s maturitní zkouškou | J22: x | K22: x | L22: ='B5.4.11'!L22/'B5.4.10'!L22 -> 0.8277420651 | M22: ='B5.4.11'!M22/'B5.4.10'!M22 -> 0.8598061148 | N22: ='B5.4.11'!N22/'B5.4.10'!N22 -> 0.8703525332 | O22: ='B5.4.11'!O22/'B5.4.10'!O22 -> 0.8916852501 | P22: ='B5.4.11'!P22/'B5.4.10'!P22 -> 0.7152471855 | Q22: ='B5.4.11'!Q22/'B5.4.10'!Q22 -> 0.7567131328 | R22: ='B5.4.11'!R22/'B5.4.10'!R22 -> 0.7565297789 | S22: ='B5.4.11'!S22/'B5.4.10'!S22 -> 0.802062475 | T22: ='B5.4.11'!T22/'B5.4.10'!T22 -> 0.8173543689 | U22: ='B5.4.11'!U22/'B5.4.10'!U22 -> 0.8241505087 | V22: ='B5.4.11'!V22/'B5.4.10'!V22 -> 0.8028378002 | W22: ='B5.4.11'!W22/'B5.4.10'!W22 -> 0.8017605318 | X22: ='B5.4.11'!X22/'B5.4.10'!X22 -> 0.8109849942 | Y22: ='B5.4.11'!Y22/'B5.4.10'!Y22 -> 0.8146900883 | Z22: ='B5.4.11'!Z22/'B5.4.10'!Z22 -> 0.7695910345
F23: střední vzdělávání s výučním listem | J23: x | K23: x | L23: ='B5.4.11'!L23/'B5.4.10'!L23 -> 0.8753842516 | M23: ='B5.4.11'!M23/'B5.4.10'!M23 -> 0.8995366984 | N23: ='B5.4.11'!N23/'B5.4.10'!N23 -> 0.9011306863 | O23: ='B5.4.11'!O23/'B5.4.10'!O23 -> 0.9082374319 | P23: ='B5.4.11'!P23/'B5.4.10'!P23 -> 0.7626630527 | Q23: ='B5.4.11'!Q23/'B5.4.10'!Q23 -> 0.7971906869 | R23: ='B5.4.11'!R23/'B5.4.10'!R23 -> 0.8008683639 | S23: ='B5.4.11'!S23/'B5.4.10'!S23 -> 0.8437642759 | T23: ='B5.4.11'!T23/'B5.4.10'!T23 -> 0.8345377523 | U23: ='B5.4.11'!U23/'B5.4.10'!U23 -> 0.8087039694 | V23: ='B5.4.11'!V23/'B5.4.10'!V23 -> 0.82125 | W23: ='B5.4.11'!W23/'B5.4.10'!W23 -> 0.8400186567 | X23: ='B5.4.11'!X23/'B5.4.10'!X23 -> 0.8182683159 | Y23: ='B5.4.11'!Y23/'B5.4.10'!Y23 -> 0.8217614166 | Z23: ='B5.4.11'!Z23/'B5.4.10'!Z23 -> 0.8099955967
F24: střední vzdělávání | J24: x | K24: x | L24: ='B5.4.11'!L24/'B5.4.10'!L24 -> 0.9411764706 | M24: ='B5.4.11'!M24/'B5.4.10'!M24 -> 0.9818181818 | N24: ='B5.4.11'!N24/'B5.4.10'!N24 -> 0.9736842105 | O24: ='B5.4.11'!O24/'B5.4.10'!O24 -> 1 | P24: ='B5.4.11'!P24/'B5.4.10'!P24 -> 0.9701492537 | Q24: ='B5.4.11'!Q24/'B5.4.10'!Q24 -> 0.9482758621 | R24: ='B5.4.11'!R24/'B5.4.10'!R24 -> 0.9589041096 | S24: ='B5.4.11'!S24/'B5.4.10'!S24 -> 0.9642857143 | T24: ='B5.4.11'!T24/'B5.4.10'!T24 -> 0.9814814815 | U24: ='B5.4.11'!U24/'B5.4.10'!U24 -> 0.9807692308 | V24: ='B5.4.11'!V24/'B5.4.10'!V24 -> 0.914893617 | W24: ='B5.4.11'!W24/'B5.4.10'!W24 -> 0.9818181818 | X24: ='B5.4.11'!X24/'B5.4.10'!X24 -> 0.989010989 | Y24: ='B5.4.11'!Y24/'B5.4.10'!Y24 -> 0.6576576577 | Z24: ='B5.4.11'!Z24/'B5.4.10'!Z24 -> 0.5398230088
E25: Církev | J25: x | K25: x | L25: ='B5.4.11'!L25/'B5.4.10'!L25 -> 0.7994428969 | M25: ='B5.4.11'!M25/'B5.4.10'!M25 -> 0.8175675676 | N25: ='B5.4.11'!N25/'B5.4.10'!N25 -> 0.8398835517 | O25: ='B5.4.11'!O25/'B5.4.10'!O25 -> 0.8566878981 | P25: ='B5.4.11'!P25/'B5.4.10'!P25 -> 0.7361359571 | Q25: ='B5.4.11'!Q25/'B5.4.10'!Q25 -> 0.6996336996 | R25: ='B5.4.11'!R25/'B5.4.10'!R25 -> 0.7491496599 | S25: ='B5.4.11'!S25/'B5.4.10'!S25 -> 0.7137713771 | T25: ='B5.4.11'!T25/'B5.4.10'!T25 -> 0.761485826 | U25: ='B5.4.11'!U25/'B5.4.10'!U25 -> 0.7055837563 | V25: ='B5.4.11'!V25/'B5.4.10'!V25 -> 0.6841269841 | W25: ='B5.4.11'!W25/'B5.4.10'!W25 -> 0.7084690554 | X25: ='B5.4.11'!X25/'B5.4.10'!X25 -> 0.6999125109 | Y25: ='B5.4.11'!Y25/'B5.4.10'!Y25 -> 0.7512396694 | Z25: ='B5.4.11'!Z25/'B5.4.10'!Z25 -> 0.7433993399
E26: v tom | F26: střední vzdělávání s maturitní zkouškou | J26: x | K26: x | L26: ='B5.4.11'!L26/'B5.4.10'!L26 -> 0.7638640429 | M26: ='B5.4.11'!M26/'B5.4.10'!M26 -> 0.7796901893 | N26: ='B5.4.11'!N26/'B5.4.10'!N26 -> 0.8051948052 | O26: ='B5.4.11'!O26/'B5.4.10'!O26 -> 0.837398374 | P26: ='B5.4.11'!P26/'B5.4.10'!P26 -> 0.6883259912 | Q26: ='B5.4.11'!Q26/'B5.4.10'!Q26 -> 0.686440678 | R26: ='B5.4.11'!R26/'B5.4.10'!R26 -> 0.7078774617 | S26: ='B5.4.11'!S26/'B5.4.10'!S26 -> 0.6565774156 | T26: ='B5.4.11'!T26/'B5.4.10'!T26 -> 0.729139923 | U26: ='B5.4.11'!U26/'B5.4.10'!U26 -> 0.6612729234 | V26: ='B5.4.11'!V26/'B5.4.10'!V26 -> 0.6331006979 | W26: ='B5.4.11'!W26/'B5.4.10'!W26 -> 0.6553784861 | X26: ='B5.4.11'!X26/'B5.4.10'!X26 -> 0.6644736842 | Y26: ='B5.4.11'!Y26/'B5.4.10'!Y26 -> 0.7066666667 | Z26: ='B5.4.11'!Z26/'B5.4.10'!Z26 -> 0.6930585683
F27: střední vzdělávání s výučním listem | J27: x | K27: x | L27: ='B5.4.11'!L27/'B5.4.10'!L27 -> 0.9298245614 | M27: ='B5.4.11'!M27/'B5.4.10'!M27 -> 0.9545454545 | N27: ='B5.4.11'!N27/'B5.4.10'!N27 -> 0.9607843137 | O27: ='B5.4.11'!O27/'B5.4.10'!O27 -> 0.9230769231 | P27: ='B5.4.11'!P27/'B5.4.10'!P27 -> 0.9415584416 | Q27: ='B5.4.11'!Q27/'B5.4.10'!Q27 -> 0.7072072072 | R27: ='B5.4.11'!R27/'B5.4.10'!R27 -> 0.9166666667 | S27: ='B5.4.11'!S27/'B5.4.10'!S27 -> 0.9147727273 | T27: ='B5.4.11'!T27/'B5.4.10'!T27 -> 0.8841463415 | U27: ='B5.4.11'!U27/'B5.4.10'!U27 -> 0.8774193548 | V27: ='B5.4.11'!V27/'B5.4.10'!V27 -> 0.8579234973 | W27: ='B5.4.11'!W27/'B5.4.10'!W27 -> 0.9375 | X27: ='B5.4.11'!X27/'B5.4.10'!X27 -> 0.8544303797 | Y27: ='B5.4.11'!Y27/'B5.4.10'!Y27 -> 0.9360465116 | Z27: ='B5.4.11'!Z27/'B5.4.10'!Z27 -> 0.8963963964
F28: střední vzdělávání | J28: x | K28: x | L28: ='B5.4.11'!L28/'B5.4.10'!L28 -> 0.9215686275 | M28: ='B5.4.11'!M28/'B5.4.10'!M28 -> 0.9591836735 | N28: ='B5.4.11'!N28/'B5.4.10'!N28 -> 0.9782608696 | O28: ='B5.4.11'!O28/'B5.4.10'!O28 -> 0.9333333333 | P28: ='B5.4.11'!P28/'B5.4.10'!P28 -> 0.9464285714 | Q28: ='B5.4.11'!Q28/'B5.4.10'!Q28 -> 0.8518518519 | R28: ='B5.4.11'!R28/'B5.4.10'!R28 -> 0.8285714286 | S28: ='B5.4.11'!S28/'B5.4.10'!S28 -> 0.8947368421 | T28: ='B5.4.11'!T28/'B5.4.10'!T28 -> 0.825 | U28: ='B5.4.11'!U28/'B5.4.10'!U28 -> 0.85 | V28: ='B5.4.11'!V28/'B5.4.10'!V28 -> 0.9459459459 | W28: ='B5.4.11'!W28/'B5.4.10'!W28 -> 0.9625 | X28: ='B5.4.11'!X28/'B5.4.10'!X28 -> 0.8082191781 | Y28: ='B5.4.11'!Y28/'B5.4.10'!Y28 -> 0.9365079365 | Z28: ='B5.4.11'!Z28/'B5.4.10'!Z28 -> 0.9264705882
D29: Komentáře: | Z29: Zdroj: databáze MŠMT
E30: Data bez zkráceného studia.
D31: 1) | E31: Do školního roku 2008/09 v rámci prvního kola přijímacího řízení mohli žáci podat přihlášku pouze na jednu školu, ve školním roce 2009/10 byl systém přijímacího řízení změněn a žáci si mohli podat tři přihlášky, údaje jsou proto s minulými léty nesrovnatelné.
D32: 2) | E32: Od školního roku 2012/13 v rámci prvního kola přijímacího řízení byl systém přijímacího řízení změněn a žáci si mohli podat pouze 2 přihlášky, údaje s minulými léty jsou proto nesrovnatelné.

Sheet B5.4.13
D4: Tab. B5.4.13: | H4: SŠ – odborné vzdělávání (bez nástavbového studia), denní forma vzdělávání – žáci
B5: 0 | D5: ve školním roce 2009/10 až 2019/20 – podle území
D7: Území | J7: 2003/04 | K7: 2004/05 | L7: 2005/06 | M7: 2006/07 | N7: 2007/08 | O7: 2008/09 | P7: 2009/10 | Q7: 2010/11 | R7: 2011/12 | S7: 2012/13 | T7: 2013/14 | U7: 2014/15 | V7: 2015/16 | W7: 2016/17 | X7: 2017/18 | Y7: 2018/19 | Z7: 2019/20
E12: Česká republika | H12: CZ0 | J12: 378950 | K12: 379442 | L12: 376850 | M12: 375598 | N12: 368261 | O12: 362154 | P12: 356867 | Q12: 339550 | R12: 319162 | S12: 298977 | T12: 282901 | U12: 273960 | V12: 267732 | W12: 265721 | X12: 264727 | Y12: 265439 | Z12: 269248
E13: Praha | H13: CZ01 | J13: 44914 | K13: 44877 | L13: 44229 | M13: 43794 | N13: 42652 | O13: 41731 | P13: 41060 | Q13: 38936 | R13: 36672 | S13: 34435 | T13: 32963 | U13: 32261 | V13: 32508 | W13: 33307 | X13: 34226 | Y13: 35001 | Z13: 36422
F14: Hlavní město Praha | H14: CZ010 | J14: 44914 | K14: 44877 | L14: 44229 | M14: 43794 | N14: 42652 | O14: 41731 | P14: 41060 | Q14: 38936 | R14: 36672 | S14: 34435 | T14: 32963 | U14: 32261 | V14: 32508 | W14: 33307 | X14: 34226 | Y14: 35001 | Z14: 36422
E15: Střední Čechy | H15: CZ02 | J15: 32132 | K15: 32018 | L15: 31803 | M15: 32149 | N15: 31860 | O15: 31757 | P15: 31402 | Q15: 29983 | R15: 28150 | S15: 26720 | T15: 25556 | U15: 24712 | V15: 24228 | W15: 23901 | X15: 23871 | Y15: 23861 | Z15: 24195
F16: Středočeský kraj | H16: CZ020 | J16: 32132 | K16: 32018 | L16: 31803 | M16: 32149 | N16: 31860 | O16: 31757 | P16: 31402 | Q16: 29983 | R16: 28150 | S16: 26720 | T16: 25556 | U16: 24712 | V16: 24228 | W16: 23901 | X16: 23871 | Y16: 23861 | Z16: 24195
E17: Jihozápad | H17: CZ03 | J17: 43765 | K17: 43822 | L17: 43943 | M17: 44090 | N17: 42770 | O17: 42065 | P17: 41735 | Q17: 39664 | R17: 37663 | S17: 35396 | T17: 33585 | U17: 32718 | V17: 32121 | W17: 32015 | X17: 31775 | Y17: 31897 | Z17: 32540
F18: Jihočeský kraj | H18: CZ031 | J18: 24576 | K18: 24461 | L18: 24432 | M18: 24522 | N18: 23766 | O18: 23472 | P18: 23188 | Q18: 22025 | R18: 20849 | S18: 19720 | T18: 18611 | U18: 18181 | V18: 17810 | W18: 17585 | X18: 17309 | Y18: 17405 | Z18: 17795
F19: Plzeňský kraj | H19: CZ032 | J19: 19189 | K19: 19361 | L19: 19511 | M19: 19568 | N19: 19004 | O19: 18593 | P19: 18547 | Q19: 17639 | R19: 16814 | S19: 15676 | T19: 14974 | U19: 14537 | V19: 14311 | W19: 14430 | X19: 14466 | Y19: 14492 | Z19: 14745
E20: Severozápad | H20: CZ04 | J20: 42890 | K20: 43109 | L20: 42669 | M20: 42285 | N20: 41564 | O20: 41078 | P20: 40846 | Q20: 39310 | R20: 36861 | S20: 34451 | T20: 32367 | U20: 31120 | V20: 30109 | W20: 29704 | X20: 29284 | Y20: 29197 | Z20: 29432
F21: Karlovarský kraj | H21: CZ041 | J21: 11109 | K21: 11263 | L21: 11119 | M21: 10834 | N21: 10524 | O21: 10323 | P21: 10163 | Q21: 9702 | R21: 9016 | S21: 8280 | T21: 7687 | U21: 7265 | V21: 7059 | W21: 7064 | X21: 6997 | Y21: 6892 | Z21: 6942
F22: Ústecký kraj | H22: CZ042 | J22: 31781 | K22: 31846 | L22: 31550 | M22: 31451 | N22: 31040 | O22: 30755 | P22: 30683 | Q22: 29608 | R22: 27845 | S22: 26171 | T22: 24680 | U22: 23855 | V22: 23050 | W22: 22640 | X22: 22287 | Y22: 22305 | Z22: 22490
E23: Severovýchod | H23: CZ05 | J23: 55983 | K23: 55968 | L23: 55771 | M23: 55823 | N23: 55102 | O23: 54280 | P23: 53493 | Q23: 51331 | R23: 48176 | S23: 45281 | T23: 42933 | U23: 42116 | V23: 41224 | W23: 40957 | X23: 40636 | Y23: 40373 | Z23: 40936
F24: Liberecký kraj | H24: CZ051 | J24: 15796 | K24: 15667 | L24: 15674 | M24: 15711 | N24: 15211 | O24: 14778 | P24: 14284 | Q24: 13534 | R24: 12761 | S24: 12022 | T24: 11531 | U24: 11314 | V24: 11025 | W24: 10874 | X24: 10729 | Y24: 10818 | Z24: 11058
F25: Královéhradecký kraj | H25: CZ052 | J25: 21163 | K25: 21363 | L25: 21256 | M25: 21296 | N25: 21350 | O25: 21152 | P25: 20960 | Q25: 20193 | R25: 19002 | S25: 17938 | T25: 16875 | U25: 16524 | V25: 15998 | W25: 15843 | X25: 15567 | Y25: 15092 | Z25: 15174
F26: Pardubický kraj | H26: CZ053 | J26: 19024 | K26: 18938 | L26: 18841 | M26: 18816 | N26: 18541 | O26: 18350 | P26: 18249 | Q26: 17604 | R26: 16413 | S26: 15321 | T26: 14527 | U26: 14278 | V26: 14201 | W26: 14240 | X26: 14340 | Y26: 14463 | Z26: 14704
E27: Jihovýchod | H27: CZ06 | J27: 62491 | K27: 62373 | L27: 61696 | M27: 61367 | N27: 60562 | O27: 59810 | P27: 59050 | Q27: 55991 | R27: 52544 | S27: 48785 | T27: 45622 | U27: 43693 | V27: 42318 | W27: 41498 | X27: 41100 | Y27: 41117 | Z27: 41436
F28: Kraj Vysočina | H28: CZ063 | J28: 19669 | K28: 19650 | L28: 19321 | M28: 19334 | N28: 19148 | O28: 18919 | P28: 18776 | Q28: 17751 | R28: 16815 | S28: 15715 | T28: 14693 | U28: 14014 | V28: 13682 | W28: 13237 | X28: 13011 | Y28: 13153 | Z28: 13245
F29: Jihomoravský kraj | H29: CZ064 | J29: 42822 | K29: 42723 | L29: 42375 | M29: 42033 | N29: 41414 | O29: 40891 | P29: 40274 | Q29: 38240 | R29: 35729 | S29: 33070 | T29: 30929 | U29: 29679 | V29: 28636 | W29: 28261 | X29: 28089 | Y29: 27964 | Z29: 28191
E30: Střední Morava | H30: CZ07 | J30: 47962 | K30: 48094 | L30: 47500 | M30: 47007 | N30: 45984 | O30: 44824 | P30: 44053 | Q30: 41859 | R30: 39160 | S30: 36549 | T30: 34489 | U30: 33518 | V30: 32866 | W30: 32711 | X30: 32552 | Y30: 32704 | Z30: 32884
F31: Olomoucký kraj | H31: CZ071 | J31: 23702 | K31: 23721 | L31: 23400 | M31: 23367 | N31: 22867 | O31: 22375 | P31: 22045 | Q31: 21104 | R31: 19869 | S31: 18901 | T31: 18164 | U31: 17768 | V31: 17202 | W31: 17132 | X31: 17017 | Y31: 17135 | Z31: 17238
F32: Zlínský kraj | H32: CZ072 | J32: 24260 | K32: 24373 | L32: 24100 | M32: 23640 | N32: 23117 | O32: 22449 | P32: 22008 | Q32: 20755 | R32: 19291 | S32: 17648 | T32: 16325 | U32: 15750 | V32: 15664 | W32: 15579 | X32: 15535 | Y32: 15569 | Z32: 15646
E33: Moravskoslezsko | H33: CZ08 | J33: 48813 | K33: 49181 | L33: 49239 | M33: 49083 | N33: 47767 | O33: 46609 | P33: 45228 | Q33: 42476 | R33: 39936 | S33: 37360 | T33: 35386 | U33: 33822 | V33: 32358 | W33: 31628 | X33: 31283 | Y33: 31289 | Z33: 31403
F34: Moravskoslezský kraj | H34: CZ080 | J34: 48813 | K34: 49181 | L34: 49239 | M34: 49083 | N34: 47767 | O34: 46609 | P34: 45228 | Q34: 42476 | R34: 39936 | S34: 37360 | T34: 35386 | U34: 33822 | V34: 32358 | W34: 31628 | X34: 31283 | Y34: 31289 | Z34: 31403
Z35: Zdroj: databáze MŠMT

Sheet B5.4.14
D4: Tab. B5.4.14: | H4: SŠ – odborné vzdělávání (bez nástavbového studia), denní forma vzdělávání – nově přijatí
B5: 0 | D5: ve školním roce 2009/10 až 2019/20 – podle území
D7: Území | J7: 2003/04 | K7: 2004/05 | L7: 2005/06 | M7: 2006/07 | N7: 2007/08 | O7: 2008/09 | P7: 2009/10 | Q7: 2010/11 | R7: 2011/12 | S7: 2012/13 | T7: 2013/14 | U7: 2014/15 | V7: 2015/16 | W7: 2016/17 | X7: 2017/18 | Y7: 2018/19 | Z7: 2019/20
E12: Česká republika | H12: CZ0 | J12: 115675 | K12: 113589 | L12: 110588 | M12: 113495 | N12: 108269 | O12: 105880 | P12: 103271 | Q12: 90631 | R12: 85213 | S12: 81325 | T12: 80225 | U12: 79874 | V12: 78729 | W12: 78201 | X12: 78565 | Y12: 79020 | Z12: 81344
E13: Praha | H13: CZ01 | J13: 13285 | K13: 13012 | L13: 12486 | M13: 12907 | N13: 12235 | O13: 12009 | P13: 11603 | Q13: 10486 | R13: 9755 | S13: 9378 | T13: 9374 | U13: 9606 | V13: 9976 | W13: 10289 | X13: 10438 | Y13: 10450 | Z13: 11253
F14: Hlavní město Praha | H14: CZ010 | J14: 13285 | K14: 13012 | L14: 12486 | M14: 12907 | N14: 12235 | O14: 12009 | P14: 11603 | Q14: 10486 | R14: 9755 | S14: 9378 | T14: 9374 | U14: 9606 | V14: 9976 | W14: 10289 | X14: 10438 | Y14: 10450 | Z14: 11253
E15: Střední Čechy | H15: CZ02 | J15: 9787 | K15: 9526 | L15: 9385 | M15: 9945 | N15: 9635 | O15: 9523 | P15: 9100 | Q15: 8203 | R15: 7571 | S15: 7543 | T15: 7432 | U15: 7414 | V15: 7050 | W15: 7076 | X15: 7270 | Y15: 7342 | Z15: 7403
F16: Středočeský kraj | H16: CZ020 | J16: 9787 | K16: 9526 | L16: 9385 | M16: 9945 | N16: 9635 | O16: 9523 | P16: 9100 | Q16: 8203 | R16: 7571 | S16: 7543 | T16: 7432 | U16: 7414 | V16: 7050 | W16: 7076 | X16: 7270 | Y16: 7342 | Z16: 7403
E17: Jihozápad | H17: CZ03 | J17: 13524 | K17: 13055 | L17: 13038 | M17: 13397 | N17: 12235 | O17: 12210 | P17: 12284 | Q17: 10513 | R17: 9974 | S17: 9461 | T17: 9368 | U17: 9466 | V17: 9187 | W17: 9354 | X17: 9153 | Y17: 9488 | Z17: 9686
F18: Jihočeský kraj | H18: CZ031 | J18: 7471 | K18: 7085 | L18: 7150 | M18: 7407 | N18: 6730 | O18: 6740 | P18: 6715 | Q18: 5803 | R18: 5501 | S18: 5280 | T18: 5188 | U18: 5126 | V18: 5059 | W18: 5017 | X18: 4963 | Y18: 5146 | Z18: 5273
F19: Plzeňský kraj | H19: CZ032 | J19: 6053 | K19: 5970 | L19: 5888 | M19: 5990 | N19: 5505 | O19: 5470 | P19: 5569 | Q19: 4710 | R19: 4473 | S19: 4181 | T19: 4180 | U19: 4340 | V19: 4128 | W19: 4337 | X19: 4190 | Y19: 4342 | Z19: 4413
E20: Severozápad | H20: CZ04 | J20: 13923 | K20: 13677 | L20: 13381 | M20: 13517 | N20: 13062 | O20: 12840 | P20: 12502 | Q20: 11173 | R20: 10385 | S20: 9737 | T20: 9459 | U20: 9237 | V20: 9191 | W20: 9122 | X20: 9120 | Y20: 8899 | Z20: 9305
F21: Karlovarský kraj | H21: CZ041 | J21: 3669 | K21: 3656 | L21: 3432 | M21: 3369 | N21: 3341 | O21: 3249 | P21: 3241 | Q21: 2917 | R21: 2533 | S21: 2284 | T21: 2315 | U21: 2171 | V21: 2172 | W21: 2223 | X21: 2256 | Y21: 2041 | Z21: 2217
F22: Ústecký kraj | H22: CZ042 | J22: 10254 | K22: 10021 | L22: 9949 | M22: 10148 | N22: 9721 | O22: 9591 | P22: 9261 | Q22: 8256 | R22: 7852 | S22: 7453 | T22: 7144 | U22: 7066 | V22: 7019 | W22: 6899 | X22: 6864 | Y22: 6858 | Z22: 7088
E23: Severovýchod | H23: CZ05 | J23: 17385 | K23: 16898 | L23: 16369 | M23: 16928 | N23: 16419 | O23: 15858 | P23: 15468 | Q23: 13588 | R23: 13002 | S23: 12414 | T23: 12087 | U23: 12261 | V23: 12093 | W23: 11829 | X23: 11844 | Y23: 11729 | Z23: 12382
F24: Liberecký kraj | H24: CZ051 | J24: 5227 | K24: 4876 | L24: 4899 | M24: 4963 | N24: 4581 | O24: 4402 | P24: 4160 | Q24: 3722 | R24: 3592 | S24: 3496 | T24: 3301 | U24: 3330 | V24: 3319 | W24: 3230 | X24: 3191 | Y24: 3365 | Z24: 3403
F25: Královéhradecký kraj | H25: CZ052 | J25: 6332 | K25: 6405 | L25: 6121 | M25: 6406 | N25: 6360 | O25: 6101 | P25: 6039 | Q25: 5201 | R25: 5119 | S25: 4859 | T25: 4728 | U25: 4789 | V25: 4578 | W25: 4540 | X25: 4419 | Y25: 4217 | Z25: 4532
F26: Pardubický kraj | H26: CZ053 | J26: 5826 | K26: 5617 | L26: 5349 | M26: 5559 | N26: 5478 | O26: 5355 | P26: 5269 | Q26: 4665 | R26: 4291 | S26: 4059 | T26: 4058 | U26: 4142 | V26: 4196 | W26: 4059 | X26: 4234 | Y26: 4147 | Z26: 4447
E27: Jihovýchod | H27: CZ06 | J27: 18567 | K27: 18367 | L27: 17826 | M27: 18214 | N27: 17720 | O27: 17341 | P27: 17001 | Q27: 14565 | R27: 13718 | S27: 12932 | T27: 12853 | U27: 12627 | V27: 12318 | W27: 12035 | X27: 12150 | Y27: 12401 | Z27: 12500
F28: Kraj Vysočina | H28: CZ063 | J28: 5742 | K28: 5660 | L28: 5577 | M28: 5740 | N28: 5465 | O28: 5455 | P28: 5327 | Q28: 4504 | R28: 4390 | S28: 4104 | T28: 3984 | U28: 3814 | V28: 3717 | W28: 3589 | X28: 3682 | Y28: 3804 | Z28: 3798
F29: Jihomoravský kraj | H29: CZ064 | J29: 12825 | K29: 12707 | L29: 12249 | M29: 12474 | N29: 12255 | O29: 11886 | P29: 11674 | Q29: 10061 | R29: 9328 | S29: 8828 | T29: 8869 | U29: 8813 | V29: 8601 | W29: 8446 | X29: 8468 | Y29: 8597 | Z29: 8702
E30: Střední Morava | H30: CZ07 | J30: 14244 | K30: 14223 | L30: 13631 | M30: 13812 | N30: 13247 | O30: 12744 | P30: 12470 | Q30: 10809 | R30: 10078 | S30: 9758 | T30: 9630 | U30: 9661 | V30: 9406 | W30: 9361 | X30: 9284 | Y30: 9494 | Z30: 9415
F31: Olomoucký kraj | H31: CZ071 | J31: 7120 | K31: 7179 | L31: 6834 | M31: 6982 | N31: 6663 | O31: 6480 | P31: 6353 | Q31: 5656 | R31: 5294 | S31: 5189 | T31: 5220 | U31: 5168 | V31: 4875 | W31: 4999 | X31: 4975 | Y31: 5070 | Z31: 5025
F32: Zlínský kraj | H32: CZ072 | J32: 7124 | K32: 7044 | L32: 6797 | M32: 6830 | N32: 6584 | O32: 6264 | P32: 6117 | Q32: 5153 | R32: 4784 | S32: 4569 | T32: 4410 | U32: 4493 | V32: 4531 | W32: 4362 | X32: 4309 | Y32: 4424 | Z32: 4390
E33: Moravskoslezsko | H33: CZ08 | J33: 14960 | K33: 14831 | L33: 14472 | M33: 14775 | N33: 13716 | O33: 13355 | P33: 12843 | Q33: 11294 | R33: 10730 | S33: 10102 | T33: 10022 | U33: 9602 | V33: 9508 | W33: 9135 | X33: 9306 | Y33: 9217 | Z33: 9400
F34: Moravskoslezský kraj | H34: CZ080 | J34: 14960 | K34: 14831 | L34: 14472 | M34: 14775 | N34: 13716 | O34: 13355 | P34: 12843 | Q34: 11294 | R34: 10730 | S34: 10102 | T34: 10022 | U34: 9602 | V34: 9508 | W34: 9135 | X34: 9306 | Y34: 9217 | Z34: 9400
Z35: Zdroj: databáze MŠMT

Sheet B5.4.15
A1: x
D4: Tab. B5.4.15: | H4: SŠ – odborné vzdělávání (bez nástavbového studia), denní forma vzdělávání – absolventi
B5: 0 | D5: ve školním roce 2009/10 až 2019/20 – podle území
D7: Území | J7: 2003/04 | K7: 2004/05 | L7: 2005/06 | M7: 2006/07 | N7: 2007/08 | O7: 2008/09 | P7: 2009/10 | Q7: 2010/11 | R7: 2011/12 | S7: 2012/13 | T7: 2013/14 | U7: 2014/15 | V7: 2015/16 | W7: 2016/17 | X7: 2017/18 | Y7: 2018/19 | Z7: 2019/20
E12: Česká republika | H12: CZ0 | J12: 91877 | K12: 92146 | L12: 92359 | M12: 89904 | N12: 86767 | O12: 83741 | P12: 78630 | Q12: 74789 | R12: 73229 | S12: 69664 | T12: 61613 | U12: 57111 | V12: 52528 | W12: 52315 | X12: 52383 | Y12: 52852 | Z12: .
E13: Praha | H13: CZ01 | J13: 10446 | K13: 10604 | L13: 10494 | M13: 10534 | N13: 9935 | O13: 9367 | P13: 8867 | Q13: 8205 | R13: 7997 | S13: 7533 | T13: 6752 | U13: 6375 | V13: 5952 | W13: 5825 | X13: 6114 | Y13: 6530 | Z13: .
F14: Hlavní město Praha | H14: CZ010 | J14: 10446 | K14: 10604 | L14: 10494 | M14: 10534 | N14: 9935 | O14: 9367 | P14: 8867 | Q14: 8205 | R14: 7997 | S14: 7533 | T14: 6752 | U14: 6375 | V14: 5952 | W14: 5825 | X14: 6114 | Y14: 6530 | Z14: .
E15: Střední Čechy | H15: CZ02 | J15: 7865 | K15: 7836 | L15: 7863 | M15: 7662 | N15: 7493 | O15: 7300 | P15: 7150 | Q15: 6741 | R15: 6445 | S15: 6224 | T15: 5584 | U15: 5187 | V15: 4827 | W15: 4875 | X15: 4789 | Y15: 4648 | Z15: .
F16: Středočeský kraj | H16: CZ020 | J16: 7865 | K16: 7836 | L16: 7863 | M16: 7662 | N16: 7493 | O16: 7300 | P16: 7150 | Q16: 6741 | R16: 6445 | S16: 6224 | T16: 5584 | U16: 5187 | V16: 4827 | W16: 4875 | X16: 4789 | Y16: 4648 | Z16: .
E17: Jihozápad | H17: CZ03 | J17: 10789 | K17: 10742 | L17: 10739 | M17: 10857 | N17: 9972 | O17: 9961 | P17: 9681 | Q17: 8718 | R17: 8787 | S17: 8453 | T17: 7479 | U17: 6758 | V17: 6308 | W17: 6326 | X17: 6381 | Y17: 6475 | Z17: .
F18: Jihočeský kraj | H18: CZ031 | J18: 6134 | K18: 6101 | L18: 6052 | M18: 6002 | N18: 5520 | O18: 5662 | P18: 5401 | Q18: 5018 | R18: 5007 | S18: 4820 | T18: 4148 | U18: 3840 | V18: 3556 | W18: 3584 | X18: 3534 | Y18: 3631 | Z18: .
F19: Plzeňský kraj | H19: CZ032 | J19: 4655 | K19: 4641 | L19: 4687 | M19: 4855 | N19: 4452 | O19: 4299 | P19: 4280 | Q19: 3700 | R19: 3780 | S19: 3633 | T19: 3331 | U19: 2918 | V19: 2752 | W19: 2742 | X19: 2847 | Y19: 2844 | Z19: .
E20: Severozápad | H20: CZ04 | J20: 9677 | K20: 10132 | L20: 9868 | M20: 9491 | N20: 8753 | O20: 8733 | P20: 7835 | Q20: 7604 | R20: 7200 | S20: 6965 | T20: 6089 | U20: 5444 | V20: 4961 | W20: 5139 | X20: 4988 | Y20: 5221 | Z20: .
F21: Karlovarský kraj | H21: CZ041 | J21: 2563 | K21: 2662 | L21: 2560 | M21: 2497 | N21: 2326 | O21: 2341 | P21: 1871 | Q21: 1879 | R21: 1839 | S21: 1772 | T21: 1598 | U21: 1314 | V21: 1180 | W21: 1272 | X21: 1178 | Y21: 1232 | Z21: .
F22: Ústecký kraj | H22: CZ042 | J22: 7114 | K22: 7470 | L22: 7308 | M22: 6994 | N22: 6427 | O22: 6392 | P22: 5964 | Q22: 5725 | R22: 5361 | S22: 5193 | T22: 4491 | U22: 4130 | V22: 3781 | W22: 3867 | X22: 3810 | Y22: 3989 | Z22: .
E23: Severovýchod | H23: CZ05 | J23: 13574 | K23: 13517 | L23: 13761 | M23: 13200 | N23: 12640 | O23: 12372 | P23: 11752 | Q23: 11447 | R23: 10994 | S23: 10537 | T23: 9247 | U23: 8864 | V23: 8017 | W23: 8047 | X23: 8213 | Y23: 8047 | Z23: .
F24: Liberecký kraj | H24: CZ051 | J24: 3679 | K24: 3694 | L24: 3755 | M24: 3570 | N24: 3431 | O24: 3393 | P24: 3184 | Q24: 2783 | R24: 2570 | S24: 2414 | T24: 2271 | U24: 2173 | V24: 2023 | W24: 1987 | X24: 2096 | Y24: 2054 | Z24: .
F25: Královéhradecký kraj | H25: CZ052 | J25: 5121 | K25: 5278 | L25: 5357 | M25: 5003 | N25: 4875 | O25: 4787 | P25: 4504 | Q25: 4716 | R25: 4546 | S25: 4377 | T25: 3634 | U25: 3721 | V25: 3210 | W25: 3223 | X25: 3287 | Y25: 3082 | Z25: .
F26: Pardubický kraj | H26: CZ053 | J26: 4774 | K26: 4545 | L26: 4649 | M26: 4627 | N26: 4334 | O26: 4192 | P26: 4064 | Q26: 3948 | R26: 3878 | S26: 3746 | T26: 3342 | U26: 2970 | V26: 2784 | W26: 2837 | X26: 2830 | Y26: 2911 | Z26: .
E27: Jihovýchod | H27: CZ06 | J27: 15824 | K27: 15632 | L27: 15354 | M27: 14813 | N27: 14985 | O27: 14252 | P27: 13533 | Q27: 12979 | R27: 12877 | S27: 12127 | T27: 10645 | U27: 9778 | V27: 9113 | W27: 8949 | X27: 8768 | Y27: 8787 | Z27: .
F28: Kraj Vysočina | H28: CZ063 | J28: 5000 | K28: 4998 | L28: 4917 | M28: 4763 | N28: 4723 | O28: 4580 | P28: 4643 | Q28: 4193 | R28: 4278 | S28: 4021 | T28: 3491 | U28: 3233 | V28: 3129 | W28: 3007 | X28: 2906 | Y28: 2886 | Z28: .
F29: Jihomoravský kraj | H29: CZ064 | J29: 10824 | K29: 10634 | L29: 10437 | M29: 10050 | N29: 10262 | O29: 9672 | P29: 8890 | Q29: 8786 | R29: 8599 | S29: 8106 | T29: 7154 | U29: 6545 | V29: 5984 | W29: 5942 | X29: 5862 | Y29: 5901 | Z29: .
E30: Střední Morava | H30: CZ07 | J30: 12013 | K30: 12167 | L30: 12302 | M30: 11702 | N30: 11345 | O30: 10928 | P30: 9460 | Q30: 9858 | R30: 9538 | S30: 9145 | T30: 8081 | U30: 7377 | V30: 6909 | W30: 6881 | X30: 6920 | Y30: 6836 | Z30: .
F31: Olomoucký kraj | H31: CZ071 | J31: 5863 | K31: 5960 | L31: 5854 | M31: 5750 | N31: 5544 | O31: 5178 | P31: 4743 | Q31: 4849 | R31: 4525 | S31: 4433 | T31: 4093 | U31: 3762 | V31: 3578 | W31: 3624 | X31: 3581 | Y31: 3518 | Z31: .
F32: Zlínský kraj | H32: CZ072 | J32: 6150 | K32: 6207 | L32: 6448 | M32: 5952 | N32: 5801 | O32: 5750 | P32: 4717 | Q32: 5009 | R32: 5013 | S32: 4712 | T32: 3988 | U32: 3615 | V32: 3331 | W32: 3257 | X32: 3339 | Y32: 3318 | Z32: .
E33: Moravskoslezsko | H33: CZ08 | J33: 11689 | K33: 11516 | L33: 11978 | M33: 11645 | N33: 11644 | O33: 10828 | P33: 10352 | Q33: 9237 | R33: 9391 | S33: 8680 | T33: 7736 | U33: 7328 | V33: 6441 | W33: 6273 | X33: 6210 | Y33: 6308 | Z33: .
F34: Moravskoslezský kraj | H34: CZ080 | J34: 11689 | K34: 11516 | L34: 11978 | M34: 11645 | N34: 11644 | O34: 10828 | P34: 10352 | Q34: 9237 | R34: 9391 | S34: 8680 | T34: 7736 | U34: 7328 | V34: 6441 | W34: 6273 | X34: 6210 | Y34: 6308 | Z34: .
Z35: Zdroj: databáze MŠMT

Sheet GB1
A1: x
D4: Obr. B1: | H4: SŠ – Odborné vzdělávání (bez nástavbového studia), denní forma vzdělávání – struktura škol ve školním roce 2009/10 až 2019/20
B5: 0 | D5: – podle velikosti
K10: 2005/06 | L10: 2007/08 | M10: 2008/09 | N10: 2009/10 | O10: 2010/11 | P10: 2011/12 | Q10: 2012/13 | R10: 2013/14 | S10: 2014/15 | T10: 2015/16 | U10: 2016/17 | V10: 2017/18 | W10: 2018/19 | X10: 2019/20
J11: do 100 | K11: 0.2879161529 | L11: 0.167562724 | M11: 0.1750902527 | N11: 0.1811594203 | O11: 0.1974522293 | P11: 0.218487395 | Q11: 0.2444658325 | R11: 0.2512171373 | S11: 0.24750499 | T11: 0.2477432297 | U11: 0.2527472527 | V11: 0.254491018 | W11: 0.254491018 | X11: 0.2339121553
J12: 101–200 | K12: 0.2213316893 | L12: 0.1702508961 | M12: 0.1741877256 | N12: 0.1739130435 | O12: 0.1801637853 | P12: 0.1820728291 | Q12: 0.1905678537 | R12: 0.2074001947 | S12: 0.2105788423 | T12: 0.2186559679 | U12: 0.2287712288 | V12: 0.2215568862 | W12: 0.2215568862 | X12: 0.2134831461
J13: 201–300 | K13: 0.1954377312 | L13: 0.1989247312 | M13: 0.1895306859 | N13: 0.1875 | O13: 0.1801637853 | P13: 0.1904761905 | Q13: 0.1655437921 | R13: 0.1635832522 | S13: 0.1806387226 | T13: 0.1765295888 | U13: 0.1668331668 | V13: 0.1736526946 | W13: 0.1736526946 | X13: 0.1797752809
J14: 301–400 | K14: 0.130702836 | L14: 0.1505376344 | M14: 0.1570397112 | N14: 0.1567028986 | O14: 0.1574158326 | P14: 0.1484593838 | Q14: 0.1539942252 | R14: 0.1450827653 | S14: 0.124750499 | T14: 0.1293881645 | U14: 0.1318681319 | V14: 0.130738523 | W14: 0.130738523 | X14: 0.139938713
J15: 401–500 | K15: 0.06905055487 | L15: 0.1048387097 | M15: 0.09657039711 | N15: 0.1050724638 | O15: 0.101910828 | P15: 0.09617180205 | Q15: 0.07988450433 | R15: 0.0817916261 | S15: 0.09081836327 | T15: 0.09227683049 | U15: 0.08691308691 | V15: 0.09281437126 | W15: 0.09281437126 | X15: 0.09703779367
J16: 501–600 | K16: 0.04130702836 | L16: 0.07885304659 | M16: 0.08032490975 | N16: 0.0634057971 | O16: 0.06551410373 | P16: 0.05135387488 | Q16: 0.05678537055 | R16: 0.05550146056 | S16: 0.05189620758 | T16: 0.05516549649 | U16: 0.05494505495 | V16: 0.05089820359 | W16: 0.05089820359 | X16: 0.04698672114
J17: 601–700 | K17: 0.02774352651 | L17: 0.04211469534 | M17: 0.03971119134 | N17: 0.04710144928 | O17: 0.04640582348 | P17: 0.04481792717 | Q17: 0.04908565929 | R17: 0.04186952288 | S17: 0.04091816367 | T17: 0.03209628887 | U17: 0.02997002997 | V17: 0.02794411178 | W17: 0.02794411178 | X17: 0.03575076609
J18: nad 701 | K18: 0.02651048089 | L18: 0.08691756272 | M18: 0.08754512635 | N18: 0.08514492754 | O18: 0.07097361237 | P18: 0.06816059757 | Q18: 0.05967276227 | R18: 0.0535540409 | S18: 0.05289421158 | T18: 0.0481444333 | U18: 0.04795204795 | V18: 0.04790419162 | W18: 0.04790419162 | X18: 0.0531154239
N19: =SUM(N11:N18) -> 1 | O19: =SUM(O11:O18) -> 1 | P19: 1 | Q19: 1 | R19: 1 | S19: 1 | T19: 1 | U19: 1 | V19: 1 | W19: 1 | X19: 1
X34: Zdroj: databáze MŠMT

Sheet GB2
A1: x
D4: Obr. B2: | H4: SŠ – Odborné vzdělávání (bez nástavbového studia), denní forma vzdělávání – struktura nově přijatých do 1. ročníku
B5: 0 | D5: ve školním roce 2009/10 až 2019/20
K10: 2003/04 | L10: 2004/05 | M10: 2005/06 | N10: 2007/08 | O10: 2008/09 | P10: 2009/10 | Q10: 2010/11 | R10: 2011/12 | S10: 2012/13 | T10: 2013/14 | U10: 2014/15 | V10: 2015/16 | W10: 2016/17 | X10: 2017/18 | Y10: 2018/19 | Z10: 2019/20
J11: střední vzdělávání s maturitní zkouškou | K11: 0.5427101794 | L11: 0.5558460766 | M11: 0.5682171664 | N11: 0.6030812144 | O11: 0.6148375519 | P11: 0.6044484899 | Q11: 0.5978859331 | R11: 0.585614871 | S11: 0.5721364894 | T11: 0.5836210658 | U11: 0.5860605454 | V11: 0.592335734 | W11: 0.600324804 | X11: 0.600203653 | Y11: 0.6022779043 | Z11: 0.5963316286
J12: střední vzdělávání s výučním listem | K12: 0.4438124054 | L12: 0.4317319459 | M12: 0.420542916 | N12: 0.3887816457 | O12: 0.3768228183 | P12: 0.3864201954 | Q12: 0.3909699772 | R12: 0.4025676833 | S12: 0.4158376883 | T12: 0.4042754752 | U12: 0.4035981671 | V12: 0.3959532066 | W12: 0.385890206 | X12: 0.3860243111 | Y12: 0.3851556568 | Z12: 0.3921862707
J13: střední vzdělávání | K13: 0.01347741517 | L13: 0.01242197748 | M13: 0.01123991753 | N13: 0.008137139902 | O13: 0.00833962977 | P13: 0.009131314696 | Q13: 0.01114408977 | R13: 0.01181744569 | S13: 0.01202582232 | T13: 0.01210345902 | U13: 0.01034128753 | V13: 0.01171105946 | W13: 0.01378498996 | X13: 0.01377203589 | Y13: 0.01256643888 | Z13: 0.01148210071
P14: =SUM(P11:P13) -> 1 | Q14: =SUM(Q11:Q13) -> 1 | R14: 1 | S14: 1 | T14: 1 | U14: 1 | V14: 1 | W14: 1 | X14: 1 | Y14: 1 | Z14: 1
P16: 103271 | Q16: 90631 | R16: 85213 | S16: 81325 | T16: 80225 | U16: 79874 | V16: 78729 | W16: 78201 | X16: 78565 | Y16: 79020 | Z16: 81344
P17: 62422 | Q17: 54187 | R17: 49902 | S17: 46529 | T17: 46821 | U17: 46811 | V17: 46634 | W17: 46946 | X17: 47155 | Y17: 47592 | Z17: 48508
P18: 39906 | Q18: 35434 | R18: 34304 | S18: 33818 | T18: 32433 | U18: 32237 | V18: 31173 | W18: 30177 | X18: 30328 | Y18: 30435 | Z18: 31902
P19: 943 | Q19: 1010 | R19: 1007 | S19: 978 | T19: 971 | U19: 826 | V19: 922 | W19: 1078 | X19: 1082 | Y19: 993 | Z19: 934
P21: =P17/P$16 -> 0.6044484899 | Q21: =Q17/Q$16 -> 0.5978859331 | R21: 0.585614871 | S21: 0.5721364894 | T21: 0.5836210658 | U21: 0.5860605454 | V21: 0.592335734 | W21: 0.600324804 | X21: 0.600203653 | Y21: 0.6022779043 | Z21: 0.5963316286
P22: =P18/P$16 -> 0.3864201954 | Q22: 0.3909699772 | R22: 0.4025676833 | S22: 0.4158376883 | T22: 0.4042754752 | U22: 0.4035981671 | V22: 0.3959532066 | W22: 0.385890206 | X22: 0.3860243111 | Y22: 0.3851556568 | Z22: 0.3921862707
P23: 0.009131314696 | Q23: 0.01114408977 | R23: 0.01181744569 | S23: 0.01202582232 | T23: 0.01210345902 | U23: 0.01034128753 | V23: 0.01171105946 | W23: 0.01378498996 | X23: 0.01377203589 | Y23: 0.01256643888 | Z23: 0.01148210071
D32: Komentáře: | Z32: Zdroj: databáze MŠMT
E33: Střední vzdělávání s výučním listem a střední vzdělávání s maturitní zkouškou včetně zkráceného studia.

Sheet GB3
A1: x
D4: Obr. B3: | H4: SŠ – Odborné vzdělávání (bez nástavbového studia), denní forma vzdělávání – poměrové ukazatele ve školním roce 2009/10 až 2019/20
B5: 0
K10: 2003/04 | L10: 2004/05 | M10: 2005/06 | N10: 2007/08 | O10: 2008/09 | P10: 2009/10 | Q10: 2010/11 | R10: 2011/12 | S10: 2012/13 | T10: 2013/14 | U10: 2014/15 | V10: 2015/16 | W10: 2016/17 | X10: 2017/18 | Y10: 2018/19 | Z10: 2019/20
J11: průměrný počet žáků na jednu školu | K11: 232.4846626 | L11: 238.3429648 | M11: 232.3366215 | N11: 329.9829749 | O11: 326.8537906 | P11: 323.2490942 | Q11: 308.9626934 | R11: 298.0037348 | S11: 287.7545717 | T11: 275.4634859 | U11: 273.4131737 | V11: 268.5376128 | W11: 265.4555445 | X11: 264.1986028 | Y11: 268.935157 | Z11: 275.0234934
J12: průměrný počet žáků na jednu třídu | K12: 23.84983322 | L12: 23.89734223 | M12: 23.92546505 | N12: 23.55212331 | O12: 23.30913304 | P12: 23.08011202 | Q12: 22.34832853 | R12: 21.92896149 | S12: 21.69653859 | T12: 21.28704527 | U12: 21.04270295 | V12: 20.78033765 | W12: 20.8237138 | X12: 20.80140495 | Y12: 20.72139517 | Z12: 20.81692643
P15: 1104 | Q15: 1099 | R15: 1071 | S15: 1039 | T15: 1027 | U15: 1002 | V15: 997 | W15: 1001 | X15: 1002 | Y15: 987 | Z15: 979
P16: 15462.1 | Q16: 15193.53 | R16: 14554.36 | S16: 13779.94 | T16: 13289.82 | U16: 13019.24 | V16: 12883.91 | W16: 12760.5 | X16: 12726.4 | Y16: 12809.9 | Z16: 12934.09
P17: 356867 | Q17: 339550 | R17: 319162 | S17: 298977 | T17: 282901 | U17: 273960 | V17: 267732 | W17: 265721 | X17: 264727 | Y17: 265439 | Z17: 269248
P19: =P17/P15 -> 323.2490942 | Q19: =Q17/Q15 -> 308.9626934 | R19: 298.0037348 | S19: 287.7545717 | T19: 275.4634859 | U19: 273.4131737 | V19: 268.5376128 | W19: 265.4555445 | X19: 264.1986028 | Y19: 268.935157 | Z19: 275.0234934
P20: =P17/P16 -> 23.08011202 | Q20: =Q17/Q16 -> 22.34832853 | R20: 21.92896149 | S20: 21.69653859 | T20: 21.28704527 | U20: 21.04270295 | V20: 20.78033765 | W20: 20.8237138 | X20: 20.80140495 | Y20: 20.72139517 | Z20: 20.81692643
Z32: Zdroj: databáze MŠMT
